Workbook

Sheet Index
B1: Massachusetts Department of Elementary and Secondary Education
B2: FY17 Charter School End of Year Financial Report Summary
B3: Last Updated: May 2018
B5: Data Context
B6: This data was collected via the FY2017 Charter School End of Year Financial Report (17CSEOYFR) as well as SIMS and EPIMS databases.
B8: Technical Tips
B9: Please be sure to enable macros before using this file. You will receive a Security Warning message at the top of this page that reads "Macros have been disabled". Please click "Enable Content".
B11: Instructions for Viewing Data
B12: Use the drop-down menu to select a charter school that was operating in FY17 or a statewide charter summary total then navigate to any of the first three tabs linked below. There is additional statewide summary data provided in tabs 4 and 5.
C15: =VLOOKUP(E15, CSORDER, 2, FALSE) ->  | D15: =VLOOKUP(E15, CSORDER, 3, FALSE) ->  | E15: 1
B18: 1. Statement of Net Position
B19: 2. Statement of Revenues, Expenses and Change in Net Position
B20: 3. Schedule of Functional Expenses
B22: In addition, statewide summary data is available for the following:
B23: 4. Expenditures Per Pupil
B24: 5. Average Teacher Salaries
B26: For researchers, the following raw data sets are available:
B27: BAL17_raw (Balance Sheet Data)
B28: INC17_raw (Income Statement Data)
B29: FE17_raw (Schedule of Functional Expenses Data)
B30: FTE_raw (Student FTE Enrollment Data)
B31: EPIMS17_raw (Teacher FTE Enrollment Data)

Sheet 1. Statement of Net Position
A1: NAME: | B1: =SCHOOLNAME ->  | F1: LEA | G1: =LEA -> 
A3: Statement of Net Position
A4: For the Year Ended June 30, 2017
F6: =B1 ->  | G6: ABC Charter School Foundation (Component Unit) | H6: 2015 Total (Memorandum Only) | J6: Line | K6: Rec. Acct#
C7: ASSETS
C8: Current Assets
A9: 1 | C9: Cash and Cash Equivalents | D9: Assets that are cash or can be converted into cash immediately. | F9: =VLOOKUP($G$1&$A9, BAL, 6,FALSE) ->  | G9: =VLOOKUP($G$1&$A9, BAL, 7,FALSE) ->  | H9: =VLOOKUP($G$1&$A9, BAL, 8,FALSE) ->  | J9: =A9 -> 1 | K9: 10XX
A10: 2 | C10: Accounts Receivable net of doubtful accounts | D10: A school's claim for money, goods and services from customers and other entities. | J10: 2 | K10: 11XX
A11: 3 | C11: Grants Receivable - State | D11: Claims for goods and services provided under state awarded contracts. | J11: 3 | K11: 11XX
A12: 4 | C12: Grants Receivable - Federal | D12: Claims for goods and services provided under federal awarded contracts. | J12: 4 | K12: 11XX
A13: 5 | C13: Grants Receivable - Private | D13: Claims for goods and services provided from private awards received. | J13: 5 | K13: 11XX
A14: 6 | C14: Contributions Receivable | D14: Unconditional promises to give by private individuals or corporations. | J14: 6 | K14: 11XX
A15: 7 | C15: Due from related parties | D15: Amounts to be received from related parties. | J15: 7 | K15: 12XX
A16: 8 | C16: Prepaid Expenses / Inventory | D16: An expense paid but not incurred as of year end. Also include short-term inventories of supplies such as uniforms. | J16: 8 | K16: 13XX
A17: 9 | C17: Short-Term Investments | D17: Readily marketable security for which the intention of the school is the conversion to cash in the short term. | J17: 9 | K17: 14XX
A18: 10 | C18: Deposit (Security, Other) | D18: Security deposits for leases, or other deposits. | J18: 10 | K18: 15XX
A19: 11 | C19: Restricted Current Assets | D19: Current assets restricted by external sources for future purchases. | J19: 11 | K19: 15XX
A20: 12 | C20: TOTAL CURRENT ASSETS | D20: Calculates automatically. | J20: 12 | K20: NA
C21: Noncurrent Assets
C22: Capital Assets
A23: 13 | C23: - Land and Buildings | D23: Value of land and building inclusive of remodeling, reconditioning, or altering the building purchased to make it available for the purpose for which it was acquired, including construction in progress. | F23: =VLOOKUP($G$1&$A23, BAL, 6,FALSE) ->  | G23: =VLOOKUP($G$1&$A23, BAL, 7,FALSE) ->  | H23: =VLOOKUP($G$1&$A23, BAL, 8,FALSE) ->  | J23: =A23 -> 13 | K23: 15XX
A24: 14 | C24: - Building/Leasehold Improvement | D24: Value of improvements on leased property that revert back to the owners upon termination of the lease. | J24: 14 | K24: 15XX
A25: 15 | C25: - Furniture and Equipment | D25: Value of furniture and equipment that meet the school's capitalization policy. | J25: 15 | K25: 15XX
A26: 16 | C26: - Less Accumulated Depreciation | D26: The aggregate, at a given point in time, of the depreciation charges made during the useful life of the fixed asset. Enter as a negative number. | J26: 16 | K26: 16XX
A27: 17 | C27: Net Capital Assets | D27: Calculates automatically. | J27: 17 | K27: NA
A28: 18 | C28: Restricted Noncurrent Assets | D28: Noncurrent assets restricted by external sources for future purchases. | J28: 18 | K28: 10XX
A29: 19 | C29: Long-Term Investments | D29: Investments that do not meet the criteria of "Short-Term Investments" above. | J29: 19 | K29: 14XX
A30: 20 | C30: Building Acquisition / Financing Costs / Deferred Expenses | D30: Costs related to building acquisition, construction, and/or financing costs which are amortized. Also include long-term pre-paid leases or expenses which are amortized. | J30: 20 | K30: 14XX
A31: 21 | C31: Long-Term Grants / Contributions Receivable | D31: Please enter a brief description in the highlighted green cell, if applicable. | J31: 21 | K31: 14XX
A32: 22 | C32: TOTAL NONCURRENT ASSETS | D32: Calculates automatically. | J32: 22 | K32: NA
A33: 23 | C33: TOTAL ASSETS | D33: Calculates automatically. | J33: 23 | K33: NA
C35: LIABILITIES AND NET ASSETS
C36: Current Liabilities
A37: 24 | C37: Accounts Payable | D37: Obligations for goods or services purchased for which invoices have been received. | F37: =VLOOKUP($G$1&$A37, BAL, 6,FALSE) ->  | G37: =VLOOKUP($G$1&$A37, BAL, 7,FALSE) ->  | H37: =VLOOKUP($G$1&$A37, BAL, 8,FALSE) ->  | J37: =A37 -> 24 | K37: 20XX
A38: 25 | C38: Accrued Expenses / Accrued Payroll | D38: An unpaid expense incurred that has not been paid as of the end of the period, including accrued payroll. | J38: 25 | K38: 21XX
A39: 26 | C39: Deferred Revenue | D39: Cash received for services not performed (i.e., grant funds received that were not expended). | J39: 26 | K39: 22XX
A40: 27 | C40: Due to related parties | D40: Amounts due to related parties such as the school's component unit. | J40: 27 | K40: 23XX
A41: 28 | C41: Current Debt Payable | D41: Debt obligations due within one year of financial statement date. | J41: 28 | K41: 24XX
A42: 29 | C42: Current Lease Obligations Payable | D42: Lease obligations due within one year of financial statement date. | J42: 29 | K42: 24XX
A43: 30 | C43: TOTAL CURRENT LIABILITIES | D43: Calculates automatically. | J43: 30 | K43: NA
C44: Noncurrent Liabilities
A45: 31 | C45: Noncurrent Lease Obligations | D45: Lease obligations due after one year of financial statement date. | F45: =VLOOKUP($G$1&$A45, BAL, 6,FALSE) ->  | G45: =VLOOKUP($G$1&$A45, BAL, 7,FALSE) ->  | H45: =VLOOKUP($G$1&$A45, BAL, 8,FALSE) ->  | J45: =A45 -> 31 | K45: 26XX
A46: 32 | C46: Long-Term Debt | D46: Debt obligations due after one year of financial statement date. | F46: =VLOOKUP($G$1&$A46, BAL, 6,FALSE) ->  | G46: =VLOOKUP($G$1&$A46, BAL, 7,FALSE) ->  | H46: =VLOOKUP($G$1&$A46, BAL, 8,FALSE) ->  | J46: =A46 -> 32 | K46: 26XX
A47: 33 | C47: Deferred Revenue | D47: Cash received for services not performed (i.e., grant funds received that were not expended). | F47: =VLOOKUP($G$1&$A47, BAL, 6,FALSE) ->  | G47: =VLOOKUP($G$1&$A47, BAL, 7,FALSE) ->  | H47: =VLOOKUP($G$1&$A47, BAL, 8,FALSE) ->  | J47: =A47 -> 33 | K47: 2XXX
A48: 34 | C48: TOTAL NONCURRENT LIABILITIES | D48: Calculates automatically. | F48: =VLOOKUP($G$1&$A48, BAL, 6,FALSE) ->  | G48: =VLOOKUP($G$1&$A48, BAL, 7,FALSE) ->  | H48: =VLOOKUP($G$1&$A48, BAL, 8,FALSE) ->  | J48: =A48 -> 34 | K48: NA
A49: 35 | C49: TOTAL LIABILITIES | D49: Calculates automatically. | F49: =VLOOKUP($G$1&$A49, BAL, 6,FALSE) ->  | G49: =VLOOKUP($G$1&$A49, BAL, 7,FALSE) ->  | H49: =VLOOKUP($G$1&$A49, BAL, 8,FALSE) ->  | J49: =A49 -> 35 | K49: NA
C51: NET ASSETS
A52: 36 | C52: Investment in capital assets (net of related debt) | D52: Represents capital assets reduced by accumulated depreciation and any outstanding debt used to acquire, construct or improve those assets. | F52: =VLOOKUP($G$1&$A52, BAL, 6,FALSE) ->  | G52: =VLOOKUP($G$1&$A52, BAL, 7,FALSE) ->  | H52: =VLOOKUP($G$1&$A52, BAL, 8,FALSE) ->  | J52: =A52 -> 36 | K52: 3XXX
A53: 37 | C53: Temporarily Restricted | D53: Net assets that are temporarily restricted by a funder or the school's Board for a specific purpose. | J53: 37 | K53: 32XX
A54: 38 | C54: Permanently Restricted | D54: Net assets that are restricted by an outside agency or person, as contrasted with assets over which the entity has control and discretion. E.g., a donor scholarship fund. | J54: 38 | K54: 33XX
A55: 39 | C55: Unrestricted (non-capital) | D55: Net assets that do not meet the definitions of any of the above categories. | J55: 39 | K55: 30XX
A56: 40 | C56: TOTAL NET ASSETS | D56: Calculates automatically. | J56: 40 | K56: NA
A57: 41 | C57: TOTAL LIABILITIES AND NET ASSETS | D57: Calculates automatically. MUST RECONCILE WITH LINE 23 (TOTAL ASSETS) | J57: 41 | K57: NA

Sheet 2. Stmt Rev, Exp and Change
B1: NAME: | C1: =SCHOOLNAME ->  | F1: LEA | G1: =LEA ->  | M1: =3 -> 3
A3: Statement of Revenues, Expenses and Change in Net Position
A4: =YEAREND -> For the Year Ended June 30, 2017
D6: Restricted – The use of these funds are restricted to a particular purpose or project. Unrestricted – These use of these funds are unrestricted and came be used toward any purpose. | F6: =C1 ->  | G6: ABC Charter School Foundation (Component Unit) | H6: 2015 Total (Memorandum Only) | J6: Line | K6: Rec. Acct#
C7: REVENUES
A8: 1 | C8: Tuition | D8: Total tuition paid to the charter school by either the Commonwealth or sending school district (Horace Mann), inclusive of local transportation and facilities reimbursement embedded in Commonwealth tuition payments. This should include any reimbursements received for local transportation reimbursement, if applicable. | F8: =VLOOKUP($G$1&$A8, INC, 6,FALSE) ->  | H8: =VLOOKUP($G$1&$A8, INC, 8,FALSE) ->  | J8: =A8 -> 1 | K8: 4000
A9: 2a | B9: ^ | C9: Grants - State - passed through ESE | D9: Grants awarded through the ESE. | G9: =VLOOKUP($G$1&$A9, INC, 7,FALSE) ->  | J9: 2a | K9: 41XX
A10: 2b | B10: ^ | C10: Grants - State - other non-ESE pass-through | D10: Grants awarded directly by the Commonwealth of MA. | J10: 2b | K10: 41XX
A11: 3 | B11: ^ | C11: Grants - Federal - Passed through ESE | D11: Grants from federal sources that pass through ESE such as Title I, IDEA, Charter School Start-Up Assistance, etc. | J11: 3 | K11: 41XX
A12: 4 | B12: ^ | C12: Grants - Federal - Direct or other pass-through | D12: Grants from federal sources awarded directly from federal agencies or passed-through other agencies. | J12: 4 | K12: 41XX
A13: 5a | B13: ^ | C13: Grants - Private (restricted) | D13: Grants awarded by private (non-governmental) foundations, corporations, or individuals that are restricted. | J13: 5a | K13: 41XX
A14: 5b | C14: Grants - Private (unrestricted) | D14: Grants awarded by private (non-governmental) foundations, corporations, or individuals that are unrestricted. | J14: 5b | K14: 41XX
A15: 6 | B15: ^ | C15: Nutrition Funding - State | D15: Funding for nutrition programs is split between the federal and state governments. | J15: 6 | K15: 42XX
A16: 7 | B16: ^ | C16: Nutrition Funding - Federal | D16: Funding for nutrition programs is split between the federal and state governments. | J16: 7 | K16: 42XX
A17: 8 | C17: Nutrition Funding - Fees | D17: Fees collected from students for nutrition programs. | J17: 8 | K17: 42XX
A18: 9 | C18: Other Program / Student Activity Fees | D18: Any fees that the school collects for transportation, uniforms, etc. | G18: =VLOOKUP($G$1&$A18, INC, 7,FALSE) ->  | J18: 9 | K18: 43XX
A19: 10 | C19: Regional Transportation Aid | D19: Reimbursements from the Commonwealth for regional transportation costs, if applicable. | J19: 10 | K19: 45XX
A20: 11 | C20: Medicaid Reimbursements | D20: Reimbursement from Medicaid | J20: 11 | K20: 45XX
A21: 12 | C21: Circuit Breaker Reimbursements | D21: Reimbursements from the Commonwealth for high-cost special education students, if applicable. | J21: 12 | K21: 45XX
A22: 13a | C22: Contributions, in-kind, host district | D22: Recorded monetary value of in-kind donations for services that would otherwise have been purchased, provided by the school's host district (e.g. transportation, food). | J22: 13a | K22: 44XX
A23: 13b | C23: Contributions, in-kind, other | D23: Recorded monetary value of in-kind donations for services that would otherwise have been purchased, provided by individuals/organizations other than the host district. | G23: =VLOOKUP($G$1&$A23, INC, 7,FALSE) ->  | J23: 13b | K23: 44XX
A24: 13c | C24: Contributions, on-behalf, pension | D24: In accordance with GASB 68, recorded retirement payments to former retired School’s employees. | J24: 13c | K24: 44XX
A25: 14 | C25: Contributions, from Component Unit (restricted) | D25: Restricted contributions made to the School by the Component Unit | J25: 14 | K25: 44XX
A26: 14b | C26: Contributions, from Component Unit (unrestricted) | D26: Unrestricted contributions made to the School by the Component Unit | J26: 14b | K26: 44XX
A27: 15 | C27: Contributions / Fundraising (restricted) | D27: Restricted donations from individuals, businesses, or corporations. | J27: 15 | K27: 44XX
A28: 15b | C28: Contributions / Fundraising (unrestricted) | D28: Unrestricted donations from individuals, businesses, or corporations. | J28: 15b | K28: 44XX
A29: 16 | C29: Interest / Investment Income (restricted) | D29: Restricted income generated from interest/investments. | J29: 16 | K29: 47XX
A30: 16a | C30: Interest / Investment Income (unrestricted) | D30: Unrestricted income generated from interest/investments. | J30: 16b | K30: 47XX
A31: 17 | C31: Rental Income | D31: Income generated from rental of space. | J31: =A31 -> 17 | K31: 46XX
A32: 18 | C32: Loan Forgiveness or Other Reimbursement | D32: Revenue recorded for loan forgiveness or other credit. | J32: =A32 -> 18 | K32: 4XXX
A33: 19 | C33: Miscellaneous Income | D33: Miscellaneous Income. | J33: =A33 -> 19 | K33: 4XXX
A34: 20 | C34: TOTAL REVENUES | D34: Calculates automatically. | J34: =A34 -> 20 | K34: NA
B35: ^ | C35: Non-"General Fund" revenue sources
C37: EXPENSES
A38: 21 | C38: Administration | D38: Charter School figures will be populated from the Sch_FuncExp sheet. | F38: =VLOOKUP($G$1&$A38, INC, 6,FALSE) ->  | H38: =VLOOKUP($G$1&$A38, INC, 8,FALSE) ->  | J38: =A38 -> 21 | K38: NA
A39: 22 | C39: Instructional Services | D39: Charter School figures will be populated from the Sch_FuncExp sheet. | J39: 22 | K39: NA
A40: 23 | C40: Pupil Services | D40: Charter School figures will be populated from the Sch_FuncExp sheet. | J40: 23 | K40: NA
A41: 24 | C41: Operation & Maintenance of Plant | D41: Charter School figures will be populated from the Sch_FuncExp sheet. | J41: 24 | K41: NA
A42: 25 | C42: Fixed Charges | D42: Charter School figures will be populated from the Sch_FuncExp sheet. | J42: 25 | K42: NA
A43: 26 | C43: Community Services | D43: Charter School figures will be populated from the Sch_FuncExp sheet. | J43: 26 | K43: NA
A44: 27 | C44: Non-Operating Financing Expenses | D44: Charter School figures will be populated from the Sch_FuncExp sheet. | J44: 27 | K44: NA
A45: 28 | C45: Component Unit Expenses | D45: Aggregate operating expenses for the Component Unit. | G45: =VLOOKUP($G$1&$A45, INC, 7,FALSE) ->  | J45: 28 | K45: NA
A46: 29 | C46: Contributions to School | D46: Contributions made by the Component Unit to the School | G46: =VLOOKUP($G$1&$A46, INC, 7,FALSE) ->  | J46: 29 | K46: NA
A47: 30 | C47: TOTAL EXPENSES | D47: Calculates automatically. | F47: =VLOOKUP($G$1&$A47, INC, 6,FALSE) ->  | G47: =VLOOKUP($G$1&$A47, INC, 7,FALSE) ->  | J47: 30 | K47: NA
A49: 31 | C49: TOTAL GAIN/(LOSS) | D49: Calculates automatically. | F49: =VLOOKUP($G$1&$A49, INC, 6,FALSE) ->  | G49: =VLOOKUP($G$1&$A49, INC, 7,FALSE) ->  | H49: =VLOOKUP($G$1&$A49, INC, 8,FALSE) ->  | J49: =A49 -> 31 | K49: NA
A50: 32 | C50: Gain/Loss on Sale of Asset or Lease Transaction | D50: Gain/Loss recorded on sale of school assets or lease transaction. | F50: =VLOOKUP($G$1&$A50, INC, 6,FALSE) ->  | G50: =VLOOKUP($G$1&$A50, INC, 7,FALSE) ->  | H50: =VLOOKUP($G$1&$A50, INC, 8,FALSE) ->  | J50: =A50 -> 32 | K50: 5XXX
A51: 33 | C51: Other Gain/Loss | D51: Other Gain or Loss that is a non-recurring, unusual occurrence such as a prior-period adjustment | F51: =VLOOKUP($G$1&$A51, INC, 6,FALSE) ->  | G51: =VLOOKUP($G$1&$A51, INC, 7,FALSE) ->  | H51: =VLOOKUP($G$1&$A51, INC, 8,FALSE) ->  | J51: =A51 -> 33 | K51: 5XXX
A52: 34 | C52: TOTAL CHANGES IN NET ASSETS: | D52: Calculates automatically. | F52: =VLOOKUP($G$1&$A52, INC, 6,FALSE) ->  | G52: =VLOOKUP($G$1&$A52, INC, 7,FALSE) ->  | H52: =VLOOKUP($G$1&$A52, INC, 8,FALSE) ->  | J52: =A52 -> 34 | K52: NA
A54: 35 | C54: NET ASSETS AT BEGINNING OF YEAR | D54: Please enter values from previous year's audit. | F54: =VLOOKUP($G$1&$A54, INC, 6,FALSE) ->  | G54: =VLOOKUP($G$1&$A54, INC, 7,FALSE) ->  | H54: =VLOOKUP($G$1&$A54, INC, 8,FALSE) ->  | J54: =A54 -> 35 | K54: NA
A55: 36 | C55: NET ASSETS AT END OF YEAR | D55: Calculates automatically. MUST RECONCILE WITH BALANCE SHEET LINE 40 (TOTAL NET ASSETS) | F55: =VLOOKUP($G$1&$A55, INC, 6,FALSE) ->  | G55: =VLOOKUP($G$1&$A55, INC, 7,FALSE) ->  | H55: =VLOOKUP($G$1&$A55, INC, 8,FALSE) ->  | J55: =A55 -> 36 | K55: NA
F56: 0 | G56: 0 | H56: 0

Sheet 3. Schedule of Func Exp
B1: NAME: | C1: =SCHOOLNAME ->  | H1: =LEA -> 
A3: Schedule of Functional Expenses
A4: =YEAREND -> For the Year Ended June 30, 2017
F5: "General" Fund
F6: 1 | G6: 2 | H6: 3 | I6: 4 | J6: 5 | K6: 6 | L6: 7
F7: General Education | G7: Special Education | H7: Undistributed | I7: State Grants & Nut. Reimb. | J7: Federal Grants & Nut. Reimb. | K7: Private Grants (Designated) | L7: TOTAL | O7: Rec. | Q7: Crosswalk to EOYR, if possible
A8: Line | C8: Functional Category | D8: For salaried personnel, please provide a full-time equivalency (FTE) total that corresponds to the salary expense reported. | F8: Expenses | G8: Expenses | H8: Expenses | I8: Expenses | J8: Expenses | K8: Expenses | L8: Expenses | N8: Line | O8: Acct# | S8: Defintions
A10: 100 | C10: Administration | D10: =C10&" - Calculates automatically." -> Administration - Calculates automatically. | H10: =VLOOKUP($H$1&$A10, FE, 8,FALSE) ->  | I10: =VLOOKUP($H$1&$A10, FE, 9,FALSE) ->  | J10: =VLOOKUP($H$1&$A10, FE, 10,FALSE) ->  | K10: =VLOOKUP($H$1&$A10, FE, 11,FALSE) ->  | L10: =VLOOKUP($H$1&$A10, FE, 12,FALSE) ->  | N10: =A10 -> 100 | O10: NA | Q10: 1000 series | S10: 1 | T10: General Education | U10: Expenditures from "operating" revenues recognized on all lines except 2 - 5a and 6 - 7 of the Income Statement for General Education programs (defined as non-special education programs). These expenditures should include English Language Learner programs, required summer school, and extended programs.
A11: 110 | C11: Subtotal - Board of Trustees | D11: Calculates automatically | H11: =VLOOKUP($H$1&$A11, FE, 8,FALSE) ->  | N11: 110 | O11: NA | Q11: 1100 | S11: 2 | T11: Special Education | U11: Expenditures from "operating" revenues recognized on all lines except 2 - 5a and 6 - 7 of the Income Statement for Special Education, defined as programs for instruction of students with special needs, provided for under MGL Ch. 71B and 603 CMR 28.00. Note that all special education expenditures by charter schools will be for "in-district" students, as the fiscal responsibility of any special needs student currently enrolled in or determined to require a private day or residential school shall remain with the school district where the student resides per MGL Chapter 71 Section 89(s).
A12: 111 | C12: Contracted Services | D12: Contracted professional services, including all related expenses covered by the contract. (Ex: board training consultant, facilitator for board retreat, board attorney) | N12: 111 | O12: 53X1 | Q12: 1100 | S12: 3 | T12: Undistributed | U12: Expenditures that cannot be assigned to either General Education and Special Education program areas from "operating" revenues recognized on all lines except 2 - 5a and 6 - 7 of the Income Statement.
A13: 112 | C13: Travel and other expenses | D13: Travel and other expenses for board members such as dues, subscriptions and memberships. (Ex: board member travels to charter school conference, dues for board-specific professional association) | N13: 112 | O13: 57X1 | Q13: 1100 | S13: 4 | T13: State Grants & Funding | U13: Expenditures from state revenue sources recognized in Line 2 and 6 of the Income Statement. Amounts here should reconcile with final expenditure reports for state grants filed with ESE.
A14: 120 | C14: Subtotal - School Leaders | D14: Calculates automatically | N14: 120 | O14: NA | Q14: 1210, 1220 | S14: 5 | T14: Federal Grants & Funding | U14: Expenditures from federal revenue sources recognized in Line 3, 4, and 7 of the Income Statement. Amounts here should reconcile with final expenditure reports for state and federal grants filed with ESE.
A15: 121 | C15: Salaries - Professional | D15: Salaries for non-instructional school-wide administrative personnel (Ex: executive director). Principals and Instructional Leaders should be noted in Instructional Services. If role is instructional and administrative, split accordingly. | N15: 121 | O15: 5XX1 | Q15: 1210, 1220 | S15: 6 | T15: Private Grants (Restricted) | U15: Expenditures from restricted private grants for operating expenses listed in the Income Statement as line 5a. Note that all other private donations/contributions should be captured in the "general fund" columns.
A16: 122 | C16: Contracted Services | D16: Contracted professional services, including all related expenses covered by the contract. (Ex: interim school leader) | N16: 122 | O16: 53X1 | Q16: 1210, 1220
A17: 130 | C17: Subtotal - Business and Finance | D17: Calculates automatically | N17: 130 | O17: NA | Q17: 1410
A18: 131 | C18: Salaries - Professional | D18: Salaries for non-instructional school-wide administrative personnel. (Ex: business manager, accountant, chief financial officer) | N18: 131 | O18: 5XX1 | Q18: 1410
A19: 132 | C19: Contracted Services | D19: Contracted professional services, including all related expenses covered by the contract. (Ex: contracted accounting/book keeping firm, auditor) | N19: 132 | O19: 53X1 | Q19: 1410
A20: 140 | C20: Subtotal - Human Resources | D20: Calculates automatically | N20: 140 | O20: NA | Q20: 1420
A21: 141 | C21: Salaries - Professional | D21: Salaries for non-instructional school-wide administrative personnel. (Ex: HR director, Staff Recruitment) | N21: 141 | O21: 5XX1 | Q21: 1420
A22: 142 | C22: Contracted Services | D22: Contracted professional services, including all related expenses covered by the contract. (Ex: contracted HR company, payroll company) | N22: 142 | O22: 53X1 | Q22: 1420
A23: 150 | C23: Subtotal - Legal Services | D23: Calculates automatically | N23: 150 | O23: NA | Q23: 1430, 1435
A24: 151 | C24: Salaries - Professional | D24: Salaries for non-instructional school-wide administrative personnel. (Ex. school attorney) | N24: 151 | O24: 5XX1 | Q24: 1430, 1435
A25: 152 | C25: Contracted Services | D25: Contracted professional services, including all related expenses covered by the contract. (Ex: contracted attorney) | N25: 152 | O25: 53X1 | Q25: 1430, 1435
A26: 160 | C26: Subtotal - Info. Management & Technology | D26: Calculates automatically | N26: 160 | O26: NA | Q26: 1450
A27: 161 | C27: Salaries - Professional | D27: Salaries for non-instructional school-wide administrative personnel. (Ex: network support technician, Enrollment Director/Registrar, SIMS administrator) | N27: 161 | O27: 5XX1 | Q27: 1450
A28: 162 | C28: Contracted Services | D28: Contracted professional services, including all related expenses covered by the contract. (Ex: contracted IT professional) | N28: 162 | O28: 53X1 | Q28: 1450
A29: 163 | C29: Supplies and Materials | D29: Materials and items of an expendable nature. Unit price of less than $5000. (Ex: non-instructional computers, non-instructional software such accounting software) | N29: 163 | O29: 54X1 | Q29: 1230
A30: 164 | C30: Depreciation for Information Technology | D30: Annual depreciation expense for capitalized Information Management and Technology. | N30: 164 | O30: 5701 | Q30: 1450
A31: 170 | C31: Subtotal - Development (Private) | D31: Calculates automatically | N31: 170 | O31: NA | Q31: 1230
A32: 170a | C32: Salaries - Professional - Private | D32: Salaries apportioned to private development personnel (this could be % of a salary). (Ex: grant writer) | N32: 170a | O32: 5XX1 | Q32: 1230
A33: 170b | C33: Contracted Services - Private | D33: Contracts apportioned to professional services for private development (including all related expenses covered by the contract). (Ex: contracted fundraiser, contracted grant writer) | N33: 170b | O33: 53X1 | Q33: 1230??
A34: 170c | C34: Fundraising - Private | D34: Expenses related to private fundraising. (Ex: invitations to fundraiser, fundraising software, space rental for fundraising event) | N34: 170c | O34: 5891
A35: 171 | C35: Subtotal - Development (Public) | D35: Calculates automatically | N35: 171 | O35: NA
A36: 171a | C36: Salaries - Professional - Public | D36: Salaries apportioned to public development personnel (this could be a % of a salary). (Ex: grant writer) | N36: 171a | O36: 5XX1
A37: 171b | C37: Contracted Services - Public | D37: Contracts apportioned to professional services for public development (including all related expenses covered by the contract). (Ex: contracted grant writer) | N37: 171b | O37: 53X1
A38: 180 | C38: Subtotal - Other Administration | D38: Calculates automatically | N38: 180 | O38: NA | Q38: 1230
A39: 181 | C39: Salaries | D39: Salaries for student recruitment personnel and administrative support personnel who prepare, transcribe, systematize or preserve communications, records and transactions. (Ex: registrar, office secretary) | N39: 181 | O39: 5XX1 | Q39: 1230
A40: 182 | C40: Contracted Services | D40: Contracts for student recruitment personnel and administrative support personnel who prepare, transcribe, systematize or preserve communications, records and transactions. (Ex: registrar, office secretary) | N40: 182
A41: 183 | C41: Recruitment/Advertising | D41: Recruiting/advertising for students, staff, and board members. (Ex: brochures for open house) | N41: =A41 -> 183 | O41: 58X1 | Q41: 1230??
A42: 184 | C42: Travel, Dues, and other expenses | D42: Travel and other expenses for non-instructional staff and the school such as dues, subscriptions and memberships. (Ex: IT director attends IT conference, business manager attends finance conference) | N42: 184 | O42: 57X1 | Q42: 1230
A43: 185 | C43: Supplies and Materials | D43: Materials and items of an expendable nature. Unit price of less than $5000. (Ex: office furniture, office supplies) | L43: =SUM(F43,G43,H43,I43,J43,K43) ->  | N43: 185 | O43: 54X1 | Q43: 1230
A45: 200 | C45: Instructional Services | D45: Calculates automatically | F45: =VLOOKUP($H$1&$A45, FE, 6,FALSE) ->  | G45: =VLOOKUP($H$1&$A45, FE, 7,FALSE) ->  | H45: =VLOOKUP($H$1&$A45, FE, 8,FALSE) ->  | I45: =VLOOKUP($H$1&$A45, FE, 9,FALSE) ->  | J45: =VLOOKUP($H$1&$A45, FE, 10,FALSE) ->  | K45: =VLOOKUP($H$1&$A45, FE, 11,FALSE) ->  | L45: =VLOOKUP($H$1&$A45, FE, 12,FALSE) ->  | N45: =A45 -> 200 | O45: NA | Q45: 2000 series
A46: 210 | C46: Subtotal - Instructional Leadership | D46: Calculates automatically | N46: 210 | O46: NA | Q46: 2100s, 2200s, 2315
A47: 211 | C47: Salaries - Professional | D47: Salaries for instructional personnel in leadership roles. (Ex: Principal/Asst. Principals (undistributed), Curriculum Directors (including SPED), Department Heads, Technology/Instructional Coordinators, Team Leaders) | N47: 211 | O47: 5XX2 | Q47: 2110, 2120, 2210, 2220, 2250, 2315
A48: 212 | C48: Salaries - Clerical | D48: Salaries for administrative support personnel who prepare, transcribe, systematize or preserve communications, records and transactions. (Ex: secretary) | N48: 212 | O48: 5XX2 | Q48: 2110, 2120, 2210, 2220, 2250, 2315
A49: 213 | C49: Contracted Services | D49: Contracted professional services, including all related expenses covered by the contract. (Ex: contracted instructional consultant) | N49: 213 | O49: 53X2 | Q49: 2110, 2120, 2210, 2220, 2250, 2315
A50: 214 | C50: Supplies and Materials | D50: Materials and items of an expendable nature. Unit price of less than $5000. (Ex: white boards, instructional computers) | N50: 214 | O50: 54X2 | Q50: 2110, 2120, 2210, 2220, 2250, 2315
A51: 215 | C51: Travel and other expenses | D51: Travel and other expenses for staff such as dues, subscriptions and memberships. (Ex: teaching seminar) | N51: 215 | O51: 57X2 | Q51: 2110, 2120, 2210, 2220, 2250, 2315
A52: 220 | C52: Subtotal - Classroom and Specialist Teachers | D52: Calculates automatically | N52: 220 | O52: NA | Q52: 2300
A53: 221 | C53: Salaries - Teachers, Classroom | D53: Salaries for teachers with primary responsibility for teaching designated curriculum to established "classes" of students in a group instruction setting. Also includes itinerant music, art, health, physical education teachers who travel from classroom-to-classroom. Teacher EPIMS codes: 2305 - Teacher, 2306 - Co Teacher, 2307 - Virtual Teacher, 2308 - Virtual Teacher – Co Teacher | N53: 221 | O53: 5XX2 | Q53: 2305
A54: 222 | C54: Salaries - Teachers, Specialists | D54: Salaries for teachers who provide individualized instruction to students (1-on-1 or small groups) to supplement the services delivered by the students' classroom teachers, e.g. reading recovery, Title I reading specialists, special education, academic support, and language acquisitions services. NOT paraprofessionals. Teacher EPIMS codes: 23010 - Teacher - specialized content instruction | N54: 222 | O54: 5XX2 | Q54: 2310
A55: 230 | C55: Subtotal - Other Teaching Services | D55: Calculates automatically | N55: 230 | O55: NA | Q55: 2300
A56: 231 | C56: Salaries - Professional | D56: Salaries for Medical/Therapeutic service professionals. (Ex: OT, PT, Speech, Vision and other therapeutic services that are provided by licensed practitioners, librarians, media center directors, substitute teachers on payroll, after-school teachers, MCAS administrator) | N56: 231 | O56: 5XX2 | Q56: 2320, 2325, 2340
A57: 232 | C57: Salaries - Nonclerical Paraprofessionals | D57: Salaries for paraprofessionals hired to assist teachers/specialists with classroom instruction in the preparation or reproduction of instructional materials or classroom instruction. (Ex: American Sign Language Specialists, general teacher's assistant, after-school employees) | N57: 232 | O57: 5XX2 | Q57: 2330
A58: 233 | C58: Salaries - Clerical | D58: Salaries for administrative support personnel who prepare, transcribe, systematize or preserve communications, records and transactions. (Ex: secretary, after-school employees) | N58: 233 | O58: 5XX2 | Q58: 2320, 2325, 2340
A59: 234 | C59: Contracted Services | D59: Contracted professional services, including all related expenses covered by the contract, for other teaching services (Ex: non-payroll substitute teachers should be included here, contracted OT, PT, after-school contracted workers) | N59: 234 | O59: 53X2 | Q59: 2320, 2325, 2340
A60: 240 | C60: Subtotal - Professional Development | D60: Calculates automatically | H60: =VLOOKUP($H$1&$A60, FE, 8,FALSE) ->  | N60: 240 | O60: NA | Q60: 2350s
A61: 241 | C61: Salaries - Professional | D61: Salaries for full-time or prorated salary of director/staff for professional development, including training for new teachers, new curriculum or instructional practices, master and mentor teachers, coaches; Also salaries of teacher/instructional staff. | H61: =VLOOKUP($H$1&$A61, FE, 8,FALSE) ->  | N61: 241 | O61: 5XX2 | Q61: 2351, 2353
A62: 242 | C62: Contracted Services | D62: Contracted professional services, including all related expenses covered by the contract, for professional development (Ex: non-payroll substitute teachers) | H62: =VLOOKUP($H$1&$A62, FE, 8,FALSE) ->  | N62: 242 | O62: 53X2 | Q62: 2351, 2353
A63: 243 | C63: Supplies and Materials | D63: Materials and items of an expendable nature. Unit price of less than $5000. (Ex: professional development handouts) | H63: =VLOOKUP($H$1&$A63, FE, 8,FALSE) ->  | N63: 243 | O63: 54X2 | Q63: 2351, 2353
A64: 244 | C64: Travel and other expenses | D64: Travel and other expenses for staff such as dues, subscriptions and memberships. (Ex: professional development seminar, tuition reimbursements for teacher higher education coursework) | H64: =VLOOKUP($H$1&$A64, FE, 8,FALSE) ->  | N64: 244 | O64: 57X2 | Q64: 2351, 2353
A65: 250 | C65: Subtotal - Guidance, Psychological & Testing | D65: Calculates automatically | N65: 250 | O65: NA | Q65: 2700s, 2800s
A66: 251 | C66: Salaries - Professional | D66: Salaries for Guidance, Pyschological & Testing Professionals (Ex: Director of Guidance, school social workers, and counselors for guidance, school adjustment, higher education, career planning, and workplace learning placement; psychological evaluations and other services provided by a licensed mental health professional.) | N66: 251 | O66: 5XX2 | Q66: 2710, 2720, 2800
A67: 252 | C67: Salaries - Clerical | D67: Salaries for administrative support personnel who prepare, transcribe, systematize or preserve communications, records and transactions. (Ex: secretary) | N67: 252 | O67: 5XX2 | Q67: 2710, 2720, 2800
A68: 253 | C68: Contracted Services | D68: Contracted professional services, including all related expenses covered by the contract, for guidance, psychological, and testing. (Ex: contracted guidance counselor) | N68: 253 | O68: 53X2 | Q68: 2710, 2720, 2800
A69: 254 | C69: Supplies and Materials | D69: Materials and items of an expendable nature. Unit price of less than $5000. (Ex: pyschological (not academic related) testing materials) | N69: 254 | O69: 54X2 | Q69: 2710, 2720, 2800
A70: 260 | C70: Subtotal - Materials, Equipment & Technology | D70: Calculates automatically | H70: =VLOOKUP($H$1&$A70, FE, 8,FALSE) ->  | N70: 260 | O70: NA | Q70: 2451
A71: 261 | C71: Textbooks & Related Media/Materials | D71: Expenditures for all textbooks and related media/materials (Ex: hard copy and online text books.) | N71: 261 | O71: 54X2 | Q71: 2410
A72: 262 | C72: Other Instructional Materials | D72: Books and other materials, excluding textbooks but including online materials, for use in school libraries or classroom libraries (Ex: trade books, subscription to online magazine, periodicals, reference materials, etc.) | N72: 262 | O72: 54X2 | Q72: 2415
A73: 263 | C73: Instructional Equipment | D73: Non-capitalized expenditures for purchase of science laboratory, physical education, equipment, irrespective of unit cost. Also includes lease/purchase of copy equipment primarily used to produce instructional materials. Does not include classroom technology equipment. | N73: 263 | O73: 54X2 | Q73: 2420
A74: 264 | C74: General Supplies | D74: Papers, pens, pencils, crayons, chalk, paint, toner printer cartridges, calculators, etc. | N74: 264 | O74: 54X2 | Q74: 2430
A75: 265 | C75: Other Instructional Services | D75: Cost for field trips, including admissions and transportation costs. Also, distance learning services. | N75: 265 | O75: 58X2 | Q75: 2440
A76: 266 | C76: Classroom Instructional Technology | D76: Computers, servers, networks, scanners, digital cameras, etc. used in the classroom or in computer laboratories. | H76: =VLOOKUP($H$1&$A76, FE, 8,FALSE) ->  | N76: 266 | O76: 54X2 | Q76: 2451
A77: 267 | C77: Other Instructional Hardware | D77: Computers, servers, networks, scanners, digital cameras, etc. for school libraries and media centers. | H77: =VLOOKUP($H$1&$A77, FE, 8,FALSE) ->  | N77: 267 | O77: 54X2 | Q77: 2453
A78: 268 | C78: Instructional Software | D78: Software licenses (Ex: Online textbook guide, student data communication software such as Edline, Powerschool) | F78: =VLOOKUP($H$1&$A78, FE, 6,FALSE) ->  | G78: =VLOOKUP($H$1&$A78, FE, 7,FALSE) ->  | N78: 268 | O78: 54X2 | Q78: 2455
A79: 269 | C79: Depreciation for Instructional Equipment | D79: Annual depreciation expense for capitalized Instructional Materials, Equipment, & Technology. | F79: =VLOOKUP($H$1&$A79, FE, 6,FALSE) ->  | G79: =VLOOKUP($H$1&$A79, FE, 7,FALSE) ->  | N79: 269 | O79: 5702 | Q79: NA
A81: 300 | C81: Pupil Services | D81: Calculates automatically | F81: =VLOOKUP($H$1&$A81, FE, 6,FALSE) ->  | G81: =VLOOKUP($H$1&$A81, FE, 7,FALSE) ->  | H81: =VLOOKUP($H$1&$A81, FE, 8,FALSE) ->  | I81: =VLOOKUP($H$1&$A81, FE, 9,FALSE) ->  | J81: =VLOOKUP($H$1&$A81, FE, 10,FALSE) ->  | K81: =VLOOKUP($H$1&$A81, FE, 11,FALSE) ->  | L81: =VLOOKUP($H$1&$A81, FE, 12,FALSE) ->  | N81: =A81 -> 300 | O81: NA | Q81: 3000 series
A82: 310 | C82: Health Services | D82: Salaries for school physicians, school nurses, and clerical support staff. Expenses for school medical supplies, dues and subscriptions, and travel. | N82: 310 | O82: 5XX3 | Q82: various salary 3000's
A83: 315 | C83: Health Services - Contracted | D83: Contracted services for school physicians, school nurses, and clerical support staff. Expenses for school medical supplies, dues and subscriptions, and travel. | N83: 315
A84: 320 | C84: Athletic Services | D84: Salaries for coaches, trainers and assistants. Expenses for athletic supplies, uniforms, travel expenses and transportation to and from athletic events. | N84: 320
A85: 325 | C85: Athletic Services - Contracted | D85: Contracted services for coaches, trainers and assistants. Expenses for athletic supplies, uniforms, travel expenses and transportation to and from athletic events. | N85: 325
A86: 330 | C86: Food Services | D86: Salaries for cafeteria workers, food directors, and other food-related services for personell on payroll. Expenses for food, supplies, dues and subscriptions, and travel. | N86: 330 | O86: 5XX3 | Q86: various salary 3000's
A87: 335 | C87: Food Services - Contracted | D87: Contracted services for cafeteria workers, food directors, and other food-related services for personell on payroll. Expenses for food, supplies, dues and subscriptions, and travel. | N87: 335
A88: 340 | C88: Student Transportation (to and from school) | D88: Salaries and related costs incurred by the school; Or, monetary fair market value of services provided by sending district. (Please note: More detail is required in the Schedule 7C worksheet for those seeking reimbursement.) | N88: 340 | O88: 58X3 | Q88: 3300
A89: 345 | C89: Student Transportation (to and from school) | D89: Contracted professional services and related costs incurred by the school; Or, monetary fair market value of services provided by sending district. (Please note: More detail is required in the Schedule 7C worksheet for those seeking reimbursement.) | N89: 345
A90: 350 | C90: Depreciation of Transportation Vehicles | D90: Annual depreciation expense for capitalized transportation vehicles. (Please note: More detail is required in the Schedule 7C worksheet for those seeking state or district reimbursement for transportation costs.) | N90: 350 | O90: 5703 | Q90: 3300
A91: 360 | C91: Other Student Activities | D91: Salaries and contracted services for other student activities such as musical directors, drama coaches and other extra-curricular personnel. Expenses for supplies and materials, travel expenses and transportation to and from related events. | N91: 360 | O91: 58X3 | Q91: 3520/3600
A93: 400 | C93: Operation & Maintenance of Plant | D93: Calculates automatically | H93: =VLOOKUP($H$1&$A93, FE, 8,FALSE) ->  | I93: =VLOOKUP($H$1&$A93, FE, 9,FALSE) ->  | J93: =VLOOKUP($H$1&$A93, FE, 10,FALSE) ->  | K93: =VLOOKUP($H$1&$A93, FE, 11,FALSE) ->  | L93: =VLOOKUP($H$1&$A93, FE, 12,FALSE) ->  | N93: =A93 -> 400 | O93: NA | Q93: 4000 series
A94: 410 | C94: Operation & Maintenance of Buildings and Grounds | D94: Salaries and contracted services for plant managers, custodians, maintenance, etc. Expenses for supplies and travel expenses. | N94: 410 | O94: 5XX4 | Q94: various 4000's salaries
A95: 420 | C95: Utilities | D95: Cost of fuel, oil, electricity, gas, water, trash, waste disposal, telephone services, etc. | N95: 420 | O95: 55X4 | Q95: 4120 and 4130
A96: 430 | C96: Maintenance of Equipment | D96: Equipment parts and repair, materials, and tools, contracted services, including vehicles. | N96: 430 | O96: 55X4 | Q96: 4230
A97: 440 | C97: Networking and Telecommunications | D97: Costs for installing and maintaining school technology infrastructure, including wiring, file servers, etc. | N97: 440 | O97: 54X4 | Q97: 4400
A99: 500 | C99: Fixed Charges | D99: Calculates automatically | H99: =VLOOKUP($H$1&$A99, FE, 8,FALSE) ->  | I99: =VLOOKUP($H$1&$A99, FE, 9,FALSE) ->  | J99: =VLOOKUP($H$1&$A99, FE, 10,FALSE) ->  | K99: =VLOOKUP($H$1&$A99, FE, 11,FALSE) ->  | L99: =VLOOKUP($H$1&$A99, FE, 12,FALSE) ->  | N99: =A99 -> 500 | O99: NA | Q99: 5000 series
A100: 510 | C100: Employee Retirement | D100: "Payroll taxes", including contributions to Medicaid, social security, pension plans, and other employee retirement systems, school's portion, for non-MTRS employees; and Federal grant MTRS "surcharge" | N100: 510 | O100: 52X5 | Q100: 5100
A101: 520 | C101: Fringe Benefits | D101: Employee unemployment, health, and life insurance premiums or payments, and worker's compensation or other benefits, paid by the school for the benefit of the employee. | N101: 520 | O101: 52X5 | Q101: 5200, 5250
A102: 530 | C102: Insurance (non-employee) | D102: Insurance premiums for property, fire, liability, fidelity bonds; self-insurance costs. | N102: 530 | O102: 52X5 | Q102: 5260
A103: 550 | C103: Rental/Lease of Equipment | D103: Annual operating lease/rental costs of equipment. | N103: 550 | O103: 56X5 | Q103: 5300
A104: 560 | C104: Short-Term Interest | D104: Interest costs for short-term (less than one year) lines of credit that are needed to sustain cash flow for ongoing operations. | N104: 560 | O104: 57X5 | Q104: 5400, 5450
A106: 600 | C106: Community Services | D106: Calculates automatically | H106: =VLOOKUP($H$1&$A106, FE, 8,FALSE) ->  | I106: =VLOOKUP($H$1&$A106, FE, 9,FALSE) ->  | J106: =VLOOKUP($H$1&$A106, FE, 10,FALSE) ->  | K106: =VLOOKUP($H$1&$A106, FE, 11,FALSE) ->  | L106: =VLOOKUP($H$1&$A106, FE, 12,FALSE) ->  | N106: =A106 -> 600 | O106: NA | Q106: 6000 series
A107: 610 | C107: Dissemination Activities | D107: Activities designed to disseminate the school's best practices to external groups, including presentations at or hosting of conferences, etc. | H107: =VLOOKUP($H$1&$A107, FE, 8,FALSE) ->  | I107: =VLOOKUP($H$1&$A107, FE, 9,FALSE) ->  | J107: =VLOOKUP($H$1&$A107, FE, 10,FALSE) ->  | K107: =VLOOKUP($H$1&$A107, FE, 11,FALSE) ->  | L107: =VLOOKUP($H$1&$A107, FE, 12,FALSE) ->  | N107: =A107 -> 610 | O107: 58X6 | Q107: 6200
A108: 620 | C108: Civic Activities | D108: Materials and items of an expendable nature. Unit price of less than $5000. (Ex: fundraising activities for a charitable agency) | H108: =VLOOKUP($H$1&$A108, FE, 8,FALSE) ->  | I108: =VLOOKUP($H$1&$A108, FE, 9,FALSE) ->  | J108: =VLOOKUP($H$1&$A108, FE, 10,FALSE) ->  | K108: =VLOOKUP($H$1&$A108, FE, 11,FALSE) ->  | L108: =VLOOKUP($H$1&$A108, FE, 12,FALSE) ->  | N108: =A108 -> 620 | O108: 58X6 | Q108: 6200
A110: 700 | C110: Non-Operating / Capital Facilities Costs | D110: Calculates automatically | H110: =VLOOKUP($H$1&$A110, FE, 8,FALSE) ->  | I110: =VLOOKUP($H$1&$A110, FE, 9,FALSE) ->  | J110: =VLOOKUP($H$1&$A110, FE, 10,FALSE) ->  | K110: =VLOOKUP($H$1&$A110, FE, 11,FALSE) ->  | L110: =VLOOKUP($H$1&$A110, FE, 12,FALSE) ->  | N110: =A110 -> 700 | O110: NA | Q110: 7000 series
A111: 720 | C111: Long-Term Interest, facilities related | D111: Annual debt service costs for long-term financing (greater than one year) related to capital facilities costs. | H111: =VLOOKUP($H$1&$A111, FE, 8,FALSE) ->  | N111: 720 | O111: 57X7 | Q111: 8200
A112: 725 | C112: Long-Term Interest, non-facilities related | D112: Annual debt service costs for long-term financing (greater than one year) not related to capital facilities costs | N112: 725 | O112: 57X7 | Q112: 8300
A113: 730 | C113: Other costs related to capital facilities acquisition | D113: Expenses (e.g.,architectural design, closing costs, site exploration, etc.) related to capital facilities acquisition or lease. | N113: 730 | O113: 58X7 | Q113: 8000
A114: 740 | C114: Rental/Lease of Buildings & Grounds | D114: Annual operating lease/rental costs of Building & Grounds. | N114: 740 | O114: 58X7 | Q114: 7000
A115: 750 | C115: Depreciation of Equipment, Building, & Grounds | D115: Annual depreciation expense for capitalized Equipment, Networking and Telecommunications, Building, & Grounds. | N115: 750 | O115: 5707 | Q115: 5350*
A116: 760 | C116: Bad debt / loss on disposal of assets | D116: Write-off costs for bad debt or loss on disposal of assets | N116: 760 | O116: 5707 | Q116: NA
A118: 800 | C118: TOTALS | D118: Calculates automatically | F118: =VLOOKUP($H$1&$A118, FE, 6,FALSE) ->  | G118: =VLOOKUP($H$1&$A118, FE, 7,FALSE) ->  | H118: =VLOOKUP($H$1&$A118, FE, 8,FALSE) ->  | I118: =VLOOKUP($H$1&$A118, FE, 9,FALSE) ->  | J118: =VLOOKUP($H$1&$A118, FE, 10,FALSE) ->  | K118: =VLOOKUP($H$1&$A118, FE, 11,FALSE) ->  | L118: =VLOOKUP($H$1&$A118, FE, 12,FALSE) ->  | N118: =A118 -> 800 | O118: NA
A120: 910 | C120: Reference: Capitalized Expenditures | D120: Reference line for cash expenditures that are not expensed in the fiscal year | H120: =VLOOKUP($H$1&$A120, FE, 8,FALSE) ->  | I120: =VLOOKUP($H$1&$A120, FE, 9,FALSE) ->  | J120: =VLOOKUP($H$1&$A120, FE, 10,FALSE) ->  | K120: =VLOOKUP($H$1&$A120, FE, 11,FALSE) ->  | L120: =VLOOKUP($H$1&$A120, FE, 12,FALSE) ->  | N120: =A120 -> 910
A121: 920 | C121: Reference: Deferrals/Carryovers | D121: Reference line for cash expenditures that are not expensed in the fiscal year | H121: =VLOOKUP($H$1&$A121, FE, 8,FALSE) ->  | I121: =VLOOKUP($H$1&$A121, FE, 9,FALSE) ->  | J121: =VLOOKUP($H$1&$A121, FE, 10,FALSE) ->  | K121: =VLOOKUP($H$1&$A121, FE, 11,FALSE) ->  | L121: =VLOOKUP($H$1&$A121, FE, 12,FALSE) ->  | N121: =A121 -> 920
A122: 900 | C122: Reference: Totals | H122: =VLOOKUP($H$1&$A122, FE, 8,FALSE) ->  | I122: =VLOOKUP($H$1&$A122, FE, 9,FALSE) ->  | J122: =VLOOKUP($H$1&$A122, FE, 10,FALSE) ->  | K122: =VLOOKUP($H$1&$A122, FE, 11,FALSE) ->  | L122: =VLOOKUP($H$1&$A122, FE, 12,FALSE) ->  | N122: =A122 -> 900

Sheet 4. EXPPP
A1: Massachusetts Department of Elementary and Secondary Education
A2: FY17 Charter School Expenditures Per Pupil, All Funds, Summary By Function
A3: =Index!B3 -> Last Updated: May 2018
B4: Return to Index | F4: ----------------------------- Operating Expenditures Per Pupil In The Charter School ------------------------------------------- | S4: --- Exp pp Facilities Costs2 ---
E5: fte pupils | G5: instruc- | H5: classroom & | I5: other | J5: profes- | K5: instructn'l | L5: guidance, | N5: operations | O5: insurance, | P5: total operating | Q5: total operating | S5: Rental/Lease of | T5: Capital
D6: location | E6: at the | F6: admini- | G6: tional | H6: specialist | I6: teaching | J6: sional dev- | K6: materials, | L6: counseling | M6: pupil | N6: and | O6: retirement | P6: expenditures | Q6: expenditures | S6: Building & | T6: Facilities
A7: LEA | B7: Charter School | C7: type | D7: in FY14 | E7: charter | F7: stration | G7: leadership | H7: teachers | I7: services | J7: elopment | K7: equip & tech | L7: & testing | M7: services | N7: maintenance | O7: & other 1 | P7: aggregate | Q7: per pupil | S7: Grounds | T7: Expenses3
F8: 100 | G8: 210 | H8: 220 | I8: 230 | J8: 240 | K8: 260 | L8: 250 | M8: 300 | N8: 400 | O8: 500 | S8: 540 | T8: 720
A9: 445 | B9: Abby Kelley Foster Charter Public School | C9: =VLOOKUP(A9, TYPE, 3, FALSE) -> C | D9: =VLOOKUP(A9, FACTS, 6, FALSE) -> Worcester | E9: =VLOOKUP(A9, FTE, 2, FALSE) -> 1424.914776 | F9: =VLOOKUP($A9&100, FE, 12, FALSE)/$E9 -> 762.2913792 | G9: =VLOOKUP($A9&210, FE, 12, FALSE)/$E9 -> 905.6160211 | H9: =VLOOKUP($A9&220, FE, 12, FALSE)/$E9 -> 4376.218448 | I9: =VLOOKUP($A9&230, FE, 12, FALSE)/$E9 -> 855.922221 | J9: =VLOOKUP($A9&240, FE, 12, FALSE)/$E9 -> 44.79484743 | K9: =VLOOKUP($A9&260, FE, 12, FALSE)/$E9 -> 308.6889177 | L9: =VLOOKUP($A9&250, FE, 12, FALSE)/$E9 -> 364.5616978 | M9: =VLOOKUP($A9&300, FE, 12, FALSE)/$E9 -> 1506.589107 | N9: =VLOOKUP($A9&400, FE, 12, FALSE)/$E9 -> 1158.893162 | O9: =VLOOKUP($A9&500, FE, 12, FALSE)/$E9 -> 2394.571098 | P9: =VLOOKUP($A9&800,FE,12,FALSE)-VLOOKUP($A9&700,FE,12,FALSE)-VLOOKUP($A9&600,FE,12,FALSE) -> 18065278.85 | Q9: =SUM(F9:O9) -> 12678.1469 | S9: =VLOOKUP($A9&740, FE, 12, FALSE)/$E9 -> 0 | T9: =(VLOOKUP($A9&700, FE, 12, FALSE)-VLOOKUP($A9&740, FE, 12, FALSE)-VLOOKUP($A9&725, FE, 12, FALSE))/$E9 -> 1501.173646
A10: 412 | B10: Academy of the Pacific Rim Charter Public School | C10: C | D10: Boston | E10: 520.1760797 | F10: 1639.208401 | G10: 1336.945367 | H10: 5451.661679 | I10: 497.8756427 | J10: 385.359896 | K10: 878.9965895 | L10: 629.3734233 | M10: 2523.472438 | N10: 999.2289539 | O10: 4090.33995 | P10: 9588126 | Q10: =SUM(F10:O10) -> 18432.46234 | S10: 0 | T10: 3559.050622
A11: 430 | B11: Advanced Math and Science Academy Charter School | C11: C | D11: Marlborough | E11: 969.5945946 | F11: 2601.590494 | G11: 709.5079983 | H11: 4901.159801 | I11: 108.5562157 | J11: 257.3992072 | K11: 348.7093285 | L11: 286.6476273 | M11: 1509.871629 | N11: 685.2049544 | O11: 3416.113238 | P11: 14374007.64 | Q11: 14824.76049 | S11: 1638.095374 | T11: 20.33342606
A12: 409 | B12: Alma del Mar Charter School | C12: C | D12: New Bedford | E12: 322.4177632 | F12: 1750.098985 | G12: 584.3846758 | H12: 4888.192215 | I12: 1164.067377 | J12: 347.3816049 | K12: 700.2529817 | L12: 167.4287405 | M12: 2495.650339 | N12: 816.8284446 | O12: 2628.474907 | P12: 5011262 | Q12: 15542.76027 | S12: 1021.798541 | T12: 50.07478447
A13: 3509 | B13: Argosy Collegiate Charter School | C13: C | D13: Fall River | E13: 306.3531353 | F13: 1714.331272 | G13: 1033.496261 | H13: 4047.13573 | I13: 322.5721842 | J13: 241.5814675 | K13: 1025.274442 | L13: 441.7393994 | M13: 2385.79383 | N13: 663.0316996 | O13: 1730.24725 | P13: 4167996.76 | Q13: 13605.20354 | S13: 1110.411355 | T13: 464.1944985
A14: 491 | B14: Atlantis Charter School | C14: C | D14: Fall River | E14: 1102.930706 | F14: 1034.137361 | G14: 901.8079146 | H14: 3776.308844 | I14: 1847.695598 | J14: 37.64606405 | K14: 277.1842314 | L14: 310.7432118 | M14: 1256.61598 | N14: 706.7288958 | O14: 3461.386993 | P14: 15011168.26 | Q14: 13610.25509 | S14: 819.88469 | T14: 437.1317231
A15: 427 | B15: Barnstable Community Horace Mann Charter Public School | C15: HM | D15: Barnstable | E15: 287.4111111 | F15: 893.6989214 | G15: 50.40514942 | H15: 5682.991843 | I15: 1211.811188 | J15: 13.75033827 | K15: 56.83148413 | L15: 732.5082151 | M15: 1482.0617 | N15: 909.8152086 | O15: 1331.997912 | P15: 3554089 | Q15: 12365.87196 | S15: 518.8560714 | T15: 0
A16: 3502 | B16: Baystate Academy Charter Public School | C16: C | D16: Springfield | E16: 386.4123711 | F16: 1213.690438 | G16: 1100.138173 | H16: 4300.113361 | I16: 827.1577824 | J16: 346.7332053 | K16: 652.9708127 | L16: 519.8824236 | M16: 2810.259405 | N16: 488.5946054 | O16: 2429.981725 | P16: 5676213 | Q16: 14689.52193 | S16: 1425.055307 | T16: 320.9861
A17: 420 | B17: Benjamin Banneker Charter Public School | C17: C | D17: Cambridge | E17: 345.8728522 | F17: 2789.495602 | G17: 1799.586773 | H17: 4918.546336 | I17: 2507.689385 | J17: 201.8142781 | K17: 835.5475954 | L17: 314.7457781 | M17: 3116.014319 | N17: 1077.691173 | O17: 4451.649906 | P17: 7613623.4 | Q17: 22012.78114 | S17: 1349.559519 | T17: 384.844457
A18: 447 | B18: Benjamin Franklin Classical Charter Public School | C18: C | D18: Franklin | E18: 448.1076389 | F18: 1447.803527 | G18: 627.3750894 | H18: 4465.496806 | I18: 1371.159754 | J18: 80.97558901 | K18: 483.9480544 | L18: 313.1000854 | M18: 789.9556251 | N18: 540.1424323 | O18: 3325.013101 | P18: 6024793.79 | Q18: 13444.97006 | S18: 557.9016698 | T18: 100.5405757
A19: 3511 | B19: Bentley Academy Charter School | C19: HM | D19: Salem | E19: 256.6541963 | F19: 2318.723047 | G19: 1013.831076 | H19: 6634.666507 | I19: 1377.912402 | J19: 134.523419 | K19: 171.545997 | L19: 245.2482792 | M19: 1941.659272 | N19: 1069.774054 | O19: 1150.692271 | P19: 4121501 | Q19: 16058.57632 | S19: 0 | T19: 0
A20: 414 | B20: Berkshire Arts and Technology Charter Public School | C20: C | D20: Adams | E20: 348.8691275 | F20: 1633.156835 | G20: 1684.530082 | H20: 4839.2237 | I20: 1033.953685 | J20: 338.0587295 | K20: 504.5879561 | L20: 475.1507569 | M20: 1964.786437 | N20: 1167.437035 | O20: 3312.001518 | P20: 5914338.804 | Q20: 16952.88673 | S20: 0 | T20: 1505.496212
A21: 449 | B21: Boston Collegiate Charter School | C21: C | D21: Boston | E21: 675.6936027 | F21: 1857.334678 | G21: 1459.475073 | H21: 6478.170568 | I21: 102.8419978 | J21: 177.0940105 | K21: 167.0624519 | L21: 1106.838495 | M21: 1605.901855 | N21: 973.820867 | O21: 3872.968487 | P21: 12028365.4 | Q21: 17801.50848 | S21: 11.88701501 | T21: 2193.505154
A22: 424 | B22: Boston Day and Evening Academy Charter School | C22: HM | D22: Boston | E22: 392.3687151 | F22: 1740.576462 | G22: 82.26764459 | H22: 6105.073896 | I22: 635.5680013 | J22: 115.1773785 | K22: 427.0829798 | L22: 900.5687416 | M22: 86.44674944 | N22: 37.74001196 | O22: 144.6878862 | P22: 4031663 | Q22: 10275.18975 | S22: 0 | T22: 0
A23: 411 | B23: Boston Green Academy Horace Mann Charter School | C23: HM | D23: Boston | E23: 481.0277778 | F23: 1216.497315 | G23: 867.6401224 | H23: 7168.201421 | I23: 1937.060692 | J23: 65.06900733 | K23: 249.9294335 | L23: 334.5233008 | M23: 1682.493273 | N23: 837.550384 | O23: 2557.573714 | P23: 8137325 | Q23: 16916.53866 | S23: 0 | T23: 0
A24: 416 | B24: Boston Preparatory Charter Public School | C24: C | D24: Boston | E24: 412.2980132 | F24: 2645.683377 | G24: 1737.287052 | H24: 5158.365871 | I24: 413.7322871 | J24: 179.8165347 | K24: 1099.91556 | L24: 1046.34266 | M24: 2612.610213 | N24: 668.8754036 | O24: 4841.692019 | P24: 8412661 | Q24: 20404.32098 | S24: 1161.39051 | T24: 265.8974734
A25: 481 | B25: Boston Renaissance Charter Public School | C25: C | D25: Boston | E25: 947.2125011 | F25: 1923.205435 | G25: 802.1023573 | H25: 5739.743588 | I25: 1672.164639 | J25: 689.7451514 | K25: 639.3266551 | L25: 241.9731578 | M25: 2497.627847 | N25: 965.5195946 | O25: 5166.245161 | P25: 19264079.72 | Q25: 20337.65359 | S25: 0 | T25: 2488.215683
A26: 417 | B26: Bridge Boston Charter School | C26: C | D26: Boston | E26: 269.62 | F26: 3022.724575 | G26: 405.007047 | H26: 6099.41399 | I26: 1651.832208 | J26: 55.63756398 | K26: 465.0359766 | L26: 321.7528373 | M26: 3224.449225 | N26: 743.5316371 | O26: 4036.703509 | P26: 5399434 | Q26: 20026.08857 | S26: 1402.436763 | T26: 3163.296491
A27: 428 | B27: Brooke Charter School | C27: C | D27: Boston | E27: 1599.808206 | F27: 1163.722959 | G27: 1943.204234 | H27: 5550.277168 | I27: 935.5080717 | J27: 34.68293248 | K27: 1084.326723 | L27: 670.8023974 | M27: 2496.782355 | N27: 1295.31052 | O27: 3545.802927 | P27: 29949082 | Q27: 18720.42029 | S27: 1011.733434 | T27: 1163.997373
A28: 432 | B28: Cape Cod Lighthouse Charter School | C28: C | D28: Harwich | E28: 242.9198606 | F28: 1645.970811 | G28: 362.6586965 | H28: 6964.090938 | I28: 827.1163975 | J28: 132.3317077 | K28: 269.6444821 | L28: 356.9284116 | M28: 1001.36728 | N28: 424.4239221 | O28: 4389.706948 | P28: 3977628 | Q28: 16374.23959 | S28: 0 | T28: 1117.430248
A29: 418 | B29: Christa McAuliffe Charter School | C29: C | D29: Framingham | E29: 394.3965517 | F29: 1827.201574 | G29: 1432.63423 | H29: 5854.33871 | I29: 356.5244153 | J29: 19.46010929 | K29: 383.7660328 | L29: 359.2602404 | M29: 1477.637158 | N29: 457.5572459 | O29: 4281.054164 | P29: 6487600 | Q29: 16449.43388 | S29: 1770.13718 | T29: 266.9825574
A30: 437 | B30: City on a Hill Charter Public School Circuit Street | C30: C | D30: Boston | E30: 278.4983389 | F30: 5272.434105 | G30: 2581.183654 | H30: 5826.517697 | I30: 1414.191128 | J30: 392.78263 | K30: 608.2612941 | L30: 737.6808452 | M30: 1796.120408 | N30: 1610.885694 | O30: 5840.590276 | P30: 7263417.07 | Q30: 26080.64773 | S30: 1884.249659 | T30: 208.6523397
A31: 3504 | B31: City on a Hill Charter Public School Dudley Square | C31: C | D31: Boston | E31: 274.3189369 | F31: 1871.015125 | G31: 1907.981083 | H31: 5530.138704 | I31: 1253.982587 | J31: 236.8478485 | K31: 626.0892593 | L31: 648.3189678 | M31: 1324.183281 | N31: 1387.028159 | O31: 3825.189839 | P31: 5105287.972 | Q31: 18610.77485 | S31: 2687.859279 | T31: 22.53526523
A32: 3507 | B32: City On A Hill Charter Public School New Bedford | C32: C | D32: =VLOOKUP(A32, FACTS, 6, FALSE) -> New Bedford | E32: =VLOOKUP(A32, FTE, 2, FALSE) -> 176.3887043 | F32: 1678.424937 | G32: 2127.362245 | H32: 4688.197202 | I32: 1439.767251 | J32: 241.2061485 | K32: 1051.205522 | L32: 590.7866969 | M32: 1891.859976 | N32: 1690.180282 | O32: 3044.153141 | P32: 3253162.168 | Q32: =SUM(F32:O32) -> 18443.1434 | S32: 1492.75086 | T32: 396.7141789
A33: 438 | B33: Codman Academy Charter Public School | C33: C | D33: Boston | E33: 357.4180699 | F33: 2872.845798 | G33: 1834.607859 | H33: 4975.201731 | I33: 1630.519633 | J33: 358.2219557 | K33: 401.599729 | L33: 864.8975138 | M33: 2640.854169 | N33: 877.9270733 | O33: 4156.03218 | P33: 7367354.18 | Q33: 20612.70764 | S33: 1131.884575 | T33: 5.472582852
A34: 3503 | B34: Collegiate Charter School of Lowell | C34: C | D34: Lowell | E34: 640.3779661 | F34: 832.4416801 | G34: 2367.565688 | H34: 2498.268452 | I34: 805.8542413 | J34: 33.23648084 | K34: 637.5324599 | L34: 414.7224827 | M34: 1610.589768 | N34: 784.3234724 | O34: 1551.295302 | P34: 7387291.37 | Q34: 11535.83003 | S34: 1838.373995 | T34: 155.671268
A35: 436 | B35: Community Charter School of Cambridge | C35: C | D35: Cambridge | E35: 369.5918367 | F35: 1379.39735 | G35: 2085.906461 | H35: 6692.488183 | I35: 469.8426284 | J35: 423.9271121 | K35: 618.0439536 | L35: 575.0018774 | M35: 1311.162617 | N35: 770.4147432 | O35: 4141.298178 | P35: 6825431 | Q35: 18467.4831 | S35: 2973.244782 | T35: 679.7255108
A36: 426 | B36: Community Day Charter Public School - Gateway | C36: C | D36: Lawrence | E36: 279.952862 | F36: 1273.22149 | G36: 1576.036755 | H36: 5876.871515 | I36: 382.8608833 | J36: 28.8762899 | K36: 551.7821783 | L36: 133.7260842 | M36: 1828.272076 | N36: 792.0869194 | O36: 2865.060905 | P36: 4285741 | Q36: 15308.7951 | S36: 658.2643903 | T36: 19.54614774
A37: 440 | B37: Community Day Charter Public School - Prospect | C37: C | D37: Lawrence | E37: 399.9427609 | F37: 1157.268102 | G37: 1361.957393 | H37: 6298.281269 | I37: 549.1185776 | J37: 60.63617689 | K37: 431.1992036 | L37: 785.7199347 | M37: 1506.133024 | N37: 636.5010818 | O37: 3899.815554 | P37: 6673697 | Q37: 16686.63032 | S37: 435.6248369 | T37: 12.7193201
A38: 431 | B38: Community Day Charter Public School - R. Kingman Webster | C38: C | D38: Lawrence | E38: 279.8552189 | F38: 1302.109003 | G38: 1125.178231 | H38: 6120.261066 | I38: 491.5863301 | J38: 41.28206023 | K38: 462.1282409 | L38: 67.92083449 | M38: 1864.539108 | N38: 748.0117786 | O38: 2908.000084 | P38: 4234494 | Q38: 15131.01674 | S38: 1516.208995 | T38: 44.88034939
A39: 439 | B39: Conservatory Lab Charter School | C39: C | D39: =VLOOKUP(A39, FACTS, 6, FALSE) -> Boston | E39: =VLOOKUP(A39, FTE, 2, FALSE) -> 443.6184211 | F39: =VLOOKUP($A39&100, FE, 12, FALSE)/$E39 -> 3812.869686 | G39: 350.1917698 | H39: 3485.407902 | I39: 1711.628021 | J39: 54.0755723 | K39: 468.1120308 | L39: 0 | M39: 3334.493316 | N39: 672.9587993 | O39: 3091.82907 | P39: 7533335.57 | Q39: 16981.56617 | S39: 2273.536359 | T39: 120.9434898
A40: 407 | B40: Dudley Street Neighborhood Charter School | C40: HM | D40: Boston | E40: 288.0837989 | F40: 4252.203716 | G40: 1227.899942 | H40: 6135.276877 | I40: 956.3276764 | J40: 133.2598367 | K40: 274.0524469 | L40: 303.3353501 | M40: 2130.970302 | N40: 604.1020032 | O40: 2785.641862 | P40: 5416859.84 | Q40: 18803.07001 | S40: 0 | T40: 9.937594586
A41: 452 | B41: Edward M. Kennedy Academy for Health Careers: A Horace Mann Charter Public School | C41: =VLOOKUP(A41, TYPE, 3, FALSE) -> HM | D41: Boston | E41: 359.4166667 | F41: 1846.17482 | G41: 1432.084396 | H41: 6669.498725 | I41: 784.7910967 | J41: 683.1820079 | K41: 239.941572 | L41: 2051.64665 | M41: 2837.759332 | N41: 224.1632275 | O41: 2702.314862 | P41: 6998402 | Q41: 19471.55669 | S41: 904.6102481 | T41: 0
A42: 410 | B42: Excel Academy Charter School | C42: C | D42: Boston/Chelsea | E42: 957.5940594 | F42: 2124.752972 | G42: 2307.713677 | H42: 5026.316969 | I42: 509.276328 | J42: 374.4692299 | K42: 923.7933249 | L42: 799.7357257 | M42: 1588.884282 | N42: 860.8418065 | O42: 3426.27961 | P42: 17181213.83 | Q42: 17942.06392 | S42: 470.1616469 | T42: 1602.663451
A43: 413 | B43: Four Rivers Charter Public School | C43: C | D43: Greenfield | E43: 219.0798611 | F43: 1491.579364 | G43: 1198.626833 | H43: 5885.753229 | I43: 541.6335367 | J43: 156.0983279 | K43: 633.3033045 | L43: 484.7273477 | M43: 813.0642365 | N43: 838.7261114 | O43: 3832.196696 | P43: 3478048.12 | Q43: =SUM(F43:O43) -> 15875.70899 | S43: 2113.211126 | T43: 20.8143276
A44: 446 | B44: Foxborough Regional Charter School | C44: C | D44: Foxborough | E44: 1259.640138 | F44: 907.7776304 | G44: 976.6196174 | H44: 3693.487559 | I44: 641.1661993 | J44: 112.5298216 | K44: 254.8510882 | L44: 546.2172084 | M44: 1353.445661 | N44: 892.4850723 | O44: 2938.699377 | P44: 15515339.32 | Q44: 12317.27923 | S44: 0 | T44: 2558.640553
A45: 478 | B45: Francis W. Parker Charter Essential School | C45: C | D45: Devens | E45: 393.6655052 | F45: 1179.495272 | G45: 1649.448604 | H45: 5558.758974 | I45: 227.3508062 | J45: 167.9250001 | K45: 393.6335237 | L45: 354.2186911 | M45: 1124.115103 | N45: 810.1940753 | O45: 3999.597245 | P45: 6087933.62 | Q45: 15464.73729 | S45: 592.932215 | T45: 653.6785585
A46: 496 | B46: Global Learning Charter Public School | C46: C | D46: New Bedford | E46: 502.9409722 | F46: 1425.195082 | G46: 1009.372925 | H46: 4698.591148 | I46: 590.1527543 | J46: 252.9223249 | K46: 745.7634608 | L46: 546.2609236 | M46: 1561.94274 | N46: 549.2334394 | O46: 3250.912314 | P46: 7358201 | Q46: 14630.34711 | S46: 546.8494618 | T46: 453.0810027
A47: 499 | B47: Hampden Charter School of Science | C47: C | D47: Chicopee | E47: 453.5068493 | F47: 1407.969915 | G47: 663.493838 | H47: 4150.817133 | I47: 633.4744457 | J47: 138.7873195 | K47: 443.289887 | L47: 518.7330695 | M47: 2159.894545 | N47: 906.0789283 | O47: 3422.991301 | P47: 6551146.97 | Q47: 14445.53038 | S47: 1179.071498 | T47: 285.3473993
A48: 419 | B48: Helen Y Davis Leadership Academy Charter Public School | C48: C | D48: Boston | E48: 219.1752577 | F48: 3175.928739 | G48: 515.5873942 | H48: 7023.40682 | I48: 1024.499765 | J48: 158.9549859 | K48: 275.5466134 | L48: 329.1429915 | M48: 2396.8627 | N48: 716.7871119 | O48: 4307.03269 | P48: 4366793 | Q48: 19923.74981 | S48: 1556.252305 | T48: 11.07789276
A49: 455 | B49: Hill View Montessori Charter Public School | C49: C | D49: Haverhill | E49: 306.0804196 | F49: 1606.606821 | G49: 416.3097403 | H49: 3213.669503 | I49: 1197.980781 | J49: 60.72250563 | K49: 224.359337 | L49: 212.1441486 | M49: 362.408808 | N49: 941.0533362 | O49: 2329.540913 | P49: 3233677.16 | Q49: 10564.79589 | S49: 49.00672843 | T49: 870.1602029
A50: 450 | B50: Hilltown Cooperative Charter Public School | C50: C | D50: Easthampton | E50: 217.8645833 | F50: 794.796416 | G50: 1350.504545 | H50: 5472.609002 | I50: 1499.663989 | J50: 19.52630361 | K50: 278.0874664 | L50: 439.397531 | M50: 488.8015224 | N50: 602.1980626 | O50: 3766.131316 | P50: 3205161.91 | Q50: 14711.71615 | S50: 537.6630208 | T50: 582.7124265
A51: 453 | B51: Holyoke Community Charter School | C51: C | D51: Holyoke | E51: 700.5748299 | F51: 785.6654086 | G51: 2676.539207 | H51: 3925.769072 | I51: 684.9746515 | J51: 114.9099233 | K51: 715.7893469 | L51: 200.595274 | M51: 2228.136001 | N51: 1165.206007 | O51: 2715.394443 | P51: 10657830.41 | Q51: 15212.97933 | S51: 0 | T51: 849.4196117
A52: 435 | B52: Innovation Academy Charter School | C52: C | D52: Tyngsborough | E52: 791.9930556 | F52: 1314.312029 | G52: 854.8850211 | H52: 4933.799574 | I52: 664.8467386 | J52: 74.59030049 | K52: 145.9053197 | L52: 366.2292213 | M52: 1278.146308 | N52: 1022.193306 | O52: 3401.680079 | P52: 11132720 | Q52: 14056.5879 | S52: 0 | T52: 1163.445807
A53: 463 | B53: KIPP Academy Boston Charter School | C53: C | D53: Boston | E53: 509.0841015 | F53: 3130.21547 | G53: 1468.897787 | H53: 5924.541723 | I53: 545.4815799 | J53: 67.4976883 | K53: 731.199558 | L53: 750.1153324 | M53: 2356.333652 | N53: 964.5439694 | O53: 3693.19135 | P53: 9994348.3 | Q53: 19632.01811 | S53: 784.5265622 | T53: 2296.68339
A54: 429 | B54: KIPP Academy Lynn Charter School | C54: C | D54: Lynn | E54: 1193.225909 | F54: 2702.39205 | G54: 1235.315382 | H54: 5225.486485 | I54: 148.1287648 | J54: 522.2751579 | K54: 483.2824411 | L54: 854.8791913 | M54: 1563.258044 | N54: 758.7859041 | O54: 3630.133211 | P54: 20432724.85 | Q54: 17123.93663 | S54: 1148.713743 | T54: 200.2353437
A55: 454 | B55: Lawrence Family Development Charter School | C55: C | D55: Lawrence | E55: 715.9998688 | F55: 1178.614741 | G55: 1010.395437 | H55: 4669.762029 | I55: 1459.212558 | J55: 47.10056729 | K55: 601.5420097 | L55: 180.6187482 | M55: 1112.536517 | N55: 1131.050487 | O55: 2566.934828 | P55: 9993760 | Q55: 13957.76792 | S55: 1501.746085 | T55: 154.2290786
A56: 456 | B56: Lowell Community Charter Public School | C56: C | D56: Lowell | E56: 808.9863946 | F56: 2043.74777 | G56: 96.85329757 | H56: 6611.216512 | I56: 299.0516424 | J56: 50.54275359 | K56: 644.2703159 | L56: 0 | M56: 1136.555159 | N56: 1183.755186 | O56: 3667.750249 | P56: 12728383.93 | Q56: 15733.74289 | S56: 0 | T56: 817.8214176
A57: 458 | B57: Lowell Middlesex Academy Charter School | C57: C | D57: Lowell | E57: 106.4965753 | F57: 1042.33117 | G57: 2197.590667 | H57: 7865.31339 | I57: 0 | J57: 43.3441168 | K57: 377.9162839 | L57: 85.06902659 | M57: 1061.992272 | N57: 922.9096775 | O57: 3142.861627 | P57: 1782681.13 | Q57: 16739.32823 | S57: 0 | T57: 741.1224234
A58: 464 | B58: Marblehead Community Charter Public School | C58: C | D58: Marblehead | E58: 229.7635135 | F58: 1634.769787 | G58: 854.1000135 | H58: 5325.729013 | I58: 779.4707578 | J58: 91.67852492 | K58: 514.8860156 | L58: 221.9663132 | M58: 1311.706526 | N58: 796.1651404 | O58: 3951.671247 | P58: 3557231.65 | Q58: 15482.14334 | S58: 0 | T58: 1044.276858
A59: 466 | B59: Martha's Vineyard Public Charter School | C59: C | D59: West Tisbury | E59: 174.0696864 | F59: 2272.578346 | G59: 772.1562713 | H59: 9180.892049 | I59: 2630.239701 | J59: 128.5921774 | K59: 518.4501785 | L59: 1566.832259 | M59: 2699.603128 | N59: 1247.902518 | O59: 8257.101105 | P59: 5095776.53 | Q59: 29274.34773 | S59: 620.4411706 | T59: 119.8887666
A60: 492 | B60: Martin Luther King, Jr. Charter School of Excellence | C60: C | D60: Springfield | E60: 360.5485173 | F60: 752.6331049 | G60: 1407.23061 | H60: 7324.102537 | I60: 783.8916525 | J60: 87.94891251 | K60: 484.4755467 | L60: 261.0347165 | M60: 2769.625507 | N60: 962.1419681 | O60: 4247.161441 | P60: 6879354.403 | Q60: =SUM(F60:O60) -> 19080.246 | S60: 959.4567262 | T60: 151.9244079
A61: 469 | B61: Match Charter Public School | C61: C | D61: Boston | E61: 1137.527027 | F61: 1031.68274 | G61: 2472.655975 | H61: 5826.408378 | I61: 980.1077016 | J61: 102.2463618 | K61: 857.0126044 | L61: 694.212956 | M61: 1898.967628 | N61: 1387.671644 | O61: 3358.823051 | P61: 21169138 | Q61: 18609.78904 | S61: 0 | T61: 2309.113487
A62: 470 | B62: Mystic Valley Regional Charter School | C62: C | D62: Malden | E62: 1485.87013 | F62: 1129.023302 | G62: 434.4484669 | H62: 4005.047198 | I62: 984.5476873 | J62: 207.0914502 | K62: 595.3885082 | L62: 82.94735692 | M62: 1254.685024 | N62: 1256.774036 | O62: 2725.100881 | P62: 18833484 | Q62: 12675.05391 | S62: 226.4161539 | T62: 675.3241618
A63: 444 | B63: Neighborhood House Charter School | C63: C | D63: Boston | E63: 463.3715278 | F63: 2722.130999 | G63: 959.1245326 | H63: 5408.890814 | I63: 1837.952807 | J63: 479.5158672 | K63: 444.023829 | L63: 484.7514069 | M63: 1621.381451 | N63: 1423.281234 | O63: 4003.964182 | P63: 8982465 | Q63: 19385.01712 | S63: 659.1190474 | T63: 265.2925194
A64: 3513 | B64: New Heights Charter School of Brockton | C64: C | D64: =VLOOKUP(A64, FACTS, 6, FALSE) -> Brockton | E64: =VLOOKUP(A64, FTE, 2, FALSE) -> 303.9488055 | F64: 2596.48094 | G64: 834.9781787 | H64: 3419.263644 | I64: 1965.318235 | J64: 168.5836861 | K64: 420.9200619 | L64: 13.37504845 | M64: 2989.839946 | N64: 599.2842108 | O64: 1191.635313 | P64: 4315975.55 | Q64: =SUM(F64:O64) -> 14199.67926 | S64: 1255.473301 | T64: 484.5256746
A65: 3501 | B65: Paulo Freire Social Justice Charter School | C65: C | D65: Holyoke | E65: 333.8827586 | F65: 1197.620451 | G65: 709.9365687 | H65: 5361.743857 | I65: 1476.532277 | J65: 18.79009873 | K65: 608.146976 | L65: 167.9680922 | M65: 1841.373279 | N65: 471.715942 | O65: 2995.509304 | P65: 4957937.55 | Q65: 14849.33685 | S65: 2294.206665 | T65: 0
A66: 493 | B66: Phoenix Academy Charter Public High School, Chelsea | C66: C | D66: =VLOOKUP(A66, FACTS, 6, FALSE) -> Chelsea | E66: =VLOOKUP(A66, FTE, 2, FALSE) -> 185.6131148 | F66: =VLOOKUP($A66&100, FE, 12, FALSE)/$E66 -> 8200.784099 | G66: =VLOOKUP($A66&210, FE, 12, FALSE)/$E66 -> 4236.618684 | H66: =VLOOKUP($A66&220, FE, 12, FALSE)/$E66 -> 4221.503858 | I66: =VLOOKUP($A66&230, FE, 12, FALSE)/$E66 -> 1854.068612 | J66: =VLOOKUP($A66&240, FE, 12, FALSE)/$E66 -> 436.6232424 | K66: =VLOOKUP($A66&260, FE, 12, FALSE)/$E66 -> 289.7963329 | L66: =VLOOKUP($A66&250, FE, 12, FALSE)/$E66 -> 429.1444067 | M66: =VLOOKUP($A66&300, FE, 12, FALSE)/$E66 -> 1326.447866 | N66: =VLOOKUP($A66&400, FE, 12, FALSE)/$E66 -> 825.4373631 | O66: =VLOOKUP($A66&500, FE, 12, FALSE)/$E66 -> 4645.559346 | P66: =VLOOKUP($A66&800,FE,12,FALSE)-VLOOKUP($A66&700,FE,12,FALSE)-VLOOKUP($A66&600,FE,12,FALSE) -> 4912433.69 | Q66: 26465.98381 | S66: 2143.094741 | T66: 186.6031937
A67: 3508 | B67: Phoenix Academy Public Charter High School, Springfield | C67: C | D67: Springfield | E67: 189.7540984 | F67: 2412.468737 | G67: 1695.083599 | H67: 2736.004674 | I67: 1821.367038 | J67: 74.41404492 | K67: 366.2584397 | L67: 181.7344147 | M67: 843.5654428 | N67: 931.1954868 | O67: 2457.549133 | P67: 2565407.29 | Q67: =SUM(F67:O67) -> 13519.64101 | S67: 2208.481259 | T67: 460.7341857
A68: 494 | B68: Pioneer Charter School of Science | C68: C | D68: Everett | E68: 533.8354839 | F68: 2011.921055 | G68: 922.0656267 | H68: 4747.341169 | I68: 264.3267903 | J68: 113.4604795 | K68: 873.2275094 | L68: 387.0526337 | M68: 1301.315875 | N68: 902.9136402 | O68: 2948.106313 | P68: 7725523.57 | Q68: 14471.73109 | S68: =VLOOKUP($A68&740, FE, 12, FALSE)/$E68 -> 783.300872 | T68: =(VLOOKUP($A68&700, FE, 12, FALSE)-VLOOKUP($A68&740, FE, 12, FALSE)-VLOOKUP($A68&725, FE, 12, FALSE))/$E68 -> 0
A69: 3506 | B69: Pioneer Charter School of Science II | C69: C | D69: Saugus | E69: 318.724026 | F69: 1840.024511 | G69: 1081.6082 | H69: 5101.338799 | I69: 242.7094091 | J69: 150.1403286 | K69: 836.7822576 | L69: 529.7296289 | M69: 1338.973423 | N69: 773.6268053 | O69: 3124.746548 | P69: 4787132.85 | Q69: 15019.67991 | S69: 1819.724755 | T69: 0
A70: 497 | B70: Pioneer Valley Chinese Immersion Charter School | C70: C | D70: Hadley | E70: 470.3447099 | F70: 1237.944528 | G70: 1073.606165 | H70: 6375.012043 | I70: 648.4449247 | J70: 133.7308971 | K70: 300.3921316 | L70: 387.7702803 | M70: 952.2200858 | N70: 694.4149538 | O70: 3592.230793 | P70: 7241317.47 | Q70: 15395.7668 | S70: 1553.513167 | T70: 209.5330466
A71: 479 | B71: Pioneer Valley Performing Arts Charter Public School | C71: C | D71: South Hadley | E71: 401.8855219 | F71: 1974.709356 | G71: 894.7283005 | H71: 5263.889553 | I71: 745.4305609 | J71: 111.2119934 | K71: 232.3093391 | L71: 504.5921511 | M71: 1078.831798 | N71: 989.2393937 | O71: 4169.069247 | P71: 6415705.17 | Q71: 15964.01169 | S71: 748.2886136 | T71: 218.6567946
A72: 487 | B72: Prospect Hill Academy Charter School | C72: C | D72: Somerville (K-6); Cambridge (7-12) | E72: 1145.164336 | F72: 1950.385618 | G72: 2148.154962 | H72: 6279.313498 | I72: 1444.590343 | J72: 58.57685042 | K72: 861.9233583 | L72: 431.6084466 | M72: 703.3717388 | N72: 837.1290217 | O72: 4823.344675 | P72: 22374677.15 | Q72: 19538.39851 | S72: 1408.999512 | T72: 1210.517519
A73: 483 | B73: Rising Tide Charter Public School | C73: =VLOOKUP(A73, TYPE, 3, FALSE) -> C | D73: Plymouth | E73: 661.7118056 | F73: 1279.847439 | G73: 534.865446 | H73: 5349.992444 | I73: 395.830266 | J73: 49.54063041 | K73: 350.7054099 | L73: 195.1963814 | M73: 1175.88227 | N73: 466.271264 | O73: 3386.021182 | P73: 8724109.51 | Q73: 13184.15273 | S73: 1181.112719 | T73: 648.6618742
A74: 482 | B74: River Valley Charter School | C74: C | D74: Newburyport | E74: 287.9652778 | F74: 1490.061591 | G74: 808.2432778 | H74: 4782.986375 | I74: 1718.714158 | J74: 302.2239371 | K74: 621.3735259 | L74: 273.7309186 | M74: 654.7108785 | N74: 502.022331 | O74: 3402.750525 | P74: 4191858 | Q74: 14556.81752 | S74: 0 | T74: 1416.267972
A75: 484 | B75: Roxbury Preparatory Charter School | C75: C | D75: Boston | E75: 1290.325837 | F75: 2168.063446 | G75: 1914.674673 | H75: 5633.316635 | I75: 497.4960446 | J75: 580.178943 | K75: 758.1247869 | L75: 287.8358237 | M75: 1262.625264 | N75: 995.3981882 | O75: 3321.177394 | P75: 22476045.36 | Q75: 17418.8912 | S75: 1457.312523 | T75: 868.4541905
A76: 441 | B76: Sabis International Charter School | C76: C | D76: Springfield | E76: 1571.945017 | F76: 1275.403648 | G76: 1027.269753 | H76: 3376.898131 | I76: 802.89445 | J76: 115.1086444 | K76: 676.4785399 | L76: 580.3769152 | M76: 2198.643491 | N76: 771.1589889 | O76: 2504.526142 | P76: 20952075.83 | Q76: 13328.7587 | S76: 0 | T76: 1780.921845
A77: 485 | B77: Salem Academy Charter School | C77: C | D77: Salem | E77: 439.5354839 | F77: 2773.108768 | G77: 0 | H77: 6421.789852 | I77: 917.6908004 | J77: 80.28819355 | K77: 465.7032879 | L77: 321.9905223 | M77: 726.2114476 | N77: 493.7244386 | O77: 3812.882785 | P77: 7038453.164 | Q77: 16013.3901 | S77: 1482.891561 | T77: 131.671235
A78: 486 | B78: Seven Hills Charter Public School | C78: C | D78: Worcester | E78: 665.0247678 | F78: 1185.527274 | G78: 1054.502079 | H78: 4381.492451 | I78: 1057.571137 | J78: 175.5949638 | K78: 417.9919508 | L78: 788.0368151 | M78: 2338.959502 | N78: 859.5634744 | O78: 2751.640373 | P78: 9982607 | Q78: 15010.88002 | S78: 1223.713822 | T78: 0
A79: 477 | B79: Silver Hill Horace Mann Charter School (school closing after 2017-18 school year) | C79: HM | D79: Haverhill | E79: 563.1611111 | F79: 60.07211672 | G79: 366.563699 | H79: 4947.777687 | I79: 673.9028717 | J79: 38.31528771 | K79: 189.1243516 | L79: 5.494413479 | M79: 195.6681629 | N79: 424.9084237 | O79: 1724.898259 | P79: 4858236.19 | Q79: 8626.725273 | S79: 0 | T79: 0
A80: 474 | B80: Sizer School, A North Central Charter Essential School | C80: C | D80: Fitchburg | E80: 367.5729167 | F80: 1537.554603 | G80: 993.9408303 | H80: 5073.932587 | I80: 593.6752141 | J80: 28.82043132 | K80: 472.7703596 | L80: 908.1849474 | M80: 1207.849626 | N80: 984.3422178 | O80: 3530.737144 | P80: 5635557.37 | Q80: 15331.80796 | S80: 0.002720548644 | T80: 22.8887375
A81: 488 | B81: South Shore Charter Public School | C81: C | D81: =VLOOKUP(A81, FACTS, 6, FALSE) -> Norwell | E81: =VLOOKUP(A81, FTE, 2, FALSE) -> 756.7414966 | F81: 972.7118617 | G81: 642.6778526 | H81: 5502.222382 | I81: 797.3852402 | J81: 100.8558013 | K81: 511.8247139 | L81: 400.1339974 | M81: 514.1200816 | N81: 741.7420645 | O81: 3162.395628 | P81: 10099524.7 | Q81: =SUM(F81:O81) -> 13346.06962 | S81: 1376.499115 | T81: 247.1980205
A82: 3510 | B82: Springfield Preparatory Charter School | C82: C | D82: Springfield | E82: 164.3733333 | F82: 2230.846711 | G82: 604.6412638 | H82: 4020.807369 | I82: 1433.497607 | J82: 261.8666248 | K82: 755.9115428 | L82: 501.7261518 | M82: 2258.254563 | N82: 133.7504056 | O82: 1803.017521 | P82: 2301936.72 | Q82: 14004.31976 | S82: 1020.165477 | T82: 224.367294
A83: 489 | B83: Sturgis Charter Public School | C83: C | D83: Hyannis | E83: 802.8601399 | F83: 949.5788396 | G83: 726.8526248 | H83: 7521.8979 | I83: 446.0216446 | J83: 0 | K83: 669.2087119 | L83: 1029.291353 | M83: 880.8856797 | N83: 500.1742895 | O83: 1430.459607 | P83: 11363980 | Q83: 14154.37065 | S83: 1598.285849 | T83: 67.95081396
A84: 480 | B84: UP Academy Charter School of Boston | C84: HM | D84: Boston | E84: 454.0648649 | F84: =VLOOKUP($A84&100, FE, 12, FALSE)/$E84 -> 1493.545025 | G84: 1992.032196 | H84: 5939.153365 | I84: 454.6219626 | J84: 62.67418733 | K84: 512.3491334 | L84: 280.1723495 | M84: 2777.941474 | N84: 1417.895547 | O84: 2084.717126 | P84: 7725960.156 | Q84: 17015.10237 | S84: 0 | T84: 61.98182722
A85: 3505 | B85: UP Academy Charter School of Dorchester | C85: HM | D85: Boston | E85: 747.6108108 | F85: 996.0912406 | G85: 1660.495705 | H85: 5541.46243 | I85: 671.0709272 | J85: 45.14288653 | K85: 494.0778874 | L85: 151.8474296 | M85: 2595.338526 | N85: 1247.117185 | O85: 1962.308381 | P85: 11487004.67 | Q85: =SUM(F85:O85) -> 15364.9526 | S85: 0 | T85: 7.023132791
A86: 498 | B86: Veritas Preparatory Charter School | C86: C | D86: Springfield | E86: 310.9342105 | F86: 1947.501045 | G86: 810.2626262 | H86: 5294.948302 | I86: 367.4568643 | J86: 306.7328611 | K86: 869.8354534 | L86: 972.0749592 | M86: 2075.012553 | N86: 1237.675067 | O86: 3101.717011 | P86: 5280663.09 | Q86: 16983.21674 | S86: 1119.428478 | T86: 145.873302
A87: C | B87: Commonwealth Charter Statewide Totals | C87: C | E87: =SUMIF(C9:C86,"C",E9:E86) -> 38626.76282 | F87: 1681.466891 | G87: 1232.447582 | H87: 5091.21329 | I87: 867.5383165 | J87: 180.091939 | K87: 578.4466649 | L87: 469.0438584 | M87: 1647.234149 | N87: 903.9130401 | O87: 3359.658754 | P87: 618455204.1 | Q87: =SUM(F87:O87) -> 16011.05449 | S87: 842.8148733 | T87: 872.1529639
A88: HM | B88: Horace Mann Charter Statewide Totals | C88: HM | E88: =SUMIF(C9:C86,"HM",E9:E86) -> 3829.799053 | F88: 1427.048222 | G88: 1030.114914 | H88: 5997.790125 | I88: 921.2768324 | J88: 126.0358911 | K88: 319.0437 | L88: 484.7148413 | M88: 1752.895749 | N88: 789.5486678 | O88: 1860.146335 | P88: 56331040.86 | Q88: 14708.61528 | S88: 123.8333901 | T88: =(VLOOKUP($A88&700, FE, 12, FALSE)-VLOOKUP($A88&740, FE, 12, FALSE)-VLOOKUP($A88&725, FE, 12, FALSE))/$E88 -> 9.467128563
A89: ALL | B89: All Charter Schools Statewide Totals | C89: ALL | E89: =SUM(E87:E88) -> 42456.56187 | F89: 1658.517026 | G89: 1214.19614 | H89: 5172.991158 | I89: 872.3858056 | J89: 175.215807 | K89: 555.0471906 | L89: 470.4574612 | M89: 1656.765366 | N89: 893.5967888 | O89: 3224.395064 | P89: 674786245 | Q89: 15893.56781 | S89: 777.9590658 | T89: 794.3342888
F90: ----------------------------- Operating Expenditures Per Pupil In The Charter School -------------------------------------------
A91: Notes: | B91: 1. These figures do not include facilities lease costs -- see data presented at right.
B92: 2. The majority of charter schools lease their facilities. In many cases, Horace Mann charter schools are provided their facilities in kind by their host districts; some report a monetary figure for these in-kind revenues and expenditures, some do not.
B93: 3. Capital facilities costs include facilities-related long-term interest; depreciation of equipment, buildings, and grounds; bad debt or loss on disposal of assets; and other costs related to capital facilities acquisition.
B94: Charter schools that report significant costs in this category either own their buildings or have invested heavily in leasehold improvements.

Sheet 5. AVGTCHSAL
A1: Massachusetts Department of Elementary and Secondary Education
A2: FY17 Average Teacher Salaries
A3: =Index!B3 -> Last Updated: May 2018
A5: Return to Index
A6: Average teacher salaries are calculated from data submitted on the Charter School End of Year Financial Report. The calculation includes professional teachers paid from all funding sources, including tuition revenue, federal and state grants, and private grants/contributions. Beginning in FY08, the Educator Personnel Management Information System (EPIMS) was the source for the total number of theachers, which is shown in full-time equivalents (e.g., a teacher who worked half-time would count as .5 FTE's).
A8: LEA | B8: Charter School | C8: Type | D8: Location | E8: Total Salaries | F8: Total Teachers | G8: Average Salaries
A9: 445 | B9: Abby Kelley Foster Charter Public School | C9: =VLOOKUP(A9, TYPE, 3, FALSE) -> C | D9: =VLOOKUP(A9, FACTS, 6, FALSE) -> Worcester | E9: =VLOOKUP($A9&220, FE, 12, FALSE) -> 6235738.33 | F9: =VLOOKUP(A9, TEACHEREPIMS, 2, FALSE) -> 111.402 | G9: =E9/F9 -> 55975.10215
A10: 412 | B10: Academy of the Pacific Rim Charter Public School | C10: C | D10: Boston | E10: 2835824 | F10: 44.216 | G10: =E10/F10 -> 64135.69749
A11: 430 | B11: Advanced Math and Science Academy Charter School | C11: C | D11: Marlborough | E11: 4752138.05 | F11: 74.054 | G11: 64171.25408
A12: 409 | B12: Alma del Mar Charter School | C12: C | D12: New Bedford | E12: 1576040 | F12: 32.15 | G12: 49021.4619
A13: 3509 | B13: Argosy Collegiate Charter School | C13: C | D13: Fall River | E13: 1239852.72 | F13: 24.999 | G13: 49596.09264
A14: 491 | B14: Atlantis Charter School | C14: C | D14: Fall River | E14: 4165006.98 | F14: 79.51 | G14: 52383.43579
A15: 427 | B15: Barnstable Community Horace Mann Charter Public School | C15: HM | D15: Barnstable | E15: 1633355 | F15: 24.8 | G15: 65861.08871
A16: 3502 | B16: Baystate Academy Charter Public School | C16: C | D16: Springfield | E16: 1661617 | F16: 38.652 | G16: 42989.15968
A17: 420 | B17: Benjamin Banneker Charter Public School | C17: C | D17: Cambridge | E17: 1701191.65 | F17: 21.024 | G17: 80916.65002
A18: 447 | B18: Benjamin Franklin Classical Charter Public School | C18: C | D18: Franklin | E18: 2001023.23 | F18: 31.802 | G18: 62921.30149
A19: 3511 | B19: Bentley Academy Charter School | C19: HM | D19: Salem | E19: 1702815 | F19: 31.008 | G19: 54915.34443
A20: 414 | B20: Berkshire Arts and Technology Charter Public School | C20: C | D20: Adams | E20: 1688255.75 | F20: 33.097 | G20: 51009.32864
A21: 449 | B21: Boston Collegiate Charter School | C21: C | D21: Boston | E21: 4377258.41 | F21: 60.767 | G21: 72033.47886
A22: 424 | B22: Boston Day and Evening Academy Charter School | C22: HM | D22: Boston | E22: 2395440 | F22: 20.55 | G22: 116566.4234
A23: 411 | B23: Boston Green Academy Horace Mann Charter School | C23: HM | D23: Boston | E23: 3448104 | F23: 49.43 | G23: 69757.31337
A24: 416 | B24: Boston Preparatory Charter Public School | C24: C | D24: Boston | E24: 2126784 | F24: 35.46 | G24: 59976.98816
A25: 481 | B25: Boston Renaissance Charter Public School | C25: C | D25: Boston | E25: 5436756.88 | F25: 79 | G25: 68819.70734
A26: 417 | B26: Bridge Boston Charter School | C26: C | D26: Boston | E26: 1644524 | F26: 27.47 | G26: 59866.18129
A27: 428 | B27: Brooke Charter School | C27: C | D27: Boston | E27: 8879378.96 | F27: =VLOOKUP(A27, TEACHEREPIMS, 4, FALSE) -> 110.29 | G27: 80509.37492
A28: 432 | B28: Cape Cod Lighthouse Charter School | C28: C | D28: Harwich | E28: 1691716 | F28: =VLOOKUP(A28, TEACHEREPIMS, 4, FALSE) -> 21.49 | G28: 78721.07957
A29: 418 | B29: Christa McAuliffe Charter School | C29: C | D29: Framingham | E29: 2308931 | F29: 34.549 | G29: 66830.61738
A30: 437 | B30: City on a Hill Charter Public School Circuit Street | C30: C | D30: Boston | E30: 1622675.5 | F30: 25.1 | G30: 64648.42629
A31: 3504 | B31: City on a Hill Charter Public School Dudley Square | C31: C | D31: Boston | E31: 1517021.77 | F31: 24.8 | G31: 61170.23266
A32: 3507 | B32: City On A Hill Charter Public School New Bedford | C32: C | D32: New Bedford | E32: 826945.03 | F32: 12.916 | G32: 64024.85522
A33: 438 | B33: Codman Academy Charter Public School | C33: C | D33: Boston | E33: 1778227 | F33: 36.05 | G33: 49326.68516
A34: 3503 | B34: Collegiate Charter School of Lowell | C34: C | D34: Lowell | E34: 1599836.07 | F34: 35 | G34: 45709.602
A35: 436 | B35: Community Charter School of Cambridge | C35: C | D35: Cambridge | E35: 2473489 | F35: 32.228 | G35: 76749.68971
A36: 426 | B36: Community Day Charter Public School - Gateway | C36: C | D36: Lawrence | E36: 1645247 | F36: 28.75 | G36: 57225.98261
A37: 440 | B37: Community Day Charter Public School - Prospect | C37: C | D37: Lawrence | E37: 2518952 | F37: 44 | G37: 57248.90909
A38: 431 | B38: Community Day Charter Public School - R. Kingman Webster | C38: C | D38: =VLOOKUP(A38, FACTS, 6, FALSE) -> Lawrence | E38: =VLOOKUP($A38&220, FE, 12, FALSE) -> 1712787 | F38: =VLOOKUP(A38, TEACHEREPIMS, 2, FALSE) -> 30.5 | G38: 56156.95082
A39: 439 | B39: Conservatory Lab Charter School | C39: C | D39: Boston | E39: 1546191.15 | F39: 20.98 | G39: 73698.33889
A40: 407 | B40: Dudley Street Neighborhood Charter School | C40: HM | D40: Boston | E40: 1767473.87 | F40: 20.98 | G40: 84245.65634
A41: 452 | B41: Edward M. Kennedy Academy for Health Careers: A Horace Mann Charter Public School | C41: =VLOOKUP(A41, TYPE, 3, FALSE) -> HM | D41: Boston | E41: 2397129 | F41: =VLOOKUP(A41, TEACHEREPIMS, 4, FALSE) -> 28.7 | G41: 83523.65854
A42: 410 | B42: Excel Academy Charter School | C42: C | D42: Boston/Chelsea | E42: 4813171.27 | F42: =VLOOKUP(A42, TEACHEREPIMS, 2, FALSE) -> 78.09 | G42: 61636.20528
A43: 413 | B43: Four Rivers Charter Public School | C43: C | D43: Greenfield | E43: 1289450 | F43: 22.066 | G43: 58436.05547
A44: 446 | B44: Foxborough Regional Charter School | C44: C | D44: Foxborough | E44: 4652465.18 | F44: 94.644 | G44: 49157.52906
A45: 478 | B45: Francis W. Parker Charter Essential School | C45: C | D45: Devens | E45: 2188291.66 | F45: 36.99 | G45: 59159.00676
A46: 496 | B46: Global Learning Charter Public School | C46: C | D46: New Bedford | E46: 2363114 | F46: 43.023 | G46: 54926.76011
A47: 499 | B47: Hampden Charter School of Science | C47: C | D47: Chicopee | E47: 1882424 | F47: 38.321 | G47: 49122.51768
A48: 419 | B48: Helen Y Davis Leadership Academy Charter Public School | C48: C | D48: Boston | E48: 1539357 | F48: 15.835 | G48: 97212.31449
A49: 455 | B49: Hill View Montessori Charter Public School | C49: C | D49: Haverhill | E49: 983641.31 | F49: 18.015 | G49: 54601.23841
A50: 450 | B50: Hilltown Cooperative Charter Public School | C50: C | D50: Easthampton | E50: 1192287.68 | F50: 19.155 | G50: 62244.20151
A51: 453 | B51: Holyoke Community Charter School | C51: C | D51: Holyoke | E51: 2750295 | F51: 52.5 | G51: 52386.57143
A52: 435 | B52: Innovation Academy Charter School | C52: C | D52: Tyngsborough | E52: 3907535 | F52: 74.969 | G52: 52122.01043
A53: 463 | B53: KIPP Academy Boston Charter School | C53: C | D53: Boston | E53: 3016090 | F53: 44.088 | G53: 68410.67864
A54: 429 | B54: KIPP Academy Lynn Charter School | C54: C | D54: Lynn | E54: 6235185.86 | F54: 95.666 | G54: 65176.61301
A55: 454 | B55: Lawrence Family Development Charter School | C55: C | D55: Lawrence | E55: 3343549 | F55: 59.543 | G55: 56153.51931
A56: 456 | B56: Lowell Community Charter Public School | C56: C | D56: Lowell | E56: 5348384.21 | F56: 62.47 | G56: 85615.24268
A57: 458 | B57: Lowell Middlesex Academy Charter School | C57: C | D57: Lowell | E57: 837628.94 | F57: 11 | G57: 76148.08545
A58: 464 | B58: Marblehead Community Charter Public School | C58: C | D58: Marblehead | E58: 1223658.21 | F58: 22.9 | G58: 53434.85633
A59: 466 | B59: Martha's Vineyard Public Charter School | C59: C | D59: West Tisbury | E59: 1598115 | F59: 18.76 | G59: 85187.36674
A60: 492 | B60: Martin Luther King, Jr. Charter School of Excellence | C60: C | D60: Springfield | E60: 2640694.31 | F60: 34.754 | G60: 75982.45698
A61: 469 | B61: Match Charter Public School | C61: C | D61: Boston | E61: 6627697 | F61: 79.712 | G61: 83145.53643
A62: 470 | B62: Mystic Valley Regional Charter School | C62: C | D62: Malden | E62: 5950980 | F62: 100.373 | G62: 59288.65332
A63: 444 | B63: Neighborhood House Charter School | C63: C | D63: Boston | E63: 2506326 | F63: 47.91 | G63: 52313.21227
A64: 3513 | B64: New Heights Charter School of Brockton | C64: C | D64: Brockton | E64: 1039281.1 | F64: 21.296 | G64: 48801.70455
A65: 3501 | B65: Paulo Freire Social Justice Charter School | C65: C | D65: Holyoke | E65: 1790193.83 | F65: 34.156 | G65: 52412.27983
A66: 493 | B66: Phoenix Academy Charter Public High School, Chelsea | C66: C | D66: Chelsea | E66: 783566.48 | F66: 13.69 | G66: 57236.41198
A67: 3508 | B67: Phoenix Academy Public Charter High School, Springfield | C67: C | D67: Springfield | E67: 519168.1 | F67: =VLOOKUP(A67, TEACHEREPIMS, 4, FALSE) -> 11.9 | G67: 43627.57143
A68: 494 | B68: Pioneer Charter School of Science | C68: C | D68: =VLOOKUP(A68, FACTS, 6, FALSE) -> Everett | E68: =VLOOKUP($A68&220, FE, 12, FALSE) -> 2534299.17 | F68: =VLOOKUP(A68, TEACHEREPIMS, 2, FALSE) -> 53.25 | G68: 47592.47268
A69: 3506 | B69: Pioneer Charter School of Science II | C69: C | D69: Saugus | E69: 1625919.24 | F69: 31.76 | G69: =E69/F69 -> 51193.93073
A70: 497 | B70: Pioneer Valley Chinese Immersion Charter School | C70: C | D70: Hadley | E70: 2998453.19 | F70: 58.83 | G70: 50968.09774
A71: 479 | B71: Pioneer Valley Performing Arts Charter Public School | C71: C | D71: South Hadley | E71: 2115481 | F71: 41.89 | G71: 50500.85939
A72: 487 | B72: Prospect Hill Academy Charter School | C72: C | D72: Somerville (K-6); Cambridge (7-12) | E72: 7190845.87 | F72: 106.027 | G72: 67820.89345
A73: 483 | B73: Rising Tide Charter Public School | C73: =VLOOKUP(A73, TYPE, 3, FALSE) -> C | D73: Plymouth | E73: 3540153.16 | F73: 49.025 | G73: 72211.18123
A74: 482 | B74: River Valley Charter School | C74: C | D74: Newburyport | E74: 1377334 | F74: 18.076 | G74: 76196.83558
A75: 484 | B75: Roxbury Preparatory Charter School | C75: C | D75: Boston | E75: 7268814 | F75: 106.35 | G75: 68348.03949
A76: 441 | B76: Sabis International Charter School | C76: C | D76: Springfield | E76: 5308298.19 | F76: 67.81 | G76: 78281.93762
A77: 485 | B77: Salem Academy Charter School | C77: C | D77: Salem | E77: 2822604.51 | F77: 41.45 | G77: 68096.61062
A78: 486 | B78: Seven Hills Charter Public School | C78: C | D78: Worcester | E78: 2913801 | F78: 46.613 | G78: 62510.47991
A79: 477 | B79: Silver Hill Horace Mann Charter School (school closing after 2017-18 school year) | C79: HM | D79: =VLOOKUP(A79, FACTS, 6, FALSE) -> Haverhill | E79: 2786395.98 | F79: =VLOOKUP(A79, TEACHEREPIMS, 2, FALSE) -> 35.8 | G79: =E79/F79 -> 77832.28994
A80: 474 | B80: Sizer School, A North Central Charter Essential School | C80: C | D80: Fitchburg | E80: 1865040.2 | F80: 34.607 | G80: 53891.99295
A81: 488 | B81: South Shore Charter Public School | C81: C | D81: Norwell | E81: 4163760 | F81: 60.901 | G81: 68369.3207
A82: 3510 | B82: Springfield Preparatory Charter School | C82: C | D82: Springfield | E82: 660913.51 | F82: 14.8 | G82: 44656.31824
A83: 489 | B83: Sturgis Charter Public School | C83: C | D83: Hyannis | E83: 6039032 | F83: 86.997 | G83: 69416.55459
A84: 480 | B84: UP Academy Charter School of Boston | C84: HM | D84: =VLOOKUP(A84, FACTS, 6, FALSE) -> Boston | E84: 2696760.87 | F84: =VLOOKUP(A84, TEACHEREPIMS, 2, FALSE) -> 26.44 | G84: =E84/F84 -> 101995.4943
A85: 3505 | B85: UP Academy Charter School of Dorchester | C85: HM | D85: Boston | E85: 4142857.22 | F85: 39.33 | G85: 105335.8052
A86: 498 | B86: Veritas Preparatory Charter School | C86: C | D86: Springfield | E86: 1646380.57 | F86: 29.5 | G86: 55809.51085
A87: C | B87: Commonwealth Charter Statewide Totals | C87: C | E87: =VLOOKUP($A87&220, FE, 12, FALSE) -> 196657088.2 | F87: =SUMIF($C9:$C86,"C",F9:F86) -> 3149.968 | G87: =E87/F87 -> 62431.45588
A88: HM | B88: Horace Mann Charter Statewide Totals | C88: HM | E88: 22970330.94 | F88: =SUMIF($C9:$C86,"HM",F9:F86) -> 277.038 | G88: =E88/F88 -> 82914.00797
A89: ALL | B89: All Charter Schools Statewide Totals | C89: ALL | E89: 219627419.2 | F89: =SUM(F87:F88) -> 3427.006 | G89: =E89/F89 -> 64087.25843

Sheet BAL17 (hidden)
B1: 1 | C1: 2 | D1: 3 | E1: 4 | F1: 5 | G1: 6 | H1: 7 | I1: 8
A2: FY | B2: vlookup | C2: cha_code | D2: cha_type | E2: balance_id | F2: Line_Desc | G2: balance_sch | H2: balance_found | I2: balance_total
A3: 2017 | B3: =C3&E3 -> 4361 | C3: 436 | D3: =VLOOKUP(C3, TYPE, 3, FALSE) -> C | E3: 1 | F3: Cash and Cash Equivalents | G3: 7075641 | H3: 0 | I3: 7075641 | J3: =D3&E3 -> C1
A4: 2017 | B4: =C4&E4 -> 4362 | C4: 436 | D4: C | E4: 2 | F4: Accounts Receivable net of doubtful accounts | G4: 31350 | H4: 0 | I4: 31350 | J4: =D4&E4 -> C2
A5: 2017 | B5: 4363 | C5: 436 | D5: C | E5: 3 | F5: Grants Receivable - State | G5: 542 | H5: 0 | I5: 542 | J5: C3
A6: 2017 | B6: 4364 | C6: 436 | D6: C | E6: 4 | F6: Grants Receivable - Federal | G6: 34321 | H6: 0 | I6: 34321 | J6: C4
A7: 2017 | B7: 4365 | C7: 436 | D7: C | E7: 5 | F7: Grants Receivable - Private | G7: 0 | H7: 0 | I7: 0 | J7: C5
A8: 2017 | B8: 4366 | C8: 436 | D8: C | E8: 6 | F8: Contributions Receivable | G8: 0 | H8: 0 | I8: 0 | J8: C6
A9: 2017 | B9: 4367 | C9: 436 | D9: C | E9: 7 | F9: Due from related parties | G9: 0 | H9: 0 | I9: 0 | J9: C7
A10: 2017 | B10: 4368 | C10: 436 | D10: C | E10: 8 | F10: Prepaid Expenses / Inventory | G10: 0 | H10: 0 | I10: 0 | J10: C8
A11: 2017 | B11: 4369 | C11: 436 | D11: C | E11: 9 | F11: Short-Term Investments | G11: 0 | H11: 0 | I11: 0 | J11: C9
A12: 2017 | B12: 43610 | C12: 436 | D12: C | E12: 10 | F12: Deposit (Security, Other) | G12: 162881 | H12: 0 | I12: 162881 | J12: C10
A13: 2017 | B13: 43611 | C13: 436 | D13: C | E13: 11 | F13: Restricted Current Assets | G13: 0 | H13: 0 | I13: 0 | J13: C11
A14: 2017 | B14: 43612 | C14: 436 | D14: C | E14: 12 | F14: TOTAL CURRENT ASSETS | G14: 7304735 | H14: 0 | I14: 7304735 | J14: C12
A15: 2017 | B15: 43613 | C15: 436 | D15: C | E15: 13 | F15: - Land and Buildings | G15: 0 | H15: 0 | I15: 0 | J15: C13
A16: 2017 | B16: 43614 | C16: 436 | D16: C | E16: 14 | F16: - Building/Leasehold Improvement | G16: 2669662 | H16: 0 | I16: 2669662 | J16: C14
A17: 2017 | B17: 43615 | C17: 436 | D17: C | E17: 15 | F17: - Furniture and Equipment | G17: 531883 | H17: 0 | I17: 531883 | J17: C15
A18: 2017 | B18: 43616 | C18: 436 | D18: C | E18: 16 | F18: - Less Accumulated Depreciation | G18: -2573308 | H18: 0 | I18: -2573308 | J18: C16
A19: 2017 | B19: 43617 | C19: 436 | D19: C | E19: 17 | F19: Net Capital Assets | G19: 628237 | H19: 0 | I19: 628237 | J19: C17
A20: 2017 | B20: 43618 | C20: 436 | D20: C | E20: 18 | F20: Restricted Noncurrent Assets | G20: 0 | H20: 0 | I20: 0 | J20: C18
A21: 2017 | B21: 43619 | C21: 436 | D21: C | E21: 19 | F21: Long-Term Investments | G21: 0 | H21: 0 | I21: 0 | J21: C19
A22: 2017 | B22: 43620 | C22: 436 | D22: C | E22: 20 | F22: Building Acquisition / Financing Costs / Deferred Expenses | G22: 0 | H22: 0 | I22: 0 | J22: C20
A23: 2017 | B23: 43621 | C23: 436 | D23: C | E23: 21 | F23: Long-Term Grants / Contributions Receivable | G23: 0 | H23: 0 | I23: 0 | J23: C21
A24: 2017 | B24: 43622 | C24: 436 | D24: C | E24: 22 | F24: TOTAL NONCURRENT ASSETS | G24: 628237 | H24: 0 | I24: 628237 | J24: C22
A25: 2017 | B25: 43623 | C25: 436 | D25: C | E25: 23 | F25: TOTAL ASSETS | G25: 7932972 | H25: 0 | I25: 7932972 | J25: C23
A26: 2017 | B26: 43624 | C26: 436 | D26: C | E26: 24 | F26: Accounts Payable | G26: 28456 | H26: 0 | I26: 28456 | J26: C24
A27: 2017 | B27: 43625 | C27: 436 | D27: C | E27: 25 | F27: Accrued Expenses / Accrued Payroll | G27: 337815 | H27: 0 | I27: 337815 | J27: C25
A28: 2017 | B28: 43626 | C28: 436 | D28: C | E28: 26 | F28: Deferred Revenue | G28: 35158 | H28: 0 | I28: 35158 | J28: C26
A29: 2017 | B29: 43627 | C29: 436 | D29: C | E29: 27 | F29: Due to related parties | G29: 0 | H29: 0 | I29: 0 | J29: C27
A30: 2017 | B30: 43628 | C30: 436 | D30: C | E30: 28 | F30: Current Debt Payable | G30: 0 | H30: 0 | I30: 0 | J30: C28
A31: 2017 | B31: 43629 | C31: 436 | D31: C | E31: 29 | F31: Current Lease Obligations Payable | G31: 0 | H31: 0 | I31: 0 | J31: C29
A32: 2017 | B32: 43630 | C32: 436 | D32: C | E32: 30 | F32: TOTAL CURRENT LIABILITIES | G32: 401429 | H32: 0 | I32: 401429 | J32: C30
A33: 2017 | B33: 43631 | C33: 436 | D33: C | E33: 31 | F33: Noncurrent Lease Obligations | G33: 0 | H33: 0 | I33: 0 | J33: C31
A34: 2017 | B34: 43632 | C34: 436 | D34: C | E34: 32 | F34: Long-Term Debt | G34: 0 | H34: 0 | I34: 0 | J34: C32
A35: 2017 | B35: 43633 | C35: 436 | D35: C | E35: 33 | F35: Deferred Revenue | G35: 0 | H35: 0 | I35: 0 | J35: C33
A36: 2017 | B36: 43634 | C36: 436 | D36: C | E36: 34 | F36: TOTAL NONCURRENT LIABILITIES | G36: 0 | H36: 0 | I36: 0 | J36: C34
A37: 2017 | B37: 43635 | C37: 436 | D37: C | E37: 35 | F37: TOTAL LIABILITIES | G37: 401429 | H37: 0 | I37: 401429 | J37: C35
A38: 2017 | B38: 43636 | C38: 436 | D38: C | E38: 36 | F38: Investment in capital assets (net of related debt) | G38: 628237 | H38: 0 | I38: 628237 | J38: C36
A39: 2017 | B39: 43637 | C39: 436 | D39: C | E39: 37 | F39: Temporarily Restricted | G39: 3015000 | H39: 0 | I39: 3015000 | J39: C37
A40: 2017 | B40: 43638 | C40: 436 | D40: C | E40: 38 | F40: Permanently Restricted | G40: 0 | H40: 0 | I40: 0 | J40: C38
A41: 2017 | B41: 43639 | C41: 436 | D41: C | E41: 39 | F41: Unrestricted (non-capital) | G41: 3888306 | H41: 0 | I41: 3888306 | J41: C39
A42: 2017 | B42: 43640 | C42: 436 | D42: C | E42: 40 | F42: TOTAL NET ASSETS | G42: 7531543 | H42: 0 | I42: 7531543 | J42: C40
A43: 2017 | B43: 43641 | C43: 436 | D43: C | E43: 41 | F43: TOTAL LIABILITIES AND NET ASSETS | G43: 7932972 | H43: 0 | I43: 7932972 | J43: C41
A44: 2017 | B44: 4071 | C44: 407 | D44: HM | E44: 1 | F44: Cash and Cash Equivalents | G44: 8988 | H44: 0 | I44: 8988 | J44: HM1
A45: 2017 | B45: 4072 | C45: 407 | D45: HM | E45: 2 | F45: Accounts Receivable net of doubtful accounts | G45: 0 | H45: 0 | I45: 0 | J45: HM2
A46: 2017 | B46: 4073 | C46: 407 | D46: HM | E46: 3 | F46: Grants Receivable - State | G46: 0 | H46: 0 | I46: 0 | J46: HM3
A47: 2017 | B47: 4074 | C47: 407 | D47: HM | E47: 4 | F47: Grants Receivable - Federal | G47: 247891 | H47: 0 | I47: 247891 | J47: HM4
A48: 2017 | B48: 4075 | C48: 407 | D48: HM | E48: 5 | F48: Grants Receivable - Private | G48: 0 | H48: 0 | I48: 0 | J48: HM5
A49: 2017 | B49: 4076 | C49: 407 | D49: HM | E49: 6 | F49: Contributions Receivable | G49: 0 | H49: 0 | I49: 0 | J49: HM6
A50: 2017 | B50: 4077 | C50: 407 | D50: HM | E50: 7 | F50: Due from related parties | G50: 0 | H50: 0 | I50: 0 | J50: HM7
A51: 2017 | B51: 4078 | C51: 407 | D51: HM | E51: 8 | F51: Prepaid Expenses / Inventory | G51: 2393 | H51: 0 | I51: 2393 | J51: HM8
A52: 2017 | B52: 4079 | C52: 407 | D52: HM | E52: 9 | F52: Short-Term Investments | G52: 0 | H52: 0 | I52: 0 | J52: HM9
A53: 2017 | B53: 40710 | C53: 407 | D53: HM | E53: 10 | F53: Deposit (Security, Other) | G53: 0 | H53: 0 | I53: 0 | J53: HM10
A54: 2017 | B54: 40711 | C54: 407 | D54: HM | E54: 11 | F54: Restricted Current Assets | G54: 0 | H54: 0 | I54: 0 | J54: HM11
A55: 2017 | B55: 40712 | C55: 407 | D55: HM | E55: 12 | F55: TOTAL CURRENT ASSETS | G55: 259272 | H55: 0 | I55: 259272 | J55: HM12
A56: 2017 | B56: 40713 | C56: 407 | D56: HM | E56: 13 | F56: - Land and Buildings | G56: 0 | H56: 0 | I56: 0 | J56: HM13
A57: 2017 | B57: 40714 | C57: 407 | D57: HM | E57: 14 | F57: - Building/Leasehold Improvement | G57: 0 | H57: 0 | I57: 0 | J57: HM14
A58: 2017 | B58: 40715 | C58: 407 | D58: HM | E58: 15 | F58: - Furniture and Equipment | G58: 0 | H58: 0 | I58: 0 | J58: HM15
A59: 2017 | B59: 40716 | C59: 407 | D59: HM | E59: 16 | F59: - Less Accumulated Depreciation | G59: 0 | H59: 0 | I59: 0 | J59: HM16
A60: 2017 | B60: 40717 | C60: 407 | D60: HM | E60: 17 | F60: Net Capital Assets | G60: 0 | H60: 0 | I60: 0 | J60: HM17
A61: 2017 | B61: 40718 | C61: 407 | D61: HM | E61: 18 | F61: Restricted Noncurrent Assets | G61: 0 | H61: 0 | I61: 0 | J61: HM18
A62: 2017 | B62: 40719 | C62: 407 | D62: HM | E62: 19 | F62: Long-Term Investments | G62: 0 | H62: 0 | I62: 0 | J62: HM19
A63: 2017 | B63: 40720 | C63: 407 | D63: HM | E63: 20 | F63: Building Acquisition / Financing Costs / Deferred Expenses | G63: 0 | H63: 0 | I63: 0 | J63: HM20
A64: 2017 | B64: 40721 | C64: 407 | D64: HM | E64: 21 | F64: Long-Term Grants / Contributions Receivable | G64: 0 | H64: 0 | I64: 0 | J64: HM21
A65: 2017 | B65: 40722 | C65: 407 | D65: HM | E65: 22 | F65: TOTAL NONCURRENT ASSETS | G65: 0 | H65: 0 | I65: 0 | J65: HM22
A66: 2017 | B66: 40723 | C66: 407 | D66: HM | E66: 23 | F66: TOTAL ASSETS | G66: 259272 | H66: 0 | I66: 259272 | J66: HM23
A67: 2017 | B67: 40724 | C67: 407 | D67: =VLOOKUP(C67, TYPE, 3, FALSE) -> HM | E67: 24 | F67: Accounts Payable | G67: 59783 | H67: 0 | I67: 59783 | J67: HM24
A68: 2017 | B68: =C68&E68 -> 40725 | C68: 407 | D68: HM | E68: 25 | F68: Accrued Expenses / Accrued Payroll | G68: 357 | H68: 0 | I68: 357 | J68: =D68&E68 -> HM25
A69: 2017 | B69: 40726 | C69: 407 | D69: HM | E69: 26 | F69: Deferred Revenue | G69: 0 | H69: 0 | I69: 0 | J69: HM26
A70: 2017 | B70: 40727 | C70: 407 | D70: HM | E70: 27 | F70: Due to related parties | G70: 0 | H70: 0 | I70: 0 | J70: HM27
A71: 2017 | B71: 40728 | C71: 407 | D71: HM | E71: 28 | F71: Current Debt Payable | G71: 0 | H71: 0 | I71: 0 | J71: HM28
A72: 2017 | B72: 40729 | C72: 407 | D72: HM | E72: 29 | F72: Current Lease Obligations Payable | G72: 0 | H72: 0 | I72: 0 | J72: HM29
A73: 2017 | B73: 40730 | C73: 407 | D73: HM | E73: 30 | F73: TOTAL CURRENT LIABILITIES | G73: 60140 | H73: 0 | I73: 60140 | J73: HM30
A74: 2017 | B74: 40731 | C74: 407 | D74: HM | E74: 31 | F74: Noncurrent Lease Obligations | G74: 0 | H74: 0 | I74: 0 | J74: HM31
A75: 2017 | B75: 40732 | C75: 407 | D75: HM | E75: 32 | F75: Long-Term Debt | G75: 0 | H75: 0 | I75: 0 | J75: HM32
A76: 2017 | B76: 40733 | C76: 407 | D76: HM | E76: 33 | F76: Deferred Revenue | G76: 0 | H76: 0 | I76: 0 | J76: HM33
A77: 2017 | B77: 40734 | C77: 407 | D77: HM | E77: 34 | F77: TOTAL NONCURRENT LIABILITIES | G77: 0 | H77: 0 | I77: 0 | J77: HM34
A78: 2017 | B78: 40735 | C78: 407 | D78: HM | E78: 35 | F78: TOTAL LIABILITIES | G78: 60140 | H78: 0 | I78: 60140 | J78: HM35
A79: 2017 | B79: 40736 | C79: 407 | D79: HM | E79: 36 | F79: Investment in capital assets (net of related debt) | G79: 0 | H79: 0 | I79: 0 | J79: HM36
A80: 2017 | B80: 40737 | C80: 407 | D80: HM | E80: 37 | F80: Temporarily Restricted | G80: 0 | H80: 0 | I80: 0 | J80: HM37
A81: 2017 | B81: 40738 | C81: 407 | D81: HM | E81: 38 | F81: Permanently Restricted | G81: 0 | H81: 0 | I81: 0 | J81: HM38
A82: 2017 | B82: 40739 | C82: 407 | D82: HM | E82: 39 | F82: Unrestricted (non-capital) | G82: 199132 | H82: 0 | I82: 199132 | J82: HM39
A83: 2017 | B83: 40740 | C83: 407 | D83: HM | E83: 40 | F83: TOTAL NET ASSETS | G83: 199132 | H83: 0 | I83: 199132 | J83: HM40
A84: 2017 | B84: 40741 | C84: 407 | D84: HM | E84: 41 | F84: TOTAL LIABILITIES AND NET ASSETS | G84: 259272 | H84: 0 | I84: 259272 | J84: HM41
A85: 2017 | B85: 4091 | C85: 409 | D85: C | E85: 1 | F85: Cash and Cash Equivalents | G85: 1334488 | H85: 658501 | I85: 1992989 | J85: C1
A86: 2017 | B86: 4092 | C86: 409 | D86: C | E86: 2 | F86: Accounts Receivable net of doubtful accounts | G86: 37207 | H86: 7434 | I86: 44641 | J86: C2
A87: 2017 | B87: 4093 | C87: 409 | D87: C | E87: 3 | F87: Grants Receivable - State | G87: 0 | H87: 0 | I87: 0 | J87: C3
A88: 2017 | B88: 4094 | C88: 409 | D88: C | E88: 4 | F88: Grants Receivable - Federal | G88: 16388 | H88: 0 | I88: 16388 | J88: C4
A89: 2017 | B89: 4095 | C89: 409 | D89: C | E89: 5 | F89: Grants Receivable - Private | G89: 0 | H89: 0 | I89: 0 | J89: C5
A90: 2017 | B90: 4096 | C90: 409 | D90: C | E90: 6 | F90: Contributions Receivable | G90: 0 | H90: 110000 | I90: 110000 | J90: C6
A91: 2017 | B91: 4097 | C91: 409 | D91: C | E91: 7 | F91: Due from related parties | G91: 201689 | H91: -201689 | I91: 0 | J91: C7
A92: 2017 | B92: 4098 | C92: 409 | D92: C | E92: 8 | F92: Prepaid Expenses / Inventory | G92: 54638 | H92: 3253 | I92: 57891 | J92: C8
A93: 2017 | B93: 4099 | C93: 409 | D93: C | E93: 9 | F93: Short-Term Investments | G93: 0 | H93: 0 | I93: 0 | J93: C9
A94: 2017 | B94: 40910 | C94: 409 | D94: C | E94: 10 | F94: Deposit (Security, Other) | G94: 0 | H94: 0 | I94: 0 | J94: C10
A95: 2017 | B95: 40911 | C95: 409 | D95: C | E95: 11 | F95: Restricted Current Assets | G95: 0 | H95: 0 | I95: 0 | J95: C11
A96: 2017 | B96: 40912 | C96: 409 | D96: C | E96: 12 | F96: TOTAL CURRENT ASSETS | G96: 1644410 | H96: 577499 | I96: 2221909 | J96: C12
A97: 2017 | B97: 40913 | C97: 409 | D97: C | E97: 13 | F97: - Land and Buildings | G97: 0 | H97: 14752627 | I97: 14752627 | J97: C13
A98: 2017 | B98: 40914 | C98: 409 | D98: C | E98: 14 | F98: - Building/Leasehold Improvement | G98: 0 | H98: 0 | I98: 0 | J98: C14
A99: 2017 | B99: 40915 | C99: 409 | D99: C | E99: 15 | F99: - Furniture and Equipment | G99: 55649 | H99: 365929 | I99: 421578 | J99: C15
A100: 2017 | B100: 40916 | C100: 409 | D100: C | E100: 16 | F100: - Less Accumulated Depreciation | G100: -17360 | H100: -358536 | I100: -375896 | J100: C16
A101: 2017 | B101: 40917 | C101: 409 | D101: C | E101: 17 | F101: Net Capital Assets | G101: 38289 | H101: 14760020 | I101: 14798309 | J101: C17
A102: 2017 | B102: 40918 | C102: 409 | D102: C | E102: 18 | F102: Restricted Noncurrent Assets | G102: 0 | H102: 1034668 | I102: 1034668 | J102: C18
A103: 2017 | B103: 40919 | C103: 409 | D103: C | E103: 19 | F103: Long-Term Investments | G103: 0 | H103: 0 | I103: 0 | J103: C19
A104: 2017 | B104: 40920 | C104: 409 | D104: C | E104: 20 | F104: Building Acquisition / Financing Costs / Deferred Expenses | G104: 0 | H104: 0 | I104: 0 | J104: C20
A105: 2017 | B105: 40921 | C105: 409 | D105: C | E105: 21 | F105: Long-Term Grants / Contributions Receivable | G105: 0 | H105: 10082850 | I105: 10082850 | J105: C21
A106: 2017 | B106: 40922 | C106: 409 | D106: C | E106: 22 | F106: TOTAL NONCURRENT ASSETS | G106: 38289 | H106: 25877538 | I106: 25915827 | J106: C22
A107: 2017 | B107: 40923 | C107: 409 | D107: C | E107: 23 | F107: TOTAL ASSETS | G107: 1682699 | H107: 26455037 | I107: 28137736 | J107: C23
A108: 2017 | B108: 40924 | C108: 409 | D108: C | E108: 24 | F108: Accounts Payable | G108: 87451 | H108: 137950 | I108: 225401 | J108: C24
A109: 2017 | B109: 40925 | C109: 409 | D109: C | E109: 25 | F109: Accrued Expenses / Accrued Payroll | G109: 178297 | H109: 16426 | I109: 194723 | J109: C25
A110: 2017 | B110: 40926 | C110: 409 | D110: C | E110: 26 | F110: Deferred Revenue | G110: 0 | H110: 0 | I110: 0 | J110: C26
A111: 2017 | B111: 40927 | C111: 409 | D111: C | E111: 27 | F111: Due to related parties | G111: 0 | H111: 0 | I111: 0 | J111: C27
A112: 2017 | B112: 40928 | C112: 409 | D112: C | E112: 28 | F112: Current Debt Payable | G112: 0 | H112: 91332 | I112: 91332 | J112: C28
A113: 2017 | B113: 40929 | C113: 409 | D113: C | E113: 29 | F113: Current Lease Obligations Payable | G113: 243446 | H113: -243446 | I113: 0 | J113: C29
A114: 2017 | B114: 40930 | C114: 409 | D114: C | E114: 30 | F114: TOTAL CURRENT LIABILITIES | G114: 509194 | H114: 2262 | I114: 511456 | J114: C30
A115: 2017 | B115: 40931 | C115: 409 | D115: C | E115: 31 | F115: Noncurrent Lease Obligations | G115: 0 | H115: 0 | I115: 0 | J115: C31
A116: 2017 | B116: 40932 | C116: 409 | D116: C | E116: 32 | F116: Long-Term Debt | G116: 0 | H116: 23616164 | I116: 23616164 | J116: C32
A117: 2017 | B117: 40933 | C117: 409 | D117: C | E117: 33 | F117: Deferred Revenue | G117: 0 | H117: 0 | I117: 0 | J117: C33
A118: 2017 | B118: 40934 | C118: 409 | D118: C | E118: 34 | F118: TOTAL NONCURRENT LIABILITIES | G118: 0 | H118: 23616164 | I118: 23616164 | J118: C34
A119: 2017 | B119: 40935 | C119: 409 | D119: C | E119: 35 | F119: TOTAL LIABILITIES | G119: 509194 | H119: 23618426 | I119: 24127620 | J119: C35
A120: 2017 | B120: 40936 | C120: 409 | D120: C | E120: 36 | F120: Investment in capital assets (net of related debt) | G120: 38289 | H120: 1422674 | I120: 1460963 | J120: C36
A121: 2017 | B121: 40937 | C121: 409 | D121: C | E121: 37 | F121: Temporarily Restricted | G121: 0 | H121: 113681 | I121: 113681 | J121: C37
A122: 2017 | B122: 40938 | C122: 409 | D122: C | E122: 38 | F122: Permanently Restricted | G122: 0 | H122: 0 | I122: 0 | J122: C38
A123: 2017 | B123: 40939 | C123: 409 | D123: C | E123: 39 | F123: Unrestricted (non-capital) | G123: 1135216 | H123: 1300256 | I123: 2435472 | J123: C39
A124: 2017 | B124: 40940 | C124: 409 | D124: C | E124: 40 | F124: TOTAL NET ASSETS | G124: 1173505 | H124: 2836611 | I124: 4010116 | J124: C40
A125: 2017 | B125: 40941 | C125: 409 | D125: C | E125: 41 | F125: TOTAL LIABILITIES AND NET ASSETS | G125: 1682699 | H125: 26455037 | I125: 28137736 | J125: C41
A126: 2017 | B126: 4101 | C126: 410 | D126: C | E126: 1 | F126: Cash and Cash Equivalents | G126: 1643070 | H126: 3017311 | I126: 4660381 | J126: C1
A127: 2017 | B127: 4102 | C127: 410 | D127: C | E127: 2 | F127: Accounts Receivable net of doubtful accounts | G127: 11101 | H127: 0 | I127: 11101 | J127: C2
A128: 2017 | B128: 4103 | C128: 410 | D128: C | E128: 3 | F128: Grants Receivable - State | G128: 207887 | H128: 0 | I128: 207887 | J128: C3
A129: 2017 | B129: 4104 | C129: 410 | D129: C | E129: 4 | F129: Grants Receivable - Federal | G129: 429733 | H129: 0 | I129: 429733 | J129: C4
A130: 2017 | B130: 4105 | C130: 410 | D130: C | E130: 5 | F130: Grants Receivable - Private | G130: 0 | H130: 569833 | I130: 569833 | J130: C5
A131: 2017 | B131: 4106 | C131: 410 | D131: =VLOOKUP(C131, TYPE, 3, FALSE) -> C | E131: 6 | F131: Contributions Receivable | G131: 0 | H131: 0 | I131: 0 | J131: C6
A132: 2017 | B132: =C132&E132 -> 4107 | C132: 410 | D132: C | E132: 7 | F132: Due from related parties | G132: -1863028 | H132: 1863028 | I132: 0 | J132: =D132&E132 -> C7
A133: 2017 | B133: 4108 | C133: 410 | D133: C | E133: 8 | F133: Prepaid Expenses / Inventory | G133: 199900 | H133: 0 | I133: 199900 | J133: C8
A134: 2017 | B134: 4109 | C134: 410 | D134: C | E134: 9 | F134: Short-Term Investments | G134: 0 | H134: 0 | I134: 0 | J134: C9
A135: 2017 | B135: 41010 | C135: 410 | D135: C | E135: 10 | F135: Deposit (Security, Other) | G135: 0 | H135: 37050 | I135: 37050 | J135: C10
A136: 2017 | B136: 41011 | C136: 410 | D136: C | E136: 11 | F136: Restricted Current Assets | G136: 0 | H136: 0 | I136: 0 | J136: C11
A137: 2017 | B137: 41012 | C137: 410 | D137: C | E137: 12 | F137: TOTAL CURRENT ASSETS | G137: 628663 | H137: 5487222 | I137: 6115885 | J137: C12
A138: 2017 | B138: 41013 | C138: 410 | D138: C | E138: 13 | F138: - Land and Buildings | G138: 30567361 | H138: 108639 | I138: 30676000 | J138: C13
A139: 2017 | B139: 41014 | C139: 410 | D139: C | E139: 14 | F139: - Building/Leasehold Improvement | G139: 901735 | H139: 0 | I139: 901735 | J139: C14
A140: 2017 | B140: 41015 | C140: 410 | D140: C | E140: 15 | F140: - Furniture and Equipment | G140: 1361109 | H140: 0 | I140: 1361109 | J140: C15
A141: 2017 | B141: 41016 | C141: 410 | D141: C | E141: 16 | F141: - Less Accumulated Depreciation | G141: -2056262 | H141: 0 | I141: -2056262 | J141: C16
A142: 2017 | B142: 41017 | C142: 410 | D142: C | E142: 17 | F142: Net Capital Assets | G142: 30773943 | H142: 108639 | I142: 30882582 | J142: C17
A143: 2017 | B143: 41018 | C143: 410 | D143: C | E143: 18 | F143: Restricted Noncurrent Assets | G143: 996730 | H143: 1588616 | I143: 2585346 | J143: C18
A144: 2017 | B144: 41019 | C144: 410 | D144: C | E144: 19 | F144: Long-Term Investments | G144: 0 | H144: 0 | I144: 0 | J144: C19
A145: 2017 | B145: 41020 | C145: 410 | D145: C | E145: 20 | F145: Building Acquisition / Financing Costs / Deferred Expenses | G145: -9682900 | H145: 9682900 | I145: 0 | J145: C20
A146: 2017 | B146: 41021 | C146: 410 | D146: C | E146: 21 | F146: Long-Term Grants / Contributions Receivable | G146: 0 | H146: 7090944 | I146: 7090944 | J146: C21
A147: 2017 | B147: 41022 | C147: 410 | D147: C | E147: 22 | F147: TOTAL NONCURRENT ASSETS | G147: 22087773 | H147: 18471099 | I147: 40558872 | J147: C22
A148: 2017 | B148: 41023 | C148: 410 | D148: C | E148: 23 | F148: TOTAL ASSETS | G148: 22716436 | H148: 23958321 | I148: 46674757 | J148: C23
A149: 2017 | B149: 41024 | C149: 410 | D149: C | E149: 24 | F149: Accounts Payable | G149: 525495 | H149: 76958 | I149: 602453 | J149: C24
A150: 2017 | B150: 41025 | C150: 410 | D150: C | E150: 25 | F150: Accrued Expenses / Accrued Payroll | G150: 689059 | H150: 2701 | I150: 691760 | J150: C25
A151: 2017 | B151: 41026 | C151: 410 | D151: C | E151: 26 | F151: Deferred Revenue | G151: 6654 | H151: 0 | I151: 6654 | J151: C26
A152: 2017 | B152: 41027 | C152: 410 | D152: C | E152: 27 | F152: Due to related parties | G152: 0 | H152: 0 | I152: 0 | J152: C27
A153: 2017 | B153: 41028 | C153: 410 | D153: C | E153: 28 | F153: Current Debt Payable | G153: 54911 | H153: 147987 | I153: 202898 | J153: C28
A154: 2017 | B154: 41029 | C154: 410 | D154: C | E154: 29 | F154: Current Lease Obligations Payable | G154: 0 | H154: 0 | I154: 0 | J154: C29
A155: 2017 | B155: 41030 | C155: 410 | D155: C | E155: 30 | F155: TOTAL CURRENT LIABILITIES | G155: 1276119 | H155: 227646 | I155: 1503765 | J155: C30
A156: 2017 | B156: 41031 | C156: 410 | D156: C | E156: 31 | F156: Noncurrent Lease Obligations | G156: 151065 | H156: 0 | I156: 151065 | J156: C31
A157: 2017 | B157: 41032 | C157: 410 | D157: C | E157: 32 | F157: Long-Term Debt | G157: 22445089 | H157: 12698904 | I157: 35143993 | J157: C32
A158: 2017 | B158: 41033 | C158: 410 | D158: C | E158: 33 | F158: Deferred Revenue | G158: 0 | H158: 359000 | I158: 359000 | J158: C33
A159: 2017 | B159: 41034 | C159: 410 | D159: C | E159: 34 | F159: TOTAL NONCURRENT LIABILITIES | G159: 22596154 | H159: 13057904 | I159: 35654058 | J159: C34
A160: 2017 | B160: 41035 | C160: 410 | D160: C | E160: 35 | F160: TOTAL LIABILITIES | G160: 23872273 | H160: 13285550 | I160: 37157823 | J160: C35
A161: 2017 | B161: 41036 | C161: 410 | D161: C | E161: 36 | F161: Investment in capital assets (net of related debt) | G161: -1104902 | H161: 5368064 | I161: 4263162 | J161: C36
A162: 2017 | B162: 41037 | C162: 410 | D162: C | E162: 37 | F162: Temporarily Restricted | G162: 0 | H162: 1321595 | I162: 1321595 | J162: C37
A163: 2017 | B163: 41038 | C163: 410 | D163: C | E163: 38 | F163: Permanently Restricted | G163: 0 | H163: 0 | I163: 0 | J163: C38
A164: 2017 | B164: 41039 | C164: 410 | D164: C | E164: 39 | F164: Unrestricted (non-capital) | G164: -50935 | H164: 3983112 | I164: 3932177 | J164: C39
A165: 2017 | B165: 41040 | C165: 410 | D165: C | E165: 40 | F165: TOTAL NET ASSETS | G165: -1155837 | H165: 10672771 | I165: 9516934 | J165: C40
A166: 2017 | B166: 41041 | C166: 410 | D166: C | E166: 41 | F166: TOTAL LIABILITIES AND NET ASSETS | G166: 22716436 | H166: 23958321 | I166: 46674757 | J166: C41
A167: 2017 | B167: 4111 | C167: 411 | D167: HM | E167: 1 | F167: Cash and Cash Equivalents | G167: 298498 | H167: 136265 | I167: 434763 | J167: HM1
A168: 2017 | B168: 4112 | C168: 411 | D168: HM | E168: 2 | F168: Accounts Receivable net of doubtful accounts | G168: 189575 | H168: 0 | I168: 189575 | J168: HM2
A169: 2017 | B169: 4113 | C169: 411 | D169: HM | E169: 3 | F169: Grants Receivable - State | G169: 0 | H169: 0 | I169: 0 | J169: HM3
A170: 2017 | B170: 4114 | C170: 411 | D170: HM | E170: 4 | F170: Grants Receivable - Federal | G170: 155871 | H170: 0 | I170: 155871 | J170: HM4
A171: 2017 | B171: 4115 | C171: 411 | D171: HM | E171: 5 | F171: Grants Receivable - Private | G171: 0 | H171: 0 | I171: 0 | J171: HM5
A172: 2017 | B172: 4116 | C172: 411 | D172: HM | E172: 6 | F172: Contributions Receivable | G172: 0 | H172: 0 | I172: 0 | J172: HM6
A173: 2017 | B173: 4117 | C173: 411 | D173: HM | E173: 7 | F173: Due from related parties | G173: -86008 | H173: 86008 | I173: 0 | J173: HM7
A174: 2017 | B174: 4118 | C174: 411 | D174: HM | E174: 8 | F174: Prepaid Expenses / Inventory | G174: 6215 | H174: 0 | I174: 6215 | J174: HM8
A175: 2017 | B175: 4119 | C175: 411 | D175: HM | E175: 9 | F175: Short-Term Investments | G175: 0 | H175: 0 | I175: 0 | J175: HM9
A176: 2017 | B176: 41110 | C176: 411 | D176: HM | E176: 10 | F176: Deposit (Security, Other) | G176: 0 | H176: 0 | I176: 0 | J176: HM10
A177: 2017 | B177: 41111 | C177: 411 | D177: HM | E177: 11 | F177: Restricted Current Assets | G177: 0 | H177: 0 | I177: 0 | J177: HM11
A178: 2017 | B178: 41112 | C178: 411 | D178: HM | E178: 12 | F178: TOTAL CURRENT ASSETS | G178: 564151 | H178: 222273 | I178: 786424 | J178: HM12
A179: 2017 | B179: 41113 | C179: 411 | D179: HM | E179: 13 | F179: - Land and Buildings | G179: 0 | H179: 0 | I179: 0 | J179: HM13
A180: 2017 | B180: 41114 | C180: 411 | D180: HM | E180: 14 | F180: - Building/Leasehold Improvement | G180: 0 | H180: 0 | I180: 0 | J180: HM14
A181: 2017 | B181: 41115 | C181: 411 | D181: HM | E181: 15 | F181: - Furniture and Equipment | G181: 73847 | H181: 0 | I181: 73847 | J181: HM15
A182: 2017 | B182: 41116 | C182: 411 | D182: HM | E182: 16 | F182: - Less Accumulated Depreciation | G182: -34100 | H182: 0 | I182: -34100 | J182: HM16
A183: 2017 | B183: 41117 | C183: 411 | D183: HM | E183: 17 | F183: Net Capital Assets | G183: 39747 | H183: 0 | I183: 39747 | J183: HM17
A184: 2017 | B184: 41118 | C184: 411 | D184: HM | E184: 18 | F184: Restricted Noncurrent Assets | G184: 0 | H184: 0 | I184: 0 | J184: HM18
A185: 2017 | B185: 41119 | C185: 411 | D185: HM | E185: 19 | F185: Long-Term Investments | G185: 0 | H185: 0 | I185: 0 | J185: HM19
A186: 2017 | B186: 41120 | C186: 411 | D186: HM | E186: 20 | F186: Building Acquisition / Financing Costs / Deferred Expenses | G186: 0 | H186: 0 | I186: 0 | J186: HM20
A187: 2017 | B187: 41121 | C187: 411 | D187: HM | E187: 21 | F187: Long-Term Grants / Contributions Receivable | G187: 0 | H187: 0 | I187: 0 | J187: HM21
A188: 2017 | B188: 41122 | C188: 411 | D188: HM | E188: 22 | F188: TOTAL NONCURRENT ASSETS | G188: 39747 | H188: 0 | I188: 39747 | J188: HM22
A189: 2017 | B189: 41123 | C189: 411 | D189: HM | E189: 23 | F189: TOTAL ASSETS | G189: 603898 | H189: 222273 | I189: 826171 | J189: HM23
A190: 2017 | B190: 41124 | C190: 411 | D190: HM | E190: 24 | F190: Accounts Payable | G190: 364395 | H190: 0 | I190: 364395 | J190: HM24
A191: 2017 | B191: 41125 | C191: 411 | D191: HM | E191: 25 | F191: Accrued Expenses / Accrued Payroll | G191: 6349 | H191: 0 | I191: 6349 | J191: HM25
A192: 2017 | B192: 41126 | C192: 411 | D192: HM | E192: 26 | F192: Deferred Revenue | G192: 0 | H192: 0 | I192: 0 | J192: HM26
A193: 2017 | B193: 41127 | C193: 411 | D193: HM | E193: 27 | F193: Due to related parties | G193: 0 | H193: 0 | I193: 0 | J193: HM27
A194: 2017 | B194: 41128 | C194: 411 | D194: HM | E194: 28 | F194: Current Debt Payable | G194: 0 | H194: 0 | I194: 0 | J194: HM28
A195: 2017 | B195: 41129 | C195: 411 | D195: =VLOOKUP(C195, TYPE, 3, FALSE) -> HM | E195: 29 | F195: Current Lease Obligations Payable | G195: 0 | H195: 0 | I195: 0 | J195: HM29
A196: 2017 | B196: =C196&E196 -> 41130 | C196: 411 | D196: HM | E196: 30 | F196: TOTAL CURRENT LIABILITIES | G196: 370744 | H196: 0 | I196: 370744 | J196: =D196&E196 -> HM30
A197: 2017 | B197: 41131 | C197: 411 | D197: HM | E197: 31 | F197: Noncurrent Lease Obligations | G197: 0 | H197: 0 | I197: 0 | J197: HM31
A198: 2017 | B198: 41132 | C198: 411 | D198: HM | E198: 32 | F198: Long-Term Debt | G198: 0 | H198: 0 | I198: 0 | J198: HM32
A199: 2017 | B199: 41133 | C199: 411 | D199: HM | E199: 33 | F199: Deferred Revenue | G199: 0 | H199: 0 | I199: 0 | J199: HM33
A200: 2017 | B200: 41134 | C200: 411 | D200: HM | E200: 34 | F200: TOTAL NONCURRENT LIABILITIES | G200: 0 | H200: 0 | I200: 0 | J200: HM34
... 3123 more rows

Sheet INC17 (hidden)
B1: 1 | C1: 2 | D1: 3 | E1: 4 | F1: 5 | G1: 6 | H1: 7 | I1: 8
A2: FY | B2: vlookup | C2: cha_code | D2: cha_type | E2: income_id | F2: Line_Desc | G2: income_sch | H2: income_found | I2: income_total
A3: 2017 | B3: =C3&E3 -> 4361 | C3: 436 | D3: =VLOOKUP(C3, TYPE, 3, FALSE) -> C | E3: 1 | F3: Tuition | G3: 7187768 | H3: 0 | I3: 7187768 | J3: =D3&E3 -> C1
A4: 2017 | B4: =C4&E4 -> 4362a | C4: 436 | D4: C | E4: 2a | F4: Grants - State - passed through ESE | G4: 0 | H4: 0 | I4: 0 | J4: =D4&E4 -> C2a
A5: 2017 | B5: 4362b | C5: 436 | D5: C | E5: 2b | F5: Grants - State - other non-ESE pass-through | G5: 0 | H5: 0 | I5: 0 | J5: C2b
A6: 2017 | B6: 4363 | C6: 436 | D6: C | E6: 3 | F6: Grants - Federal - Passed through ESE | G6: 240845 | H6: 0 | I6: 240845 | J6: C3
A7: 2017 | B7: 4364 | C7: 436 | D7: C | E7: 4 | F7: Grants - Federal - Direct or other pass-through | G7: 0 | H7: 0 | I7: 0 | J7: C4
A8: 2017 | B8: 4365a | C8: 436 | D8: C | E8: 5a | F8: Grants - Private (restricted) | G8: 99519 | H8: 0 | I8: 99519 | J8: C5a
A9: 2017 | B9: 4365b | C9: 436 | D9: C | E9: 5b | F9: Grants - Private (unrestricted) | G9: 56590 | H9: 0 | I9: 56590 | J9: C5b
A10: 2017 | B10: 4366 | C10: 436 | D10: C | E10: 6 | F10: Nutrition Funding - State | G10: 2589 | H10: 0 | I10: 2589 | J10: C6
A11: 2017 | B11: 4367 | C11: 436 | D11: C | E11: 7 | F11: Nutrition Funding - Federal | G11: 158215 | H11: 0 | I11: 158215 | J11: C7
A12: 2017 | B12: 4368 | C12: 436 | D12: C | E12: 8 | F12: Nutrition Funding - Fees | G12: 0 | H12: 0 | I12: 0 | J12: C8
A13: 2017 | B13: 4369 | C13: 436 | D13: C | E13: 9 | F13: Other Program / Student Activity Fees | G13: 0 | H13: 0 | I13: 0 | J13: C9
A14: 2017 | B14: 43610 | C14: 436 | D14: C | E14: 10 | F14: Regional Transportation Aid | G14: 0 | H14: 0 | I14: 0 | J14: C10
A15: 2017 | B15: 43611 | C15: 436 | D15: C | E15: 11 | F15: Medicaid Reimbursements | G15: 0 | H15: 0 | I15: 0 | J15: C11
A16: 2017 | B16: 43612 | C16: 436 | D16: C | E16: 12 | F16: Circuit Breaker Reimbursements | G16: 0 | H16: 0 | I16: 0 | J16: C12
A17: 2017 | B17: 43613a | C17: 436 | D17: C | E17: 13a | F17: Contributions, in-kind, host district | G17: 0 | H17: 0 | I17: 0 | J17: C13a
A18: 2017 | B18: 43613b | C18: 436 | D18: C | E18: 13b | F18: Contributions, in-kind, other | G18: 1042295 | H18: 0 | I18: 1042295 | J18: C13b
A19: 2017 | B19: 43613c | C19: 436 | D19: C | E19: 13c | F19: Contributions, on-behalf, pension | G19: 0 | H19: 0 | I19: 0 | J19: C13c
A20: 2017 | B20: 43614 | C20: 436 | D20: C | E20: 14 | F20: Contributions, from Component Unit (restricted) | G20: 0 | H20: 0 | I20: 0 | J20: C14
A21: 2017 | B21: 43614b | C21: 436 | D21: C | E21: 14b | F21: Contributions, from Component Unit (unrestricted) | G21: 0 | H21: 0 | I21: 0 | J21: C14b
A22: 2017 | B22: 43615 | C22: 436 | D22: C | E22: 15 | F22: Contributions / Fundraising (restricted) | G22: 0 | H22: 0 | I22: 0 | J22: C15
A23: 2017 | B23: 43615b | C23: 436 | D23: C | E23: 15b | F23: Contributions / Fundraising (unrestricted) | G23: 0 | H23: 0 | I23: 0 | J23: C15b
A24: 2017 | B24: 43616 | C24: 436 | D24: C | E24: 16 | F24: Interest / Investment Income (restricted) | G24: 0 | H24: 0 | I24: 0 | J24: C16
A25: 2017 | B25: 43616a | C25: 436 | D25: C | E25: 16a | F25: Interest / Investment Income (unrestricted) | G25: 11126 | H25: 0 | I25: 11126 | J25: C16a
A26: 2017 | B26: 43617 | C26: 436 | D26: C | E26: 17 | F26: Rental Income | G26: 0 | H26: 0 | I26: 0 | J26: C17
A27: 2017 | B27: 43618 | C27: 436 | D27: C | E27: 18 | F27: Loan Forgiveness or Other Reimbursement | G27: 0 | H27: 0 | I27: 0 | J27: C18
A28: 2017 | B28: 43619 | C28: 436 | D28: C | E28: 19 | F28: Miscellaneous Income | G28: 0 | H28: 0 | I28: 0 | J28: C19
A29: 2017 | B29: 43620 | C29: 436 | D29: C | E29: 20 | F29: TOTAL REVENUES | G29: 8798947 | H29: 0 | I29: 8798947 | J29: C20
A30: 2017 | B30: 43621 | C30: 436 | D30: C | E30: 21 | F30: Administration | G30: 509814 | H30: 0 | I30: 509814 | J30: C21
A31: 2017 | B31: 43622 | C31: 436 | D31: C | E31: 22 | F31: Instructional Services | G31: 4015693 | H31: 0 | I31: 4015693 | J31: C22
A32: 2017 | B32: 43623 | C32: 436 | D32: C | E32: 23 | F32: Pupil Services | G32: 484595 | H32: 0 | I32: 484595 | J32: C23
A33: 2017 | B33: 43624 | C33: 436 | D33: C | E33: 24 | F33: Operation & Maintenance of Plant | G33: 284739 | H33: 0 | I33: 284739 | J33: C24
A34: 2017 | B34: 43625 | C34: 436 | D34: C | E34: 25 | F34: Benefits and Other Fixed Charges | G34: 1530590 | H34: 0 | I34: 1530590 | J34: C25
A35: 2017 | B35: 43626 | C35: 436 | D35: C | E35: 26 | F35: Community Services | G35: 0 | H35: 0 | I35: 0 | J35: C26
A36: 2017 | B36: 43627 | C36: 436 | D36: C | E36: 27 | F36: Non-Operating Financing Expenses | G36: 1350108 | H36: 0 | I36: 1350108 | J36: C27
A37: 2017 | B37: 43628 | C37: 436 | D37: C | E37: 28 | F37: Component Unit Expenses | G37: 0 | H37: 0 | I37: 0 | J37: C28
A38: 2017 | B38: 43629 | C38: 436 | D38: C | E38: 29 | F38: Contributions to School | G38: 0 | H38: 0 | I38: 0 | J38: C29
A39: 2017 | B39: 43630 | C39: 436 | D39: C | E39: 30 | F39: TOTAL EXPENSES | G39: 8175539 | H39: 0 | I39: 8175539 | J39: C30
A40: 2017 | B40: 43631 | C40: 436 | D40: C | E40: 31 | F40: TOTAL GAIN/(LOSS) | G40: 623408 | H40: 0 | I40: 623408 | J40: C31
A41: 2017 | B41: 43632 | C41: 436 | D41: C | E41: 32 | F41: Gain/Loss on Sale of Asset or Lease Transaction | G41: 0 | H41: 0 | I41: 0 | J41: C32
A42: 2017 | B42: 43633 | C42: 436 | D42: C | E42: 33 | F42: Other Gain/Loss | G42: 0 | H42: 0 | I42: 0 | J42: C33
A43: 2017 | B43: 43634 | C43: 436 | D43: C | E43: 34 | F43: TOTAL CHANGES IN NET ASSETS: | G43: 623408 | H43: 0 | I43: 623408 | J43: C34
A44: 2017 | B44: 43635 | C44: 436 | D44: C | E44: 35 | F44: NET ASSETS AT BEGINNING OF YEAR | G44: 6908135 | H44: 0 | I44: 6908135 | J44: C35
A45: 2017 | B45: 43636 | C45: 436 | D45: C | E45: 36 | F45: NET ASSETS AT END OF YEAR | G45: 7531543 | H45: 0 | I45: 7531543 | J45: C36
A46: 2017 | B46: 4071 | C46: 407 | D46: HM | E46: 1 | F46: Tuition | G46: 3974971 | H46: 0 | I46: 3974971 | J46: HM1
A47: 2017 | B47: 4072a | C47: 407 | D47: HM | E47: 2a | F47: Grants - State - passed through ESE | G47: 0 | H47: 0 | I47: 0 | J47: HM2a
A48: 2017 | B48: 4072b | C48: 407 | D48: HM | E48: 2b | F48: Grants - State - other non-ESE pass-through | G48: 0 | H48: 0 | I48: 0 | J48: HM2b
A49: 2017 | B49: 4073 | C49: 407 | D49: HM | E49: 3 | F49: Grants - Federal - Passed through ESE | G49: 288864 | H49: 0 | I49: 288864 | J49: HM3
A50: 2017 | B50: 4074 | C50: 407 | D50: HM | E50: 4 | F50: Grants - Federal - Direct or other pass-through | G50: 0 | H50: 0 | I50: 0 | J50: HM4
A51: 2017 | B51: 4075a | C51: 407 | D51: HM | E51: 5a | F51: Grants - Private (restricted) | G51: 0 | H51: 0 | I51: 0 | J51: HM5a
A52: 2017 | B52: 4075b | C52: 407 | D52: HM | E52: 5b | F52: Grants - Private (unrestricted) | G52: 109909 | H52: 0 | I52: 109909 | J52: HM5b
A53: 2017 | B53: 4076 | C53: 407 | D53: HM | E53: 6 | F53: Nutrition Funding - State | G53: 0 | H53: 0 | I53: 0 | J53: HM6
A54: 2017 | B54: 4077 | C54: 407 | D54: HM | E54: 7 | F54: Nutrition Funding - Federal | G54: 0 | H54: 0 | I54: 0 | J54: HM7
A55: 2017 | B55: 4078 | C55: 407 | D55: HM | E55: 8 | F55: Nutrition Funding - Fees | G55: 0 | H55: 0 | I55: 0 | J55: HM8
A56: 2017 | B56: 4079 | C56: 407 | D56: HM | E56: 9 | F56: Other Program / Student Activity Fees | G56: 4325 | H56: 0 | I56: 4325 | J56: HM9
A57: 2017 | B57: 40710 | C57: 407 | D57: HM | E57: 10 | F57: Regional Transportation Aid | G57: 0 | H57: 0 | I57: 0 | J57: HM10
A58: 2017 | B58: 40711 | C58: 407 | D58: HM | E58: 11 | F58: Medicaid Reimbursements | G58: 0 | H58: 0 | I58: 0 | J58: HM11
A59: 2017 | B59: 40712 | C59: 407 | D59: HM | E59: 12 | F59: Circuit Breaker Reimbursements | G59: 0 | H59: 0 | I59: 0 | J59: HM12
A60: 2017 | B60: 40713a | C60: 407 | D60: HM | E60: 13a | F60: Contributions, in-kind, host district | G60: 0 | H60: 0 | I60: 0 | J60: HM13a
A61: 2017 | B61: 40713b | C61: 407 | D61: HM | E61: 13b | F61: Contributions, in-kind, other | G61: 1033974 | H61: 0 | I61: 1033974 | J61: HM13b
A62: 2017 | B62: 40713c | C62: 407 | D62: HM | E62: 13c | F62: Contributions, on-behalf, pension | G62: 0 | H62: 0 | I62: 0 | J62: HM13c
A63: 2017 | B63: 40714 | C63: 407 | D63: HM | E63: 14 | F63: Contributions, from Component Unit (restricted) | G63: 0 | H63: 0 | I63: 0 | J63: HM14
A64: 2017 | B64: 40714b | C64: 407 | D64: HM | E64: 14b | F64: Contributions, from Component Unit (unrestricted) | G64: 0 | H64: 0 | I64: 0 | J64: HM14b
A65: 2017 | B65: 40715 | C65: 407 | D65: HM | E65: 15 | F65: Contributions / Fundraising (restricted) | G65: 0 | H65: 0 | I65: 0 | J65: HM15
A66: 2017 | B66: 40715b | C66: 407 | D66: HM | E66: 15b | F66: Contributions / Fundraising (unrestricted) | G66: 0 | H66: 0 | I66: 0 | J66: HM15b
A67: 2017 | B67: 40716 | C67: 407 | D67: =VLOOKUP(C67, TYPE, 3, FALSE) -> HM | E67: 16 | F67: Interest / Investment Income (restricted) | G67: 0 | H67: 0 | I67: 0 | J67: HM16
A68: 2017 | B68: =C68&E68 -> 40716a | C68: 407 | D68: HM | E68: 16a | F68: Interest / Investment Income (unrestricted) | G68: 0 | H68: 0 | I68: 0 | J68: =D68&E68 -> HM16a
A69: 2017 | B69: 40717 | C69: 407 | D69: HM | E69: 17 | F69: Rental Income | G69: 0 | H69: 0 | I69: 0 | J69: HM17
A70: 2017 | B70: 40718 | C70: 407 | D70: HM | E70: 18 | F70: Loan Forgiveness or Other Reimbursement | G70: 0 | H70: 0 | I70: 0 | J70: HM18
A71: 2017 | B71: 40719 | C71: 407 | D71: HM | E71: 19 | F71: Miscellaneous Income | G71: 0 | H71: 0 | I71: 0 | J71: HM19
A72: 2017 | B72: 40720 | C72: 407 | D72: HM | E72: 20 | F72: TOTAL REVENUES | G72: 5412043 | H72: 0 | I72: 5412043 | J72: HM20
A73: 2017 | B73: 40721 | C73: 407 | D73: HM | E73: 21 | F73: Administration | G73: 1224991 | H73: 0 | I73: 1224991 | J73: HM21
A74: 2017 | B74: 40722 | C74: 407 | D74: HM | E74: 22 | F74: Instructional Services | G74: 2601440.53 | H74: 0 | I74: 2601440.53 | J74: HM22
A75: 2017 | B75: 40723 | C75: 407 | D75: HM | E75: 23 | F75: Pupil Services | G75: 613898.02 | H75: 0 | I75: 613898.02 | J75: HM23
A76: 2017 | B76: 40724 | C76: 407 | D76: HM | E76: 24 | F76: Operation & Maintenance of Plant | G76: 174032 | H76: 0 | I76: 174032 | J76: HM24
A77: 2017 | B77: 40725 | C77: 407 | D77: HM | E77: 25 | F77: Benefits and Other Fixed Charges | G77: 802498.29 | H77: 0 | I77: 802498.29 | J77: HM25
A78: 2017 | B78: 40726 | C78: 407 | D78: HM | E78: 26 | F78: Community Services | G78: 0 | H78: 0 | I78: 0 | J78: HM26
A79: 2017 | B79: 40727 | C79: 407 | D79: HM | E79: 27 | F79: Non-Operating Financing Expenses | G79: 2862.86 | H79: 0 | I79: 2862.86 | J79: HM27
A80: 2017 | B80: 40728 | C80: 407 | D80: HM | E80: 28 | F80: Component Unit Expenses | G80: 0 | H80: 0 | I80: 0 | J80: HM28
A81: 2017 | B81: 40729 | C81: 407 | D81: HM | E81: 29 | F81: Contributions to School | G81: 0 | H81: 0 | I81: 0 | J81: HM29
A82: 2017 | B82: 40730 | C82: 407 | D82: HM | E82: 30 | F82: TOTAL EXPENSES | G82: 5419722.7 | H82: 0 | I82: 5419722.7 | J82: HM30
A83: 2017 | B83: 40731 | C83: 407 | D83: HM | E83: 31 | F83: TOTAL GAIN/(LOSS) | G83: -7679.7 | H83: 0 | I83: -7679.7 | J83: HM31
A84: 2017 | B84: 40732 | C84: 407 | D84: HM | E84: 32 | F84: Gain/Loss on Sale of Asset or Lease Transaction | G84: 0 | H84: 0 | I84: 0 | J84: HM32
A85: 2017 | B85: 40733 | C85: 407 | D85: HM | E85: 33 | F85: Other Gain/Loss | G85: 0 | H85: 0 | I85: 0 | J85: HM33
A86: 2017 | B86: 40734 | C86: 407 | D86: HM | E86: 34 | F86: TOTAL CHANGES IN NET ASSETS: | G86: -7679.7 | H86: 0 | I86: -7679.7 | J86: HM34
A87: 2017 | B87: 40735 | C87: 407 | D87: HM | E87: 35 | F87: NET ASSETS AT BEGINNING OF YEAR | G87: 206812 | H87: 0 | I87: 206812 | J87: HM35
A88: 2017 | B88: 40736 | C88: 407 | D88: HM | E88: 36 | F88: NET ASSETS AT END OF YEAR | G88: 199132 | H88: 0 | I88: 199132 | J88: HM36
A89: 2017 | B89: 4091 | C89: 409 | D89: C | E89: 1 | F89: Tuition | G89: 3881622 | H89: 0 | I89: 3881622 | J89: C1
A90: 2017 | B90: 4092a | C90: 409 | D90: C | E90: 2a | F90: Grants - State - passed through ESE | G90: 0 | H90: 0 | I90: 0 | J90: C2a
A91: 2017 | B91: 4092b | C91: 409 | D91: C | E91: 2b | F91: Grants - State - other non-ESE pass-through | G91: 0 | H91: 0 | I91: 0 | J91: C2b
A92: 2017 | B92: 4093 | C92: 409 | D92: C | E92: 3 | F92: Grants - Federal - Passed through ESE | G92: 252420 | H92: 0 | I92: 252420 | J92: C3
A93: 2017 | B93: 4094 | C93: 409 | D93: C | E93: 4 | F93: Grants - Federal - Direct or other pass-through | G93: 4860 | H93: 0 | I93: 4860 | J93: C4
A94: 2017 | B94: 4095a | C94: 409 | D94: C | E94: 5a | F94: Grants - Private (restricted) | G94: 0 | H94: 57000 | I94: 57000 | J94: C5a
A95: 2017 | B95: 4095b | C95: 409 | D95: C | E95: 5b | F95: Grants - Private (unrestricted) | G95: 0 | H95: 46800 | I95: 46800 | J95: C5b
A96: 2017 | B96: 4096 | C96: 409 | D96: C | E96: 6 | F96: Nutrition Funding - State | G96: 2227 | H96: 0 | I96: 2227 | J96: C6
A97: 2017 | B97: 4097 | C97: 409 | D97: C | E97: 7 | F97: Nutrition Funding - Federal | G97: 202985 | H97: 0 | I97: 202985 | J97: C7
A98: 2017 | B98: 4098 | C98: 409 | D98: C | E98: 8 | F98: Nutrition Funding - Fees | G98: 0 | H98: 0 | I98: 0 | J98: C8
A99: 2017 | B99: 4099 | C99: 409 | D99: C | E99: 9 | F99: Other Program / Student Activity Fees | G99: 0 | H99: 0 | I99: 0 | J99: C9
A100: 2017 | B100: 40910 | C100: 409 | D100: C | E100: 10 | F100: Regional Transportation Aid | G100: 0 | H100: 0 | I100: 0 | J100: C10
A101: 2017 | B101: 40911 | C101: 409 | D101: C | E101: 11 | F101: Medicaid Reimbursements | G101: 28825 | H101: 0 | I101: 28825 | J101: C11
A102: 2017 | B102: 40912 | C102: 409 | D102: C | E102: 12 | F102: Circuit Breaker Reimbursements | G102: 0 | H102: 0 | I102: 0 | J102: C12
A103: 2017 | B103: 40913a | C103: 409 | D103: C | E103: 13a | F103: Contributions, in-kind, host district | G103: 354900 | H103: 0 | I103: 354900 | J103: C13a
A104: 2017 | B104: 40913b | C104: 409 | D104: C | E104: 13b | F104: Contributions, in-kind, other | G104: 0 | H104: 0 | I104: 0 | J104: C13b
A105: 2017 | B105: 40913c | C105: 409 | D105: C | E105: 13c | F105: Contributions, on-behalf, pension | G105: 512797 | H105: 0 | I105: 512797 | J105: C13c
A106: 2017 | B106: 40914 | C106: 409 | D106: C | E106: 14 | F106: Contributions, from Component Unit (restricted) | G106: 51325 | H106: 0 | I106: 51325 | J106: C14
A107: 2017 | B107: 40914b | C107: 409 | D107: C | E107: 14b | F107: Contributions, from Component Unit (unrestricted) | G107: 152770 | H107: 0 | I107: 152770 | J107: C14b
A108: 2017 | B108: 40915 | C108: 409 | D108: C | E108: 15 | F108: Contributions / Fundraising (restricted) | G108: 200 | H108: 191625 | I108: 191825 | J108: C15
A109: 2017 | B109: 40915b | C109: 409 | D109: C | E109: 15b | F109: Contributions / Fundraising (unrestricted) | G109: 334 | H109: 164433 | I109: 164767 | J109: C15b
A110: 2017 | B110: 40916 | C110: 409 | D110: C | E110: 16 | F110: Interest / Investment Income (restricted) | G110: 0 | H110: 0 | I110: 0 | J110: C16
A111: 2017 | B111: 40916a | C111: 409 | D111: C | E111: 16a | F111: Interest / Investment Income (unrestricted) | G111: 932 | H111: 96845 | I111: 97777 | J111: C16a
A112: 2017 | B112: 40917 | C112: 409 | D112: C | E112: 17 | F112: Rental Income | G112: 0 | H112: 0 | I112: 0 | J112: C17
A113: 2017 | B113: 40918 | C113: 409 | D113: C | E113: 18 | F113: Loan Forgiveness or Other Reimbursement | G113: 0 | H113: 0 | I113: 0 | J113: C18
A114: 2017 | B114: 40919 | C114: 409 | D114: C | E114: 19 | F114: Miscellaneous Income | G114: 43231 | H114: 0 | I114: 43231 | J114: C19
A115: 2017 | B115: 40920 | C115: 409 | D115: C | E115: 20 | F115: TOTAL REVENUES | G115: 5489428 | H115: 556703 | I115: 6046131 | J115: C20
A116: 2017 | B116: 40921 | C116: 409 | D116: C | E116: 21 | F116: Administration | G116: 564263 | H116: 0 | I116: 564263 | J116: C21
A117: 2017 | B117: 40922 | C117: 409 | D117: C | E117: 22 | F117: Instructional Services | G117: 2531530 | H117: 0 | I117: 2531530 | J117: C22
A118: 2017 | B118: 40923 | C118: 409 | D118: C | E118: 23 | F118: Pupil Services | G118: 804642 | H118: 0 | I118: 804642 | J118: C23
A119: 2017 | B119: 40924 | C119: 409 | D119: C | E119: 24 | F119: Operation & Maintenance of Plant | G119: 263360 | H119: 0 | I119: 263360 | J119: C24
A120: 2017 | B120: 40925 | C120: 409 | D120: C | E120: 25 | F120: Benefits and Other Fixed Charges | G120: 847467 | H120: 0 | I120: 847467 | J120: C25
A121: 2017 | B121: 40926 | C121: 409 | D121: C | E121: 26 | F121: Community Services | G121: 1733 | H121: 0 | I121: 1733 | J121: C26
A122: 2017 | B122: 40927 | C122: 409 | D122: C | E122: 27 | F122: Non-Operating Financing Expenses | G122: 345591 | H122: 0 | I122: 345591 | J122: C27
A123: 2017 | B123: 40928 | C123: 409 | D123: C | E123: 28 | F123: Component Unit Expenses | G123: 0 | H123: 666076 | I123: 666076 | J123: C28
A124: 2017 | B124: 40929 | C124: 409 | D124: C | E124: 29 | F124: Contributions to School | G124: 0 | H124: 204095 | I124: 204095 | J124: C29
A125: 2017 | B125: 40930 | C125: 409 | D125: C | E125: 30 | F125: TOTAL EXPENSES | G125: 5358586 | H125: 870171 | I125: 6228757 | J125: C30
A126: 2017 | B126: 40931 | C126: 409 | D126: C | E126: 31 | F126: TOTAL GAIN/(LOSS) | G126: 130842 | H126: -313468 | I126: -182626 | J126: C31
A127: 2017 | B127: 40932 | C127: 409 | D127: C | E127: 32 | F127: Gain/Loss on Sale of Asset or Lease Transaction | G127: 0 | H127: 0 | I127: 0 | J127: C32
A128: 2017 | B128: 40933 | C128: 409 | D128: C | E128: 33 | F128: Other Gain/Loss | G128: 0 | H128: 0 | I128: 0 | J128: C33
A129: 2017 | B129: 40934 | C129: 409 | D129: C | E129: 34 | F129: TOTAL CHANGES IN NET ASSETS: | G129: 130842 | H129: -313468 | I129: -182626 | J129: C34
A130: 2017 | B130: 40935 | C130: 409 | D130: C | E130: 35 | F130: NET ASSETS AT BEGINNING OF YEAR | G130: 1042663 | H130: 3150079 | I130: 4192742 | J130: C35
A131: 2017 | B131: 40936 | C131: 409 | D131: =VLOOKUP(C131, TYPE, 3, FALSE) -> C | E131: 36 | F131: NET ASSETS AT END OF YEAR | G131: 1173505 | H131: 2836611 | I131: 4010116 | J131: C36
A132: 2017 | B132: =C132&E132 -> 4101 | C132: 410 | D132: C | E132: 1 | F132: Tuition | G132: 13789897 | H132: 0 | I132: 13789897 | J132: =D132&E132 -> C1
A133: 2017 | B133: 4102a | C133: 410 | D133: C | E133: 2a | F133: Grants - State - passed through ESE | G133: 0 | H133: 0 | I133: 0 | J133: C2a
A134: 2017 | B134: 4102b | C134: 410 | D134: C | E134: 2b | F134: Grants - State - other non-ESE pass-through | G134: 0 | H134: 0 | I134: 0 | J134: C2b
A135: 2017 | B135: 4103 | C135: 410 | D135: C | E135: 3 | F135: Grants - Federal - Passed through ESE | G135: 668130 | H135: 0 | I135: 668130 | J135: C3
A136: 2017 | B136: 4104 | C136: 410 | D136: C | E136: 4 | F136: Grants - Federal - Direct or other pass-through | G136: 0 | H136: 0 | I136: 0 | J136: C4
A137: 2017 | B137: 4105a | C137: 410 | D137: C | E137: 5a | F137: Grants - Private (restricted) | G137: 249158 | H137: 250000 | I137: 499158 | J137: C5a
A138: 2017 | B138: 4105b | C138: 410 | D138: C | E138: 5b | F138: Grants - Private (unrestricted) | G138: 6000 | H138: 0 | I138: 6000 | J138: C5b
A139: 2017 | B139: 4106 | C139: 410 | D139: C | E139: 6 | F139: Nutrition Funding - State | G139: 10730 | H139: 0 | I139: 10730 | J139: C6
A140: 2017 | B140: 4107 | C140: 410 | D140: C | E140: 7 | F140: Nutrition Funding - Federal | G140: 467467 | H140: 0 | I140: 467467 | J140: C7
A141: 2017 | B141: 4108 | C141: 410 | D141: C | E141: 8 | F141: Nutrition Funding - Fees | G141: 51844 | H141: 0 | I141: 51844 | J141: C8
A142: 2017 | B142: 4109 | C142: 410 | D142: C | E142: 9 | F142: Other Program / Student Activity Fees | G142: 37523 | H142: 0 | I142: 37523 | J142: C9
A143: 2017 | B143: 41010 | C143: 410 | D143: C | E143: 10 | F143: Regional Transportation Aid | G143: 186899 | H143: 0 | I143: 186899 | J143: C10
A144: 2017 | B144: 41011 | C144: 410 | D144: C | E144: 11 | F144: Medicaid Reimbursements | G144: 151088 | H144: 0 | I144: 151088 | J144: C11
A145: 2017 | B145: 41012 | C145: 410 | D145: C | E145: 12 | F145: Circuit Breaker Reimbursements | G145: 4982 | H145: 0 | I145: 4982 | J145: C12
A146: 2017 | B146: 41013a | C146: 410 | D146: C | E146: 13a | F146: Contributions, in-kind, host district | G146: 106806 | H146: 0 | I146: 106806 | J146: C13a
A147: 2017 | B147: 41013b | C147: 410 | D147: C | E147: 13b | F147: Contributions, in-kind, other | G147: 6159 | H147: 0 | I147: 6159 | J147: C13b
A148: 2017 | B148: 41013c | C148: 410 | D148: C | E148: 13c | F148: Contributions, on-behalf, pension | G148: 2327042 | H148: 0 | I148: 2327042 | J148: C13c
A149: 2017 | B149: 41014 | C149: 410 | D149: C | E149: 14 | F149: Contributions, from Component Unit (restricted) | G149: 0 | H149: 0 | I149: 0 | J149: C14
A150: 2017 | B150: 41014b | C150: 410 | D150: C | E150: 14b | F150: Contributions, from Component Unit (unrestricted) | G150: 800000 | H150: 0 | I150: 800000 | J150: C14b
A151: 2017 | B151: 41015 | C151: 410 | D151: C | E151: 15 | F151: Contributions / Fundraising (restricted) | G151: 0 | H151: 157564 | I151: 157564 | J151: C15
A152: 2017 | B152: 41015b | C152: 410 | D152: C | E152: 15b | F152: Contributions / Fundraising (unrestricted) | G152: 3850 | H152: 1473299 | I152: 1477149 | J152: C15b
A153: 2017 | B153: 41016 | C153: 410 | D153: C | E153: 16 | F153: Interest / Investment Income (restricted) | G153: 0 | H153: 0 | I153: 0 | J153: C16
A154: 2017 | B154: 41016a | C154: 410 | D154: C | E154: 16a | F154: Interest / Investment Income (unrestricted) | G154: 0 | H154: 326240 | I154: 326240 | J154: C16a
A155: 2017 | B155: 41017 | C155: 410 | D155: C | E155: 17 | F155: Rental Income | G155: 0 | H155: 0 | I155: 0 | J155: C17
A156: 2017 | B156: 41018 | C156: 410 | D156: C | E156: 18 | F156: Loan Forgiveness or Other Reimbursement | G156: 0 | H156: 0 | I156: 0 | J156: C18
A157: 2017 | B157: 41019 | C157: 410 | D157: C | E157: 19 | F157: Miscellaneous Income | G157: 301551 | H157: 431 | I157: 301982 | J157: C19
A158: 2017 | B158: 41020 | C158: 410 | D158: C | E158: 20 | F158: TOTAL REVENUES | G158: 19169126 | H158: 2207534 | I158: 21376660 | J158: C20
A159: 2017 | B159: 41021 | C159: 410 | D159: C | E159: 21 | F159: Administration | G159: 2034650.823 | H159: 0 | I159: 2034650.823 | J159: C21
A160: 2017 | B160: 41022 | C160: 410 | D160: C | E160: 22 | F160: Instructional Services | G160: 9519734.854 | H160: 0 | I160: 9519734.854 | J160: C22
A161: 2017 | B161: 41023 | C161: 410 | D161: C | E161: 23 | F161: Pupil Services | G161: 1521506.15 | H161: 0 | I161: 1521506.15 | J161: C23
A162: 2017 | B162: 41024 | C162: 410 | D162: C | E162: 24 | F162: Operation & Maintenance of Plant | G162: 824337 | H162: 0 | I162: 824337 | J162: C24
A163: 2017 | B163: 41025 | C163: 410 | D163: C | E163: 25 | F163: Benefits and Other Fixed Charges | G163: 3280985 | H163: 0 | I163: 3280985 | J163: C25
A164: 2017 | B164: 41026 | C164: 410 | D164: C | E164: 26 | F164: Community Services | G164: 0 | H164: 0 | I164: 0 | J164: C26
A165: 2017 | B165: 41027 | C165: 410 | D165: C | E165: 27 | F165: Non-Operating Financing Expenses | G165: 1984925 | H165: 0 | I165: 1984925 | J165: C27
A166: 2017 | B166: 41028 | C166: 410 | D166: C | E166: 28 | F166: Component Unit Expenses | G166: 0 | H166: 494592 | I166: 494592 | J166: C28
A167: 2017 | B167: 41029 | C167: 410 | D167: C | E167: 29 | F167: Contributions to School | G167: 0 | H167: 1049158 | I167: 1049158 | J167: C29
A168: 2017 | B168: 41030 | C168: 410 | D168: C | E168: 30 | F168: TOTAL EXPENSES | G168: 19166138.83 | H168: 1543750 | I168: 20709888.83 | J168: C30
A169: 2017 | B169: 41031 | C169: 410 | D169: C | E169: 31 | F169: TOTAL GAIN/(LOSS) | G169: 2987.172296 | H169: 663784 | I169: 666771.1723 | J169: C31
A170: 2017 | B170: 41032 | C170: 410 | D170: C | E170: 32 | F170: Gain/Loss on Sale of Asset or Lease Transaction | G170: 0 | H170: 0 | I170: 0 | J170: C32
A171: 2017 | B171: 41033 | C171: 410 | D171: C | E171: 33 | F171: Other Gain/Loss | G171: 0 | H171: 0 | I171: 0 | J171: C33
A172: 2017 | B172: 41034 | C172: 410 | D172: C | E172: 34 | F172: TOTAL CHANGES IN NET ASSETS: | G172: 2987.172296 | H172: 663784 | I172: 666771.1723 | J172: C34
A173: 2017 | B173: 41035 | C173: 410 | D173: C | E173: 35 | F173: NET ASSETS AT BEGINNING OF YEAR | G173: -1158824 | H173: 10008987 | I173: 8850163 | J173: C35
A174: 2017 | B174: 41036 | C174: 410 | D174: C | E174: 36 | F174: NET ASSETS AT END OF YEAR | G174: -1155837 | H174: 10672771 | I174: 9516934 | J174: C36
A175: 2017 | B175: 4111 | C175: 411 | D175: HM | E175: 1 | F175: Tuition | G175: 7534276 | H175: 0 | I175: 7534276 | J175: HM1
A176: 2017 | B176: 4112a | C176: 411 | D176: HM | E176: 2a | F176: Grants - State - passed through ESE | G176: 0 | H176: 0 | I176: 0 | J176: HM2a
A177: 2017 | B177: 4112b | C177: 411 | D177: HM | E177: 2b | F177: Grants - State - other non-ESE pass-through | G177: 0 | H177: 0 | I177: 0 | J177: HM2b
A178: 2017 | B178: 4113 | C178: 411 | D178: HM | E178: 3 | F178: Grants - Federal - Passed through ESE | G178: 603245 | H178: 0 | I178: 603245 | J178: HM3
A179: 2017 | B179: 4114 | C179: 411 | D179: HM | E179: 4 | F179: Grants - Federal - Direct or other pass-through | G179: 0 | H179: 0 | I179: 0 | J179: HM4
A180: 2017 | B180: 4115a | C180: 411 | D180: HM | E180: 5a | F180: Grants - Private (restricted) | G180: 0 | H180: 0 | I180: 0 | J180: HM5a
A181: 2017 | B181: 4115b | C181: 411 | D181: HM | E181: 5b | F181: Grants - Private (unrestricted) | G181: 7137 | H181: 0 | I181: 7137 | J181: HM5b
A182: 2017 | B182: 4116 | C182: 411 | D182: HM | E182: 6 | F182: Nutrition Funding - State | G182: 0 | H182: 0 | I182: 0 | J182: HM6
A183: 2017 | B183: 4117 | C183: 411 | D183: HM | E183: 7 | F183: Nutrition Funding - Federal | G183: 0 | H183: 0 | I183: 0 | J183: HM7
A184: 2017 | B184: 4118 | C184: 411 | D184: HM | E184: 8 | F184: Nutrition Funding - Fees | G184: 0 | H184: 0 | I184: 0 | J184: HM8
A185: 2017 | B185: 4119 | C185: 411 | D185: HM | E185: 9 | F185: Other Program / Student Activity Fees | G185: 13630 | H185: 0 | I185: 13630 | J185: HM9
A186: 2017 | B186: 41110 | C186: 411 | D186: HM | E186: 10 | F186: Regional Transportation Aid | G186: 0 | H186: 0 | I186: 0 | J186: HM10
A187: 2017 | B187: 41111 | C187: 411 | D187: HM | E187: 11 | F187: Medicaid Reimbursements | G187: 0 | H187: 0 | I187: 0 | J187: HM11
A188: 2017 | B188: 41112 | C188: 411 | D188: HM | E188: 12 | F188: Circuit Breaker Reimbursements | G188: 0 | H188: 0 | I188: 0 | J188: HM12
A189: 2017 | B189: 41113a | C189: 411 | D189: HM | E189: 13a | F189: Contributions, in-kind, host district | G189: 0 | H189: 0 | I189: 0 | J189: HM13a
A190: 2017 | B190: 41113b | C190: 411 | D190: HM | E190: 13b | F190: Contributions, in-kind, other | G190: 0 | H190: 0 | I190: 0 | J190: HM13b
A191: 2017 | B191: 41113c | C191: 411 | D191: HM | E191: 13c | F191: Contributions, on-behalf, pension | G191: 0 | H191: 0 | I191: 0 | J191: HM13c
A192: 2017 | B192: 41114 | C192: 411 | D192: HM | E192: 14 | F192: Contributions, from Component Unit (restricted) | G192: 0 | H192: 0 | I192: 0 | J192: HM14
A193: 2017 | B193: 41114b | C193: 411 | D193: HM | E193: 14b | F193: Contributions, from Component Unit (unrestricted) | G193: 65250 | H193: 0 | I193: 65250 | J193: HM14b
A194: 2017 | B194: 41115 | C194: 411 | D194: HM | E194: 15 | F194: Contributions / Fundraising (restricted) | G194: 0 | H194: 86978 | I194: 86978 | J194: HM15
A195: 2017 | B195: 41115b | C195: 411 | D195: =VLOOKUP(C195, TYPE, 3, FALSE) -> HM | E195: 15b | F195: Contributions / Fundraising (unrestricted) | G195: 0 | H195: 71862 | I195: 71862 | J195: HM15b
A196: 2017 | B196: =C196&E196 -> 41116 | C196: 411 | D196: HM | E196: 16 | F196: Interest / Investment Income (restricted) | G196: 0 | H196: 0 | I196: 0 | J196: =D196&E196 -> HM16
A197: 2017 | B197: 41116a | C197: 411 | D197: HM | E197: 16a | F197: Interest / Investment Income (unrestricted) | G197: 0 | H197: 0 | I197: 0 | J197: HM16a
A198: 2017 | B198: 41117 | C198: 411 | D198: HM | E198: 17 | F198: Rental Income | G198: 0 | H198: 0 | I198: 0 | J198: HM17
A199: 2017 | B199: 41118 | C199: 411 | D199: HM | E199: 18 | F199: Loan Forgiveness or Other Reimbursement | G199: 0 | H199: 0 | I199: 0 | J199: HM18
A200: 2017 | B200: 41119 | C200: 411 | D200: HM | E200: 19 | F200: Miscellaneous Income | G200: 7299 | H200: 0 | I200: 7299 | J200: HM19
... 3285 more rows

Sheet FE17 (hidden)
B1: 1 | C1: 2 | D1: 3 | E1: 4 | F1: 5 | G1: 6 | H1: 7 | I1: 8 | J1: 9 | K1: 10 | L1: 11 | M1: 12
A2: FY | B2: vlookup | C2: cha_code | D2: cha_type | E2: FuncExp_id | F2: Line_Desc | G2: general | H2: sped | I2: undist | J2: state | K2: federal | L2: private | M2: total
A3: 2017 | B3: =C3&E3 -> 436100 | C3: 436 | D3: =VLOOKUP(C3, TYPE, 3, FALSE) -> C | E3: 100 | F3: Administration | G3: 0 | H3: 0 | I3: 509614 | J3: 0 | K3: 0 | L3: 200 | M3: 509814 | N3: =D3&E3 -> C100
A4: 2017 | B4: =C4&E4 -> 436110 | C4: 436 | D4: C | E4: 110 | F4: Subtotal - Board of Trustees | G4: 0 | H4: 0 | I4: 0 | J4: 0 | K4: 0 | L4: 0 | M4: 0 | N4: =D4&E4 -> C110
A5: 2017 | B5: 436111 | C5: 436 | D5: C | E5: 111 | F5: Contracted Services | G5: 0 | H5: 0 | I5: 0 | J5: 0 | K5: 0 | L5: 0 | M5: 0 | N5: C111
A6: 2017 | B6: 436112 | C6: 436 | D6: C | E6: 112 | F6: Travel and other expenses | G6: 0 | H6: 0 | I6: 0 | J6: 0 | K6: 0 | L6: 0 | M6: 0 | N6: C112
A7: 2017 | B7: 436120 | C7: 436 | D7: C | E7: 120 | F7: Subtotal - School Leaders | G7: 0 | H7: 0 | I7: 39517 | J7: 0 | K7: 0 | L7: 0 | M7: 39517 | N7: C120
A8: 2017 | B8: 436121 | C8: 436 | D8: C | E8: 121 | F8: Salaries - Professional | G8: 0 | H8: 0 | I8: 39517 | J8: 0 | K8: 0 | L8: 0 | M8: 39517 | N8: C121
A9: 2017 | B9: 436122 | C9: 436 | D9: C | E9: 122 | F9: Contracted Services | G9: 0 | H9: 0 | I9: 0 | J9: 0 | K9: 0 | L9: 0 | M9: 0 | N9: C122
A10: 2017 | B10: 436130 | C10: 436 | D10: C | E10: 130 | F10: Subtotal - Business and Finance | G10: 0 | H10: 0 | I10: 70839 | J10: 0 | K10: 0 | L10: 0 | M10: 70839 | N10: C130
A11: 2017 | B11: 436131 | C11: 436 | D11: C | E11: 131 | F11: Salaries - Professional | G11: 0 | H11: 0 | I11: 64605 | J11: 0 | K11: 0 | L11: 0 | M11: 64605 | N11: C131
A12: 2017 | B12: 436132 | C12: 436 | D12: C | E12: 132 | F12: Contracted Services | G12: 0 | H12: 0 | I12: 6234 | J12: 0 | K12: 0 | L12: 0 | M12: 6234 | N12: C132
A13: 2017 | B13: 436140 | C13: 436 | D13: C | E13: 140 | F13: Subtotal - Human Resources | G13: 0 | H13: 0 | I13: 34283 | J13: 0 | K13: 0 | L13: 0 | M13: 34283 | N13: C140
A14: 2017 | B14: 436141 | C14: 436 | D14: C | E14: 141 | F14: Salaries - Professional | G14: 0 | H14: 0 | I14: 30835 | J14: 0 | K14: 0 | L14: 0 | M14: 30835 | N14: C141
A15: 2017 | B15: 436142 | C15: 436 | D15: C | E15: 142 | F15: Contracted Services | G15: 0 | H15: 0 | I15: 3448 | J15: 0 | K15: 0 | L15: 0 | M15: 3448 | N15: C142
A16: 2017 | B16: 436150 | C16: 436 | D16: C | E16: 150 | F16: Subtotal - Legal Services | G16: 0 | H16: 0 | I16: 8215 | J16: 0 | K16: 0 | L16: 0 | M16: 8215 | N16: C150
A17: 2017 | B17: 436151 | C17: 436 | D17: C | E17: 151 | F17: Salaries - Professional | G17: 0 | H17: 0 | I17: 0 | J17: 0 | K17: 0 | L17: 0 | M17: 0 | N17: C151
A18: 2017 | B18: 436152 | C18: 436 | D18: C | E18: 152 | F18: Contracted Services | G18: 0 | H18: 0 | I18: 8215 | J18: 0 | K18: 0 | L18: 0 | M18: 8215 | N18: C152
A19: 2017 | B19: 436160 | C19: 436 | D19: C | E19: 160 | F19: Subtotal - Info. Management & Technology | G19: 0 | H19: 0 | I19: 154553 | J19: 0 | K19: 0 | L19: 0 | M19: 154553 | N19: C160
A20: 2017 | B20: 436161 | C20: 436 | D20: C | E20: 161 | F20: Salaries - Professional | G20: 0 | H20: 0 | I20: 91290 | J20: 0 | K20: 0 | L20: 0 | M20: 91290 | N20: C161
A21: 2017 | B21: 436162 | C21: 436 | D21: C | E21: 162 | F21: Contracted Services | G21: 0 | H21: 0 | I21: 1703 | J21: 0 | K21: 0 | L21: 0 | M21: 1703 | N21: C162
A22: 2017 | B22: 436163 | C22: 436 | D22: C | E22: 163 | F22: Supplies and Materials | G22: 0 | H22: 0 | I22: 0 | J22: 0 | K22: 0 | L22: 0 | M22: 0 | N22: C163
A23: 2017 | B23: 436164 | C23: 436 | D23: C | E23: 164 | F23: Depreciation for Information Technology | G23: 0 | H23: 0 | I23: 61560 | J23: 0 | K23: 0 | L23: 0 | M23: 61560 | N23: C164
A24: 2017 | B24: 436170 | C24: 436 | D24: C | E24: 170 | F24: Subtotal - Development (Private) | G24: 0 | H24: 0 | I24: 50149 | J24: 0 | K24: 0 | L24: 0 | M24: 50149 | N24: C170
A25: 2017 | B25: 436170a | C25: 436 | D25: C | E25: 170a | F25: Salaries - Professional - Private | G25: 0 | H25: 0 | I25: 49121 | J25: 0 | K25: 0 | L25: 0 | M25: 49121 | N25: C170a
A26: 2017 | B26: 436170b | C26: 436 | D26: C | E26: 170b | F26: Contracted Services - Private | G26: 0 | H26: 0 | I26: 0 | J26: 0 | K26: 0 | L26: 0 | M26: 0 | N26: C170b
A27: 2017 | B27: 436170c | C27: 436 | D27: C | E27: 170c | F27: Fundraising - Private | G27: 0 | H27: 0 | I27: 1028 | J27: 0 | K27: 0 | L27: 0 | M27: 1028 | N27: C170c
A28: 2017 | B28: 436171 | C28: 436 | D28: C | E28: 171 | F28: Subtotal - Development (Public) | G28: 0 | H28: 0 | I28: 0 | J28: 0 | K28: 0 | L28: 0 | M28: 0 | N28: C171
A29: 2017 | B29: 436171a | C29: 436 | D29: C | E29: 171a | F29: Salaries - Professional - Public | G29: 0 | H29: 0 | I29: 0 | J29: 0 | K29: 0 | L29: 0 | M29: 0 | N29: C171a
A30: 2017 | B30: 436171b | C30: 436 | D30: C | E30: 171b | F30: Contracted Services - Public | G30: 0 | H30: 0 | I30: 0 | J30: 0 | K30: 0 | L30: 0 | M30: 0 | N30: C171b
A31: 2017 | B31: 436180 | C31: 436 | D31: C | E31: 180 | F31: Subtotal - Other Administration | G31: 0 | H31: 0 | I31: 152058 | J31: 0 | K31: 0 | L31: 200 | M31: 152258 | N31: C180
A32: 2017 | B32: 436181 | C32: 436 | D32: C | E32: 181 | F32: Salaries | G32: 0 | H32: 0 | I32: 72851 | J32: 0 | K32: 0 | L32: 0 | M32: 72851 | N32: C181
A33: 2017 | B33: 436182 | C33: 436 | D33: C | E33: 182 | F33: Contracted Services | G33: 0 | H33: 0 | I33: 406 | J33: 0 | K33: 0 | L33: 0 | M33: 406 | N33: C182
A34: 2017 | B34: 436183 | C34: 436 | D34: C | E34: 183 | F34: Recruitment/Advertising | G34: 0 | H34: 0 | I34: 40879 | J34: 0 | K34: 0 | L34: 0 | M34: 40879 | N34: C183
A35: 2017 | B35: 436184 | C35: 436 | D35: C | E35: 184 | F35: Travel, Dues, and other expenses | G35: 0 | H35: 0 | I35: 27204 | J35: 0 | K35: 0 | L35: 0 | M35: 27204 | N35: C184
A36: 2017 | B36: 436185 | C36: 436 | D36: C | E36: 185 | F36: Supplies and Materials | G36: 0 | H36: 0 | I36: 10718 | J36: 0 | K36: 0 | L36: 200 | M36: 10918 | N36: C185
A37: 2017 | B37: 436200 | C37: 436 | D37: C | E37: 200 | F37: Instructional Services | G37: 2231579 | H37: 629097 | I37: 889466 | J37: 0 | K37: 218968 | L37: 46583 | M37: 4015693 | N37: C200
A38: 2017 | B38: 436210 | C38: 436 | D38: C | E38: 210 | F38: Subtotal - Instructional Leadership | G38: 0 | H38: 0 | I38: 722638 | J38: 0 | K38: 44000 | L38: 4296 | M38: 770934 | N38: C210
A39: 2017 | B39: 436211 | C39: 436 | D39: C | E39: 211 | F39: Salaries - Professional | G39: 0 | H39: 0 | I39: 525923 | J39: 0 | K39: 40000 | L39: 4296 | M39: 570219 | N39: C211
A40: 2017 | B40: 436212 | C40: 436 | D40: C | E40: 212 | F40: Salaries - Clerical | G40: 0 | H40: 0 | I40: 183541 | J40: 0 | K40: 4000 | L40: 0 | M40: 187541 | N40: C212
A41: 2017 | B41: 436213 | C41: 436 | D41: C | E41: 213 | F41: Contracted Services | G41: 0 | H41: 0 | I41: 0 | J41: 0 | K41: 0 | L41: 0 | M41: 0 | N41: C213
A42: 2017 | B42: 436214 | C42: 436 | D42: C | E42: 214 | F42: Supplies and Materials | G42: 0 | H42: 0 | I42: 0 | J42: 0 | K42: 0 | L42: 0 | M42: 0 | N42: C214
A43: 2017 | B43: 436215 | C43: 436 | D43: C | E43: 215 | F43: Travel and other expenses | G43: 0 | H43: 0 | I43: 13174 | J43: 0 | K43: 0 | L43: 0 | M43: 13174 | N43: C215
A44: 2017 | B44: 436220 | C44: 436 | D44: C | E44: 220 | F44: Subtotal - Classroom and Specialist Teachers | G44: 1837503 | H44: 509581 | I44: 0 | J44: 0 | K44: 86766 | L44: 39639 | M44: 2473489 | N44: C220
A45: 2017 | B45: 436221 | C45: 436 | D45: C | E45: 221 | F45: Salaries - Teachers, Classroom | G45: 1837503 | H45: 0 | I45: 0 | J45: 0 | K45: 450 | L45: 39639 | M45: 1877592 | N45: C221
A46: 2017 | B46: 436222 | C46: 436 | D46: C | E46: 222 | F46: Salaries - Teachers, Specialists | G46: 0 | H46: 509581 | I46: 0 | J46: 0 | K46: 86316 | L46: 0 | M46: 595897 | N46: C222
A47: 2017 | B47: 436230 | C47: 436 | D47: C | E47: 230 | F47: Subtotal - Other Teaching Services | G47: 157650 | H47: 0 | I47: 0 | J47: 0 | K47: 16000 | L47: 0 | M47: 173650 | N47: C230
A48: 2017 | B48: 436231 | C48: 436 | D48: C | E48: 231 | F48: Salaries - Professional | G48: 109608 | H48: 0 | I48: 0 | J48: 0 | K48: 15000 | L48: 0 | M48: 124608 | N48: C231
A49: 2017 | B49: 436232 | C49: 436 | D49: C | E49: 232 | F49: Salaries - Nonclerical Paraprofessionals | G49: 0 | H49: 0 | I49: 0 | J49: 0 | K49: 0 | L49: 0 | M49: 0 | N49: C232
A50: 2017 | B50: 436233 | C50: 436 | D50: C | E50: 233 | F50: Salaries - Clerical | G50: 28500 | H50: 0 | I50: 0 | J50: 0 | K50: 0 | L50: 0 | M50: 28500 | N50: C233
A51: 2017 | B51: 436234 | C51: 436 | D51: C | E51: 234 | F51: Contracted Services | G51: 19542 | H51: 0 | I51: 0 | J51: 0 | K51: 1000 | L51: 0 | M51: 20542 | N51: C234
A52: 2017 | B52: 436240 | C52: 436 | D52: C | E52: 240 | F52: Subtotal - Professional Development | G52: 0 | H52: 0 | I52: 141270 | J52: 0 | K52: 15313 | L52: 97 | M52: 156680 | N52: C240
A53: 2017 | B53: 436241 | C53: 436 | D53: C | E53: 241 | F53: Salaries - Professional | G53: 0 | H53: 0 | I53: 105783 | J53: 0 | K53: 14313 | L53: 0 | M53: 120096 | N53: C241
A54: 2017 | B54: 436242 | C54: 436 | D54: C | E54: 242 | F54: Contracted Services | G54: 0 | H54: 0 | I54: 18035 | J54: 0 | K54: 1000 | L54: 0 | M54: 19035 | N54: C242
A55: 2017 | B55: 436243 | C55: 436 | D55: C | E55: 243 | F55: Supplies and Materials | G55: 0 | H55: 0 | I55: 0 | J55: 0 | K55: 0 | L55: 0 | M55: 0 | N55: C243
A56: 2017 | B56: 436244 | C56: 436 | D56: C | E56: 244 | F56: Travel and other expenses | G56: 0 | H56: 0 | I56: 17452 | J56: 0 | K56: 0 | L56: 97 | M56: 17549 | N56: C244
A57: 2017 | B57: 436250 | C57: 436 | D57: C | E57: 250 | F57: Subtotal - Guidance, Psychological & Testing | G57: 100000 | H57: 87516 | I57: 0 | J57: 0 | K57: 25000 | L57: 0 | M57: 212516 | N57: C250
A58: 2017 | B58: 436251 | C58: 436 | D58: C | E58: 251 | F58: Salaries - Professional | G58: 100000 | H58: 75670 | I58: 0 | J58: 0 | K58: 25000 | L58: 0 | M58: 200670 | N58: C251
A59: 2017 | B59: 436252 | C59: 436 | D59: C | E59: 252 | F59: Salaries - Clerical | G59: 0 | H59: 0 | I59: 0 | J59: 0 | K59: 0 | L59: 0 | M59: 0 | N59: C252
A60: 2017 | B60: 436253 | C60: 436 | D60: C | E60: 253 | F60: Contracted Services | G60: 0 | H60: 11846 | I60: 0 | J60: 0 | K60: 0 | L60: 0 | M60: 11846 | N60: C253
A61: 2017 | B61: 436254 | C61: 436 | D61: C | E61: 254 | F61: Supplies and Materials | G61: 0 | H61: 0 | I61: 0 | J61: 0 | K61: 0 | L61: 0 | M61: 0 | N61: C254
A62: 2017 | B62: 436260 | C62: 436 | D62: C | E62: 260 | F62: Subtotal - Materials, Equipment & Technology | G62: 136426 | H62: 32000 | I62: 25558 | J62: 0 | K62: 31889 | L62: 2551 | M62: 228424 | N62: C260
A63: 2017 | B63: 436261 | C63: 436 | D63: C | E63: 261 | F63: Textbooks & Related Media/Materials | G63: 50801 | H63: 12000 | I63: 0 | J63: 0 | K63: 0 | L63: 0 | M63: 62801 | N63: C261
A64: 2017 | B64: 436262 | C64: 436 | D64: C | E64: 262 | F64: Other Instructional Materials | G64: 39362 | H64: 10000 | I64: 0 | J64: 0 | K64: 31889 | L64: 2551 | M64: 83802 | N64: C262
A65: 2017 | B65: 436263 | C65: 436 | D65: C | E65: 263 | F65: Instructional Equipment | G65: 20790 | H65: 4000 | I65: 0 | J65: 0 | K65: 0 | L65: 0 | M65: 24790 | N65: C263
A66: 2017 | B66: 436264 | C66: 436 | D66: C | E66: 264 | F66: General Supplies | G66: 0 | H66: 0 | I66: 0 | J66: 0 | K66: 0 | L66: 0 | M66: 0 | N66: C264
A67: 2017 | B67: 436265 | C67: 436 | D67: =VLOOKUP(C67, TYPE, 3, FALSE) -> C | E67: 265 | F67: Other Instructional Services | G67: 0 | H67: 0 | I67: 0 | J67: 0 | K67: 0 | L67: 0 | M67: 0 | N67: C265
A68: 2017 | B68: =C68&E68 -> 436266 | C68: 436 | D68: C | E68: 266 | F68: Classroom Instructional Technology | G68: 0 | H68: 0 | I68: 25558 | J68: 0 | K68: 0 | L68: 0 | M68: 25558 | N68: =D68&E68 -> C266
A69: 2017 | B69: 436267 | C69: 436 | D69: C | E69: 267 | F69: Other Instructional Hardware | G69: 0 | H69: 0 | I69: 0 | J69: 0 | K69: 0 | L69: 0 | M69: 0 | N69: C267
A70: 2017 | B70: 436268 | C70: 436 | D70: C | E70: 268 | F70: Instructional Software | G70: 11684 | H70: 3000 | I70: 0 | J70: 0 | K70: 0 | L70: 0 | M70: 14684 | N70: C268
A71: 2017 | B71: 436269 | C71: 436 | D71: C | E71: 269 | F71: Depreciation for Instructional Equipment | G71: 13789 | H71: 3000 | I71: 0 | J71: 0 | K71: 0 | L71: 0 | M71: 16789 | N71: C269
A72: 2017 | B72: 436300 | C72: 436 | D72: C | E72: 300 | F72: Pupil Services | G72: 0 | H72: 9927 | I72: 269299 | J72: 2589 | K72: 162715 | L72: 40065 | M72: 484595 | N72: C300
A73: 2017 | B73: 436310 | C73: 436 | D73: C | E73: 310 | F73: Health Services | G73: 0 | H73: 0 | I73: 51806 | J73: 0 | K73: 0 | L73: 1260 | M73: 53066 | N73: C310
A74: 2017 | B74: 436315 | C74: 436 | D74: C | E74: 315 | F74: Health Services - Contracted | G74: 0 | H74: 0 | I74: 5960 | J74: 0 | K74: 0 | L74: 0 | M74: 5960 | N74: C315
A75: 2017 | B75: 436320 | C75: 436 | D75: C | E75: 320 | F75: Athletic Services | G75: 0 | H75: 0 | I75: 37467 | J75: 0 | K75: 0 | L75: 0 | M75: 37467 | N75: C320
A76: 2017 | B76: 436325 | C76: 436 | D76: C | E76: 325 | F76: Athletic Services - Contracted | G76: 0 | H76: 0 | I76: 97402 | J76: 0 | K76: 0 | L76: 0 | M76: 97402 | N76: C325
A77: 2017 | B77: 436330 | C77: 436 | D77: C | E77: 330 | F77: Food Services | G77: 0 | H77: 0 | I77: 0 | J77: 0 | K77: 0 | L77: 0 | M77: 0 | N77: C330
A78: 2017 | B78: 436335 | C78: 436 | D78: C | E78: 335 | F78: Food Services - Contracted | G78: 0 | H78: 0 | I78: 11525 | J78: 2589 | K78: 158215 | L78: 0 | M78: 172329 | N78: C335
A79: 2017 | B79: 436340 | C79: 436 | D79: C | E79: 340 | F79: Student Transportation (to and from school) | G79: 0 | H79: 0 | I79: 0 | J79: 0 | K79: 0 | L79: 0 | M79: 0 | N79: C340
A80: 2017 | B80: 436345 | C80: 436 | D80: C | E80: 345 | F80: Student Transportation (to and from school) | G80: 0 | H80: 9927 | I80: 0 | J80: 0 | K80: 4000 | L80: 0 | M80: 13927 | N80: C345
A81: 2017 | B81: 436350 | C81: 436 | D81: C | E81: 350 | F81: Depreciation of Transportation Vehicles | G81: 0 | H81: 0 | I81: 0 | J81: 0 | K81: 0 | L81: 0 | M81: 0 | N81: C350
A82: 2017 | B82: 436360 | C82: 436 | D82: C | E82: 360 | F82: Other Student Activities | G82: 0 | H82: 0 | I82: 65139 | J82: 0 | K82: 500 | L82: 38805 | M82: 104444 | N82: C360
A83: 2017 | B83: 436400 | C83: 436 | D83: C | E83: 400 | F83: Operation & Maintenance of Plant | G83: 0 | H83: 0 | I83: 273426 | J83: 0 | K83: 0 | L83: 11313 | M83: 284739 | N83: C400
A84: 2017 | B84: 436410 | C84: 436 | D84: C | E84: 410 | F84: Operation & Maintenance of Buildings and Grounds | G84: 0 | H84: 0 | I84: 207589 | J84: 0 | K84: 0 | L84: 8130 | M84: 215719 | N84: C410
A85: 2017 | B85: 436420 | C85: 436 | D85: C | E85: 420 | F85: Utilities | G85: 0 | H85: 0 | I85: 63038 | J85: 0 | K85: 0 | L85: 3183 | M85: 66221 | N85: C420
A86: 2017 | B86: 436430 | C86: 436 | D86: C | E86: 430 | F86: Maintenance of Equipment | G86: 0 | H86: 0 | I86: 0 | J86: 0 | K86: 0 | L86: 0 | M86: 0 | N86: C430
A87: 2017 | B87: 436440 | C87: 436 | D87: C | E87: 440 | F87: Networking and Telecommunications | G87: 0 | H87: 0 | I87: 2799 | J87: 0 | K87: 0 | L87: 0 | M87: 2799 | N87: C440
A88: 2017 | B88: 436500 | C88: 436 | D88: C | E88: 500 | F88: Fixed Charges | G88: 0 | H88: 0 | I88: 1511855 | J88: 0 | K88: 17377 | L88: 1358 | M88: 1530590 | N88: C500
A89: 2017 | B89: 436510 | C89: 436 | D89: C | E89: 510 | F89: Employee Retirement | G89: 0 | H89: 0 | I89: 118317 | J89: 0 | K89: 6258 | L89: 0 | M89: 124575 | N89: C510
A90: 2017 | B90: 436520 | C90: 436 | D90: C | E90: 520 | F90: Fringe Benefits | G90: 0 | H90: 0 | I90: 1344262 | J90: 0 | K90: 11119 | L90: 1358 | M90: 1356739 | N90: C520
A91: 2017 | B91: 436530 | C91: 436 | D91: C | E91: 530 | F91: Insurance (non-employee) | G91: 0 | H91: 0 | I91: 49276 | J91: 0 | K91: 0 | L91: 0 | M91: 49276 | N91: C530
A92: 2017 | B92: 436550 | C92: 436 | D92: C | E92: 550 | F92: Rental/Lease of Equipment | G92: 0 | H92: 0 | I92: 0 | J92: 0 | K92: 0 | L92: 0 | M92: 0 | N92: C550
A93: 2017 | B93: 436560 | C93: 436 | D93: C | E93: 560 | F93: Short-Term Interest | G93: 0 | H93: 0 | I93: 0 | J93: 0 | K93: 0 | L93: 0 | M93: 0 | N93: C560
A94: 2017 | B94: 436600 | C94: 436 | D94: C | E94: 600 | F94: Community Services | G94: 0 | H94: 0 | I94: 0 | J94: 0 | K94: 0 | L94: 0 | M94: 0 | N94: C600
A95: 2017 | B95: 436610 | C95: 436 | D95: C | E95: 610 | F95: Dissemination Activities | G95: 0 | H95: 0 | I95: 0 | J95: 0 | K95: 0 | L95: 0 | M95: 0 | N95: C610
A96: 2017 | B96: 436620 | C96: 436 | D96: C | E96: 620 | F96: Civic Activities | G96: 0 | H96: 0 | I96: 0 | J96: 0 | K96: 0 | L96: 0 | M96: 0 | N96: C620
A97: 2017 | B97: 436700 | C97: 436 | D97: C | E97: 700 | F97: Non-Operating / Capital Facilities Costs | G97: 0 | H97: 0 | I97: 1350108 | J97: 0 | K97: 0 | L97: 0 | M97: 1350108 | N97: C700
A98: 2017 | B98: 436720 | C98: 436 | D98: C | E98: 720 | F98: Long-Term Interest, facilities related | G98: 0 | H98: 0 | I98: 0 | J98: 0 | K98: 0 | L98: 0 | M98: 0 | N98: C720
A99: 2017 | B99: 436725 | C99: 436 | D99: C | E99: 725 | F99: Long-Term Interest, non-facilities related | G99: 0 | H99: 0 | I99: 0 | J99: 0 | K99: 0 | L99: 0 | M99: 0 | N99: C725
A100: 2017 | B100: 436730 | C100: 436 | D100: C | E100: 730 | F100: Other costs related to capital facilities acquisition | G100: 0 | H100: 0 | I100: 49752 | J100: 0 | K100: 0 | L100: 0 | M100: 49752 | N100: C730
A101: 2017 | B101: 436740 | C101: 436 | D101: C | E101: 740 | F101: Rental/Lease of Buildings & Grounds | G101: 0 | H101: 0 | I101: 1098887 | J101: 0 | K101: 0 | L101: 0 | M101: 1098887 | N101: C740
A102: 2017 | B102: 436750 | C102: 436 | D102: C | E102: 750 | F102: Depreciation of Equipment, Building, & Grounds | G102: 0 | H102: 0 | I102: 201469 | J102: 0 | K102: 0 | L102: 0 | M102: 201469 | N102: C750
A103: 2017 | B103: 436760 | C103: 436 | D103: C | E103: 760 | F103: Bad debt / loss on disposal of assets | G103: 0 | H103: 0 | I103: 0 | J103: 0 | K103: 0 | L103: 0 | M103: 0 | N103: C760
A104: 2017 | B104: 436800 | C104: 436 | D104: C | E104: 800 | F104: TOTALS | G104: 2231579 | H104: 639024 | I104: 4803768 | J104: 2589 | K104: 399060 | L104: 99519 | M104: 8175539 | N104: C800
A105: 2017 | B105: 436910 | C105: 436 | D105: C | E105: 910 | F105: Reference: Capitalized Expenditures | G105: 0 | H105: 0 | I105: 0 | J105: 0 | K105: 0 | L105: 0 | M105: 0 | N105: C910
A106: 2017 | B106: 436920 | C106: 436 | D106: C | E106: 920 | F106: Reference: Deferrals/Carryovers | G106: 0 | H106: 0 | I106: 0 | J106: 0 | K106: 0 | L106: 0 | M106: 0 | N106: C920
A107: 2017 | B107: 436900 | C107: 436 | D107: C | E107: 900 | F107: Reference: Totals | G107: 0 | H107: 0 | I107: 4803768 | J107: 2589 | K107: 399060 | L107: 99519 | M107: 8175539 | N107: C900
B108: 407100 | C108: 407 | D108: HM | E108: 100 | G108: 0 | H108: 0 | I108: 1224991 | J108: 0 | K108: 0 | L108: 0 | M108: 1224991 | N108: HM100
B109: 407110 | C109: 407 | D109: HM | E109: 110 | G109: 0 | H109: 0 | I109: 296.09 | J109: 0 | K109: 0 | L109: 0 | M109: 296.09 | N109: HM110
B110: 407111 | C110: 407 | D110: HM | E110: 111 | G110: 0 | H110: 0 | I110: 0 | J110: 0 | K110: 0 | L110: 0 | M110: 0 | N110: HM111
B111: 407112 | C111: 407 | D111: HM | E111: 112 | G111: 0 | H111: 0 | I111: 296.09 | J111: 0 | K111: 0 | L111: 0 | M111: 296.09 | N111: HM112
B112: 407120 | C112: 407 | D112: HM | E112: 120 | G112: 0 | H112: 0 | I112: 0 | J112: 0 | K112: 0 | L112: 0 | M112: 0 | N112: HM120
B113: 407121 | C113: 407 | D113: HM | E113: 121 | G113: 0 | H113: 0 | I113: 0 | J113: 0 | K113: 0 | L113: 0 | M113: 0 | N113: HM121
B114: 407122 | C114: 407 | D114: HM | E114: 122 | G114: 0 | H114: 0 | I114: 0 | J114: 0 | K114: 0 | L114: 0 | M114: 0 | N114: HM122
B115: 407130 | C115: 407 | D115: HM | E115: 130 | G115: 0 | H115: 0 | I115: 185156.13 | J115: 0 | K115: 0 | L115: 0 | M115: 185156.13 | N115: HM130
B116: 407131 | C116: 407 | D116: HM | E116: 131 | G116: 0 | H116: 0 | I116: 0 | J116: 0 | K116: 0 | L116: 0 | M116: 0 | N116: HM131
B117: 407132 | C117: 407 | D117: HM | E117: 132 | G117: 0 | H117: 0 | I117: 185156.13 | J117: 0 | K117: 0 | L117: 0 | M117: 185156.13 | N117: HM132
B118: 407140 | C118: 407 | D118: HM | E118: 140 | G118: 0 | H118: 0 | I118: 3787 | J118: 0 | K118: 0 | L118: 0 | M118: 3787 | N118: HM140
B119: 407141 | C119: 407 | D119: HM | E119: 141 | G119: 0 | H119: 0 | I119: 3787 | J119: 0 | K119: 0 | L119: 0 | M119: 3787 | N119: HM141
B120: 407142 | C120: 407 | D120: HM | E120: 142 | G120: 0 | H120: 0 | I120: 0 | J120: 0 | K120: 0 | L120: 0 | M120: 0 | N120: HM142
B121: 407150 | C121: 407 | D121: HM | E121: 150 | G121: 0 | H121: 0 | I121: 1014 | J121: 0 | K121: 0 | L121: 0 | M121: 1014 | N121: HM150
B122: 407151 | C122: 407 | D122: HM | E122: 151 | G122: 0 | H122: 0 | I122: 1014 | J122: 0 | K122: 0 | L122: 0 | M122: 1014 | N122: HM151
B123: 407152 | C123: 407 | D123: HM | E123: 152 | G123: 0 | H123: 0 | I123: 0 | J123: 0 | K123: 0 | L123: 0 | M123: 0 | N123: HM152
B124: 407160 | C124: 407 | D124: HM | E124: 160 | G124: 0 | H124: 0 | I124: 9701.88 | J124: 0 | K124: 0 | L124: 0 | M124: 9701.88 | N124: HM160
B125: 407161 | C125: 407 | D125: HM | E125: 161 | G125: 0 | H125: 0 | I125: 0 | J125: 0 | K125: 0 | L125: 0 | M125: 0 | N125: HM161
B126: 407162 | C126: 407 | D126: HM | E126: 162 | G126: 0 | H126: 0 | I126: 9701.88 | J126: 0 | K126: 0 | L126: 0 | M126: 9701.88 | N126: HM162
B127: 407163 | C127: 407 | D127: HM | E127: 163 | G127: 0 | H127: 0 | I127: 0 | J127: 0 | K127: 0 | L127: 0 | M127: 0 | N127: HM163
B128: 407164 | C128: 407 | D128: HM | E128: 164 | G128: 0 | H128: 0 | I128: 0 | J128: 0 | K128: 0 | L128: 0 | M128: 0 | N128: HM164
B129: 407170 | C129: 407 | D129: HM | E129: 170 | G129: 0 | H129: 0 | I129: 0 | J129: 0 | K129: 0 | L129: 0 | M129: 0 | N129: HM170
B130: 407170a | C130: 407 | D130: HM | E130: 170a | G130: 0 | H130: 0 | I130: 0 | J130: 0 | K130: 0 | L130: 0 | M130: 0 | N130: HM170a
B131: 407170b | C131: 407 | D131: =VLOOKUP(C131, TYPE, 3, FALSE) -> HM | E131: 170b | G131: 0 | H131: 0 | I131: 0 | J131: 0 | K131: 0 | L131: 0 | M131: 0 | N131: HM170b
B132: =C132&E132 -> 407170c | C132: 407 | D132: HM | E132: 170c | G132: 0 | H132: 0 | I132: 0 | J132: 0 | K132: 0 | L132: 0 | M132: 0 | N132: =D132&E132 -> HM170c
B133: 407171 | C133: 407 | D133: HM | E133: 171 | G133: 0 | H133: 0 | I133: 0 | J133: 0 | K133: 0 | L133: 0 | M133: 0 | N133: HM171
B134: 407171a | C134: 407 | D134: HM | E134: 171a | G134: 0 | H134: 0 | I134: 0 | J134: 0 | K134: 0 | L134: 0 | M134: 0 | N134: HM171a
B135: 407171b | C135: 407 | D135: HM | E135: 171b | G135: 0 | H135: 0 | I135: 0 | J135: 0 | K135: 0 | L135: 0 | M135: 0 | N135: HM171b
B136: 407180 | C136: 407 | D136: HM | E136: 180 | G136: 0 | H136: 0 | I136: 1025035.9 | J136: 0 | K136: 0 | L136: 0 | M136: 1025035.9 | N136: HM180
B137: 407181 | C137: 407 | D137: HM | E137: 181 | G137: 0 | H137: 0 | I137: 0 | J137: 0 | K137: 0 | L137: 0 | M137: 0 | N137: HM181
B138: 407182 | C138: 407 | D138: HM | E138: 182 | G138: 0 | H138: 0 | I138: 1025035.9 | J138: 0 | K138: 0 | L138: 0 | M138: 1025035.9 | N138: HM182
B139: 407183 | C139: 407 | D139: HM | E139: 183 | G139: 0 | H139: 0 | I139: 0 | J139: 0 | K139: 0 | L139: 0 | M139: 0 | N139: HM183
B140: 407184 | C140: 407 | D140: HM | E140: 184 | G140: 0 | H140: 0 | I140: 0 | J140: 0 | K140: 0 | L140: 0 | M140: 0 | N140: HM184
B141: 407185 | C141: 407 | D141: HM | E141: 185 | G141: 0 | H141: 0 | I141: 0 | J141: 0 | K141: 0 | L141: 0 | M141: 0 | N141: HM185
B142: 407200 | C142: 407 | D142: HM | E142: 200 | G142: 1414052.59 | H142: 616182.76 | I142: 282340.78 | J142: 0 | K142: 288864.4 | L142: 0 | M142: 2601440.53 | N142: HM200
B143: 407210 | C143: 407 | D143: HM | E143: 210 | G143: 63957.15 | H143: 9728.83 | I143: 279607.1 | J143: 0 | K143: 445 | L143: 0 | M143: 353738.08 | N143: HM210
B144: 407211 | C144: 407 | D144: HM | E144: 211 | G144: 0 | H144: 0 | I144: 146637.78 | J144: 0 | K144: 0 | L144: 0 | M144: 146637.78 | N144: HM211
B145: 407212 | C145: 407 | D145: HM | E145: 212 | G145: 43234.16 | H145: 7038.12 | I145: 111568.92 | J145: 0 | K145: 0 | L145: 0 | M145: 161841.2 | N145: HM212
B146: 407213 | C146: 407 | D146: HM | E146: 213 | G146: 898.34 | H146: 146.24 | I146: 600 | J146: 0 | K146: 0 | L146: 0 | M146: 1644.58 | N146: HM213
B147: 407214 | C147: 407 | D147: HM | E147: 214 | G147: 10584.66 | H147: 1265.97 | I147: 17638.38 | J147: 0 | K147: 445 | L147: 0 | M147: 29934.01 | N147: HM214
B148: 407215 | C148: 407 | D148: HM | E148: 215 | G148: 9239.99 | H148: 1278.5 | I148: 3162.02 | J148: 0 | K148: 0 | L148: 0 | M148: 13680.51 | N148: HM215
B149: 407220 | C149: 407 | D149: HM | E149: 220 | G149: 1169069.48 | H149: 566281.78 | I149: 0 | J149: 0 | K149: 32122.61 | L149: 0 | M149: 1767473.87 | N149: HM220
B150: 407221 | C150: 407 | D150: HM | E150: 221 | G150: 909143.09 | H150: 566281.78 | I150: 0 | J150: 0 | K150: 0 | L150: 0 | M150: 1475424.87 | N150: HM221
B151: 407222 | C151: 407 | D151: HM | E151: 222 | G151: 259926.39 | H151: 0 | I151: 0 | J151: 0 | K151: 32122.61 | L151: 0 | M151: 292049 | N151: HM222
B152: 407230 | C152: 407 | D152: HM | E152: 230 | G152: 77883.63 | H152: 28708.09 | I152: 0 | J152: 0 | K152: 168910.79 | L152: 0 | M152: 275502.51 | N152: HM230
B153: 407231 | C153: 407 | D153: HM | E153: 231 | G153: 15519 | H153: 0 | I153: 0 | J153: 0 | K153: 0 | L153: 0 | M153: 15519 | N153: HM231
B154: 407232 | C154: 407 | D154: HM | E154: 232 | G154: 62364.63 | H154: 28708.09 | I154: 0 | J154: 0 | K154: 168910.79 | L154: 0 | M154: 259983.51 | N154: HM232
B155: 407233 | C155: 407 | D155: HM | E155: 233 | G155: 0 | H155: 0 | I155: 0 | J155: 0 | K155: 0 | L155: 0 | M155: 0 | N155: HM233
B156: 407234 | C156: 407 | D156: HM | E156: 234 | G156: 0 | H156: 0 | I156: 0 | J156: 0 | K156: 0 | L156: 0 | M156: 0 | N156: HM234
B157: 407240 | C157: 407 | D157: HM | E157: 240 | G157: 35203.96 | H157: 1986.04 | I157: 1200 | J157: 0 | K157: 0 | L157: 0 | M157: 38390 | N157: HM240
B158: 407241 | C158: 407 | D158: HM | E158: 241 | G158: 7749.46 | H158: 1261.54 | I158: 0 | J158: 0 | K158: 0 | L158: 0 | M158: 9011 | N158: HM241
B159: 407242 | C159: 407 | D159: HM | E159: 242 | G159: 0 | H159: 0 | I159: 0 | J159: 0 | K159: 0 | L159: 0 | M159: 0 | N159: HM242
B160: 407243 | C160: 407 | D160: HM | E160: 243 | G160: 27454.5 | H160: 724.5 | I160: 1200 | J160: 0 | K160: 0 | L160: 0 | M160: 29379 | N160: HM243
B161: 407244 | C161: 407 | D161: HM | E161: 244 | G161: 0 | H161: 0 | I161: 0 | J161: 0 | K161: 0 | L161: 0 | M161: 0 | N161: HM244
B162: 407250 | C162: 407 | D162: HM | E162: 250 | G162: 0 | H162: 0 | I162: 0 | J162: 0 | K162: 87386 | L162: 0 | M162: 87386 | N162: HM250
B163: 407251 | C163: 407 | D163: HM | E163: 251 | G163: 0 | H163: 0 | I163: 0 | J163: 0 | K163: 87386 | L163: 0 | M163: 87386 | N163: HM251
B164: 407252 | C164: 407 | D164: HM | E164: 252 | G164: 0 | H164: 0 | I164: 0 | J164: 0 | K164: 0 | L164: 0 | M164: 0 | N164: HM252
B165: 407253 | C165: 407 | D165: HM | E165: 253 | G165: 0 | H165: 0 | I165: 0 | J165: 0 | K165: 0 | L165: 0 | M165: 0 | N165: HM253
B166: 407254 | C166: 407 | D166: HM | E166: 254 | G166: 0 | H166: 0 | I166: 0 | J166: 0 | K166: 0 | L166: 0 | M166: 0 | N166: HM254
B167: 407260 | C167: 407 | D167: HM | E167: 260 | G167: 67938.37 | H167: 9478.02 | I167: 1533.68 | J167: 0 | K167: 0 | L167: 0 | M167: 78950.07 | N167: HM260
B168: 407261 | C168: 407 | D168: HM | E168: 261 | G168: 42695.5 | H168: 6244.18 | I168: 0 | J168: 0 | K168: 0 | L168: 0 | M168: 48939.68 | N168: HM261
B169: 407262 | C169: 407 | D169: HM | E169: 262 | G169: 0 | H169: 0 | I169: 0 | J169: 0 | K169: 0 | L169: 0 | M169: 0 | N169: HM262
B170: 407263 | C170: 407 | D170: HM | E170: 263 | G170: 2238.91 | H170: 364.48 | I170: 0 | J170: 0 | K170: 0 | L170: 0 | M170: 2603.39 | N170: HM263
B171: 407264 | C171: 407 | D171: HM | E171: 264 | G171: 11139.7 | H171: 1932.11 | I171: 0 | J171: 0 | K171: 0 | L171: 0 | M171: 13071.81 | N171: HM264
B172: 407265 | C172: 407 | D172: HM | E172: 265 | G172: 0 | H172: 0 | I172: 0 | J172: 0 | K172: 0 | L172: 0 | M172: 0 | N172: HM265
B173: 407266 | C173: 407 | D173: HM | E173: 266 | G173: 0 | H173: 0 | I173: 0 | J173: 0 | K173: 0 | L173: 0 | M173: 0 | N173: HM266
B174: 407267 | C174: 407 | D174: HM | E174: 267 | G174: 0 | H174: 0 | I174: 1533.68 | J174: 0 | K174: 0 | L174: 0 | M174: 1533.68 | N174: HM267
B175: 407268 | C175: 407 | D175: HM | E175: 268 | G175: 11864.26 | H175: 937.25 | I175: 0 | J175: 0 | K175: 0 | L175: 0 | M175: 12801.51 | N175: HM268
B176: 407269 | C176: 407 | D176: HM | E176: 269 | G176: 0 | H176: 0 | I176: 0 | J176: 0 | K176: 0 | L176: 0 | M176: 0 | N176: HM269
B177: 407300 | C177: 407 | D177: HM | E177: 300 | G177: 450838.2 | H177: 840 | I177: 162219.82 | J177: 0 | K177: 0 | L177: 0 | M177: 613898.02 | N177: HM300
B178: 407310 | C178: 407 | D178: HM | E178: 310 | G178: 0 | H178: 0 | I178: 36983.44 | J178: 0 | K178: 0 | L178: 0 | M178: 36983.44 | N178: HM310
B179: 407315 | C179: 407 | D179: HM | E179: 315 | G179: 0 | H179: 0 | I179: 0 | J179: 0 | K179: 0 | L179: 0 | M179: 0 | N179: HM315
B180: 407320 | C180: 407 | D180: HM | E180: 320 | G180: 0 | H180: 0 | I180: 66934.92 | J180: 0 | K180: 0 | L180: 0 | M180: 66934.92 | N180: HM320
B181: 407325 | C181: 407 | D181: HM | E181: 325 | G181: 0 | H181: 0 | I181: 0 | J181: 0 | K181: 0 | L181: 0 | M181: 0 | N181: HM325
B182: 407330 | C182: 407 | D182: HM | E182: 330 | G182: 0 | H182: 0 | I182: 58301.46 | J182: 0 | K182: 0 | L182: 0 | M182: 58301.46 | N182: HM330
B183: 407335 | C183: 407 | D183: HM | E183: 335 | G183: 0 | H183: 0 | I183: 0 | J183: 0 | K183: 0 | L183: 0 | M183: 0 | N183: HM335
B184: 407340 | C184: 407 | D184: HM | E184: 340 | G184: 450838.2 | H184: 840 | I184: 0 | J184: 0 | K184: 0 | L184: 0 | M184: 451678.2 | N184: HM340
B185: 407345 | C185: 407 | D185: HM | E185: 345 | G185: 0 | H185: 0 | I185: 0 | J185: 0 | K185: 0 | L185: 0 | M185: 0 | N185: HM345
B186: 407350 | C186: 407 | D186: HM | E186: 350 | G186: 0 | H186: 0 | I186: 0 | J186: 0 | K186: 0 | L186: 0 | M186: 0 | N186: HM350
B187: 407360 | C187: 407 | D187: HM | E187: 360 | G187: 0 | H187: 0 | I187: 0 | J187: 0 | K187: 0 | L187: 0 | M187: 0 | N187: HM360
B188: 407400 | C188: 407 | D188: HM | E188: 400 | G188: 0 | H188: 0 | I188: 174032 | J188: 0 | K188: 0 | L188: 0 | M188: 174032 | N188: HM400
B189: 407410 | C189: 407 | D189: HM | E189: 410 | G189: 0 | H189: 0 | I189: 0 | J189: 0 | K189: 0 | L189: 0 | M189: 0 | N189: HM410
B190: 407420 | C190: 407 | D190: HM | E190: 420 | G190: 0 | H190: 0 | I190: 94900 | J190: 0 | K190: 0 | L190: 0 | M190: 94900 | N190: HM420
B191: 407430 | C191: 407 | D191: HM | E191: 430 | G191: 0 | H191: 0 | I191: 79132 | J191: 0 | K191: 0 | L191: 0 | M191: 79132 | N191: HM430
B192: 407440 | C192: 407 | D192: HM | E192: 440 | G192: 0 | H192: 0 | I192: 0 | J192: 0 | K192: 0 | L192: 0 | M192: 0 | N192: HM440
B193: 407500 | C193: 407 | D193: HM | E193: 500 | G193: 0 | H193: 0 | I193: 802498.29 | J193: 0 | K193: 0 | L193: 0 | M193: 802498.29 | N193: HM500
B194: 407510 | C194: 407 | D194: HM | E194: 510 | G194: 0 | H194: 0 | I194: 0 | J194: 0 | K194: 0 | L194: 0 | M194: 0 | N194: HM510
B195: 407520 | C195: 407 | D195: =VLOOKUP(C195, TYPE, 3, FALSE) -> HM | E195: 520 | G195: 0 | H195: 0 | I195: 793954 | J195: 0 | K195: 0 | L195: 0 | M195: 793954 | N195: HM520
B196: =C196&E196 -> 407530 | C196: 407 | D196: HM | E196: 530 | G196: 0 | H196: 0 | I196: 7084.64 | J196: 0 | K196: 0 | L196: 0 | M196: 7084.64 | N196: =D196&E196 -> HM530
B197: 407550 | C197: 407 | D197: HM | E197: 550 | G197: 0 | H197: 0 | I197: 1459.65 | J197: 0 | K197: 0 | L197: 0 | M197: 1459.65 | N197: HM550
B198: 407560 | C198: 407 | D198: HM | E198: 560 | G198: 0 | H198: 0 | I198: 0 | J198: 0 | K198: 0 | L198: 0 | M198: 0 | N198: HM560
B199: 407600 | C199: 407 | D199: HM | E199: 600 | G199: 0 | H199: 0 | I199: 0 | J199: 0 | K199: 0 | L199: 0 | M199: 0 | N199: HM600
B200: 407610 | C200: 407 | D200: HM | E200: 610 | G200: 0 | H200: 0 | I200: 0 | J200: 0 | K200: 0 | L200: 0 | M200: 0 | N200: HM610
... 4300 more rows

Sheet CSLIST (hidden)
B1: Select a Charter School | C1: LEA
A2: 2 | B2: Abby Kelley Foster Charter Public School | C2: 445
A3: 3 | B3: Academy of the Pacific Rim Charter Public School | C3: 412
A4: 4 | B4: Advanced Math and Science Academy Charter School | C4: 430
A5: 5 | B5: Alma del Mar Charter School | C5: 409
A6: 6 | B6: Argosy Collegiate Charter School | C6: 3509
A7: 7 | B7: Atlantis Charter School | C7: 491
A8: 8 | B8: Barnstable Community Horace Mann Charter Public School | C8: 427
A9: 9 | B9: Baystate Academy Charter Public School | C9: 3502
A10: 10 | B10: Benjamin Banneker Charter Public School | C10: 420
A11: 11 | B11: Benjamin Franklin Classical Charter Public School | C11: 447
A12: 12 | B12: Bentley Academy Charter School | C12: 3511
A13: 13 | B13: Berkshire Arts and Technology Charter Public School | C13: 414
A14: 14 | B14: Boston Collegiate Charter School | C14: 449
A15: 15 | B15: Boston Day and Evening Academy Charter School | C15: 424
A16: 16 | B16: Boston Green Academy Horace Mann Charter School | C16: 411
A17: 17 | B17: Boston Preparatory Charter Public School | C17: 416
A18: 18 | B18: Boston Renaissance Charter Public School | C18: 481
A19: 19 | B19: Bridge Boston Charter School | C19: 417
A20: 20 | B20: Brooke Charter School | C20: 428
A21: 21 | B21: Cape Cod Lighthouse Charter School | C21: 432
A22: 22 | B22: Christa McAuliffe Charter School | C22: 418
A23: 23 | B23: City on a Hill Charter Public School Circuit Street | C23: 437
A24: 24 | B24: City on a Hill Charter Public School Dudley Square | C24: 3504
A25: 25 | B25: City On A Hill Charter Public School New Bedford | C25: 3507
A26: 26 | B26: Codman Academy Charter Public School | C26: 438
A27: 27 | B27: Collegiate Charter School of Lowell | C27: 3503
A28: 28 | B28: Community Charter School of Cambridge | C28: 436
A29: 29 | B29: Community Day Charter Public School - Gateway | C29: 426
A30: 30 | B30: Community Day Charter Public School - Prospect | C30: 440
A31: 31 | B31: Community Day Charter Public School - R. Kingman Webster | C31: 431
A32: 32 | B32: Conservatory Lab Charter School | C32: 439
A33: 33 | B33: Dudley Street Neighborhood Charter School | C33: 407
A34: 34 | B34: Edward M. Kennedy Academy for Health Careers: A Horace Mann Charter Public School | C34: 452
A35: 35 | B35: Excel Academy Charter School | C35: 410
A36: 36 | B36: Four Rivers Charter Public School | C36: 413
A37: 37 | B37: Foxborough Regional Charter School | C37: 446
A38: 38 | B38: Francis W. Parker Charter Essential School | C38: 478
A39: 39 | B39: Global Learning Charter Public School | C39: 496
A40: 40 | B40: Hampden Charter School of Science | C40: 499
A41: 41 | B41: Helen Y Davis Leadership Academy Charter Public School | C41: 419
A42: 42 | B42: Hill View Montessori Charter Public School | C42: 455
A43: 43 | B43: Hilltown Cooperative Charter Public School | C43: 450
A44: 44 | B44: Holyoke Community Charter School | C44: 453
A45: 45 | B45: Innovation Academy Charter School | C45: 435
A46: 46 | B46: KIPP Academy Boston Charter School | C46: 463
A47: 47 | B47: KIPP Academy Lynn Charter School | C47: 429
A48: 48 | B48: Lawrence Family Development Charter School | C48: 454
A49: 49 | B49: Lowell Community Charter Public School | C49: 456
A50: 50 | B50: Lowell Middlesex Academy Charter School | C50: 458
A51: 51 | B51: Marblehead Community Charter Public School | C51: 464
A52: 52 | B52: Martha's Vineyard Public Charter School | C52: 466
A53: 53 | B53: Martin Luther King, Jr. Charter School of Excellence | C53: 492
A54: 54 | B54: Match Charter Public School | C54: 469
A55: 55 | B55: Mystic Valley Regional Charter School | C55: 470
A56: 56 | B56: Neighborhood House Charter School | C56: 444
A57: 57 | B57: New Heights Charter School of Brockton | C57: 3513
A58: 58 | B58: Paulo Freire Social Justice Charter School | C58: 3501
A59: 59 | B59: Phoenix Academy Charter Public High School, Chelsea | C59: 493
A60: 60 | B60: Phoenix Academy Public Charter High School, Springfield | C60: 3508
A61: 61 | B61: Pioneer Charter School of Science | C61: 494
A62: 62 | B62: Pioneer Charter School of Science II | C62: 3506
A63: 63 | B63: Pioneer Valley Chinese Immersion Charter School | C63: 497
A64: 64 | B64: Pioneer Valley Performing Arts Charter Public School | C64: 479
A65: 65 | B65: Prospect Hill Academy Charter School | C65: 487
A66: 66 | B66: Rising Tide Charter Public School | C66: 483
A67: 67 | B67: River Valley Charter School | C67: 482
A68: 68 | B68: Roxbury Preparatory Charter School | C68: 484
A69: 69 | B69: Sabis International Charter School | C69: 441
A70: 70 | B70: Salem Academy Charter School | C70: 485
A71: 71 | B71: Seven Hills Charter Public School | C71: 486
A72: 72 | B72: Silver Hill Horace Mann Charter School (school closing after 2017-18 school year) | C72: 477
A73: 73 | B73: Sizer School, A North Central Charter Essential School | C73: 474
A74: 74 | B74: South Shore Charter Public School | C74: 488
A75: 75 | B75: Springfield Preparatory Charter School | C75: 3510
A76: 76 | B76: Sturgis Charter Public School | C76: 489
A77: 77 | B77: UP Academy Charter School of Boston | C77: 480
A78: 78 | B78: UP Academy Charter School of Dorchester | C78: 3505
A79: 79 | B79: Veritas Preparatory Charter School | C79: 498
A80: 80 | B80: Commonwealth Charter Statewide Totals | C80: C
A81: 81 | B81: Horace Mann Charter Statewide Totals | C81: HM
A82: 82 | B82: All Charter Schools Statewide Totals | C82: ALL

Sheet FACTS (hidden)
A1: LEA | B1: Charter School | C1: Type | D1: Acct. Cohort | E1: Acct. Liaison | F1: Location | G1: Charter Status 3/1/2018 | H1: Charter Granted | I1: Counts Toward Numeric Cap | J1: Year Opened (Fall) | K1: FY18 Years of Oper. | L1: 1st Charter Renewal | M1: 2nd Charter Renewal | N1: 3rd Charter Renewal | O1: 4th Charter Renewal Year | P1: 1st Charter Renewal | Q1: 2nd Charter Renewal | R1: 3rd Charter Renewal | S1: 4th Charter Renewal | T1: Last Charter Renewal | U1: Charter Expires | V1: Charter Expires | W1: Regional | X1: EMO | Y1: Max Grade Span
A2: 445 | B2: Abby Kelley Foster Charter Public School | C2: C | D2: 2 | F2: Worcester | G2: No Status | H2: 1998 | I2: Yes | J2: 1998 | K2: 20 | L2: 2003 | M2: 2008 | N2: 2013 | O2: 2018 | P2: 2003 | Q2: 2008 | R2: 2013 | S2: 2018 | T2: 2018 | U2: 2023 | V2: 2023 | W2: Yes | X2: Former | Y2: K-12
A3: 412 | B3: Academy of the Pacific Rim Charter Public School | C3: C | D3: 1 | F3: Boston | G3: No Status | H3: 1995 | I3: Yes | J3: 1997 | K3: 21 | L3: 2002 | M3: 2007 | N3: 2012 | O3: 2017 | P3: 2002 | Q3: 2007 | R3: 2012 | S3: 2017 | T3: 2017 | U3: 2022 | V3: 2022 | W3: No | X3: No | Y3: 05-12
A4: 430 | B4: Advanced Math and Science Academy Charter School | C4: C | D4: 4 | F4: Marlborough | G4: Conditions | H4: 2004 | I4: Yes | J4: 2005 | K4: 13 | L4: 2010 | M4: 2015 | N4: 2020 | O4: 2025 | P4: 2010 | Q4: 2015 | R4: NA | S4: NA | T4: 2015 | U4: 2020 | V4: 2020 | W4: Yes | X4: No | Y4: 06-12
A5: 409 | B5: Alma del Mar Charter School | C5: C | D5: 5 | F5: New Bedford | G5: No Status | H5: 2011 | I5: Yes | J5: 2011 | K5: 7 | L5: 2016 | M5: 2021 | N5: 2026 | O5: 2031 | P5: 2016 | Q5: NA | R5: NA | S5: NA | T5: 2016 | U5: 2021 | V5: 2021 | W5: No | X5: No | Y5: K-08
A6: 3509 | B6: Argosy Collegiate Charter School | C6: C | D6: 3 | F6: Fall River | G6: No Status | H6: 2014 | I6: No | J6: 2014 | K6: 4 | L6: 2019 | M6: 2024 | N6: 2029 | O6: 2034 | P6: NA | Q6: NA | R6: NA | S6: NA | T6: 0 | U6: 2019 | V6: 2019 | W6: No | X6: No | Y6: 06-12
A7: 491 | B7: Atlantis Charter School | C7: C | D7: 4 | F7: Fall River | G7: No Status | H7: 1994 | I7: Yes | J7: 1995 | K7: 23 | L7: 2000 | M7: 2005 | N7: 2010 | O7: 2015 | P7: 2000 | Q7: 2005 | R7: 2010 | S7: 2015 | T7: 2015 | U7: 2020 | V7: 2020 | W7: No | X7: No | Y7: K-12
A8: 427 | B8: Barnstable Community Horace Mann Charter Public School | C8: HMI | D8: 3 | F8: Barnstable | G8: No Status | H8: 2004 | I8: Yes | J8: 2004 | K8: 14 | L8: 2009 | M8: 2014 | N8: 2019 | O8: 2024 | P8: 2009 | Q8: 2014 | R8: NA | S8: NA | T8: 2014 | U8: 2019 | V8: 2019 | W8: NA | X8: No | Y8: K-03
A9: 3502 | B9: Baystate Academy Charter Public School | C9: C | D9: 2 | F9: Springfield | G9: Conditions | H9: 2012 | I9: No | J9: 2013 | K9: 5 | L9: 2018 | M9: 2023 | N9: 2028 | O9: 2033 | P9: 2018 | Q9: NA | R9: NA | S9: NA | T9: 2018 | U9: 2023 | V9: 2023 | W9: No | X9: No | Y9: 06-12
A10: 420 | B10: Benjamin Banneker Charter Public School | C10: C | D10: 5 | F10: Cambridge | G10: No Status | H10: 1995 | I10: Yes | J10: 1996 | K10: 22 | L10: 2001 | M10: 2006 | N10: 2011 | O10: 2016 | P10: 2001 | Q10: 2006 | R10: 2011 | S10: 2016 | T10: 2016 | U10: 2021 | V10: 2021 | W10: No | X10: No | Y10: PK-06
A11: 447 | B11: Benjamin Franklin Classical Charter Public School | C11: C | D11: 4 | F11: Franklin | G11: No Status | H11: 1994 | I11: Yes | J11: 1995 | K11: 23 | L11: 2000 | M11: 2005 | N11: 2010 | O11: 2015 | P11: 2000 | Q11: 2005 | R11: 2010 | S11: 2015 | T11: 2015 | U11: 2020 | V11: 2020 | W11: Yes | X11: No | Y11: K-08
A12: 3511 | B12: Bentley Academy Charter School | C12: HMIII | D12: 4 | F12: Salem | G12: No Status | H12: 2015 | I12: Yes | J12: 2015 | K12: 3 | L12: 2020 | M12: 2025 | N12: 2030 | O12: 2035 | P12: NA | Q12: NA | R12: NA | S12: NA | T12: 0 | U12: 2020 | V12: 2020 | W12: No | X12: No | Y12: K-05
A13: 414 | B13: Berkshire Arts and Technology Charter Public School | C13: C | D13: 3 | F13: Adams | G13: No Status | H13: 2003 | I13: Yes | J13: 2004 | K13: 14 | L13: 2009 | M13: 2014 | N13: 2019 | O13: 2024 | P13: 2009 | Q13: 2014 | R13: NA | S13: NA | T13: 2014 | U13: 2019 | V13: 2019 | W13: Yes | X13: No | Y13: 06-12
A14: 449 | B14: Boston Collegiate Charter School | C14: C | D14: 2 | F14: Boston | G14: No Status | H14: 1998 | I14: Yes | J14: 1998 | K14: 20 | L14: 2003 | M14: 2008 | N14: 2013 | O14: 2018 | P14: 2003 | Q14: 2008 | R14: 2013 | S14: 2018 | T14: 2018 | U14: 2023 | V14: 2023 | W14: No | X14: No | Y14: 05-12
A15: 424 | B15: Boston Day and Evening Academy Charter School | C15: HMI | D15: 2 | F15: Boston | G15: No Status | H15: 1998 | I15: Yes | J15: 1998 | K15: 20 | L15: 2003 | M15: 2008 | N15: 2013 | O15: 2018 | P15: 2003 | Q15: 2008 | R15: 2013 | S15: 2018 | T15: 2018 | U15: 2023 | V15: 2023 | W15: NA | X15: No | Y15: 09-12
A16: 411 | B16: Boston Green Academy Horace Mann Charter School | C16: HMIII | D16: 5 | F16: Boston | G16: Probation | H16: 2011 | I16: Yes | J16: 2011 | K16: 7 | L16: 2016 | M16: 2021 | N16: 2026 | O16: 2031 | P16: 2016 | Q16: NA | R16: NA | S16: NA | T16: 2016 | U16: 2021 | V16: 2021 | W16: NA | X16: No | Y16: 06-12
A17: 416 | B17: Boston Preparatory Charter Public School | C17: C | D17: 3 | F17: Boston | G17: No Status | H17: 2003 | I17: Yes | J17: 2004 | K17: 14 | L17: 2009 | M17: 2014 | N17: 2019 | O17: 2024 | P17: 2009 | Q17: 2014 | R17: NA | S17: NA | T17: 2014 | U17: 2019 | V17: 2019 | W17: No | X17: No | Y17: 06-12
A18: 481 | B18: Boston Renaissance Charter Public School | C18: C | D18: 4 | F18: Boston | G18: Conditions | H18: 1994 | I18: Yes | J18: 1995 | K18: 23 | L18: 2000 | M18: 2005 | N18: 2010 | O18: 2015 | P18: 2000 | Q18: 2005 | R18: 2010 | S18: 2015 | T18: 2015 | U18: 2020 | V18: 2020 | W18: No | X18: Former | Y18: PK-06
A19: 417 | B19: Bridge Boston Charter School | C19: C | D19: 5 | F19: Boston | G19: No Status | H19: 2011 | I19: No | J19: 2011 | K19: 7 | L19: 2016 | M19: 2021 | N19: 2026 | O19: 2031 | P19: 2016 | Q19: NA | R19: NA | S19: NA | T19: 2016 | U19: 2021 | V19: 2021 | W19: No | X19: No | Y19: PK-8
A20: 428 | B20: Brooke Charter School | C20: C | D20: 1 | F20: Boston | G20: No Status | H20: 2001 | I20: Yes | J20: 2002 | K20: 16 | L20: 2007 | M20: 2012 | N20: 2017 | O20: 2022 | P20: 2007 | Q20: 2012 | R20: 2017 | S20: NA | T20: 2017 | U20: 2022 | V20: 2022 | W20: Yes | X20: No | Y20: K-12
A21: 432 | B21: Cape Cod Lighthouse Charter School | C21: C | D21: 4 | F21: Harwich | G21: No Status | H21: 1994 | I21: Yes | J21: 1995 | K21: 23 | L21: 2000 | M21: 2005 | N21: 2010 | O21: 2015 | P21: 2000 | Q21: 2005 | R21: 2010 | S21: 2015 | T21: 2015 | U21: 2020 | V21: 2020 | W21: Yes | X21: No | Y21: 06-08
A22: 418 | B22: Christa McAuliffe Charter School | C22: C | D22: 1 | F22: Framingham | G22: No Status | H22: 2001 | I22: Yes | J22: 2002 | K22: 16 | L22: 2007 | M22: 2012 | N22: 2017 | O22: 2022 | P22: 2007 | Q22: 2012 | R22: 2017 | S22: NA | T22: 2017 | U22: 2022 | V22: 2022 | W22: Yes | X22: Former | Y22: 06-08
A23: 437 | B23: City on a Hill Charter Public School Circuit Street | C23: C | D23: 4 | F23: Boston | G23: No Status | H23: 1994 | I23: Yes | J23: 1995 | K23: 23 | L23: 2000 | M23: 2005 | N23: 2010 | O23: 2015 | P23: 2000 | Q23: 2005 | R23: 2010 | S23: 2015 | T23: 2015 | U23: 2020 | V23: 2020 | W23: No | X23: No | Y23: 09-12
A24: 3504 | B24: City on a Hill Charter Public School Dudley Square | C24: C | D24: 2 | F24: Boston | G24: No Status | H24: 2013 | I24: No | J24: 2013 | K24: 5 | L24: 2018 | M24: 2023 | N24: 2028 | O24: 2033 | P24: 2018 | Q24: NA | R24: NA | S24: NA | T24: 2018 | U24: 2023 | V24: 2023 | W24: No | X24: No | Y24: 09-12
A25: 3507 | B25: City On A Hill Charter Public School New Bedford | C25: C | D25: 3 | F25: New Bedford | G25: No Status | H25: 2013 | I25: Yes | J25: 2014 | K25: 4 | L25: 2019 | M25: 2024 | N25: 2029 | O25: 2034 | P25: NA | Q25: NA | R25: NA | S25: NA | T25: 0 | U25: 2019 | V25: 2019 | W25: No | X25: No | Y25: 09-12
A26: 438 | B26: Codman Academy Charter Public School | C26: C | D26: 5 | F26: Boston | G26: Conditions | H26: 2001 | I26: Yes | J26: 2001 | K26: 17 | L26: 2006 | M26: 2011 | N26: 2016 | O26: 2021 | P26: 2006 | Q26: 2011 | R26: 2016 | S26: NA | T26: 2016 | U26: 2021 | V26: 2021 | W26: No | X26: No | Y26: PK-12
A27: 3503 | B27: Collegiate Charter School of Lowell | C27: C | D27: 2 | F27: Lowell | G27: No Status | H27: 2012 | I27: No | J27: 2013 | K27: 5 | L27: 2018 | M27: 2023 | N27: 2028 | O27: 2033 | P27: 2018 | Q27: NA | R27: NA | S27: NA | T27: 2018 | U27: 2023 | V27: 2023 | W27: No | X27: Yes | Y27: K-12
A28: 436 | B28: Community Charter School of Cambridge | C28: C | D28: 4 | F28: Cambridge | G28: No Status | H28: 2004 | I28: Yes | J28: 2005 | K28: 13 | L28: 2010 | M28: 2015 | N28: 2020 | O28: 2025 | P28: 2010 | Q28: 2015 | R28: NA | S28: NA | T28: 2015 | U28: 2020 | V28: 2020 | W28: No | X28: No | Y28: 06-12
A29: 426 | B29: Community Day Charter Public School - Gateway | C29: C | D29: 1 | F29: Lawrence | G29: No Status | H29: 2011 | I29: No | J29: 2012 | K29: 6 | L29: 2017 | M29: 2022 | N29: 2027 | O29: 2032 | P29: 2017 | Q29: NA | R29: NA | S29: NA | T29: 2017 | U29: 2022 | V29: 2022 | W29: No | X29: Yes | Y29: PK-08
A30: 440 | B30: Community Day Charter Public School - Prospect | C30: C | D30: 4 | F30: Lawrence | G30: No Status | H30: 1994 | I30: Yes | J30: 1995 | K30: 23 | L30: 2000 | M30: 2005 | N30: 2010 | O30: 2015 | P30: 2000 | Q30: 2005 | R30: 2010 | S30: 2015 | T30: 2015 | U30: 2020 | V30: 2020 | W30: No | X30: Yes | Y30: PK-08
A31: 431 | B31: Community Day Charter Public School - R. Kingman Webster | C31: C | D31: 1 | F31: Lawrence | G31: No Status | H31: 2011 | I31: No | J31: 2012 | K31: 6 | L31: 2017 | M31: 2022 | N31: 2027 | O31: 2032 | P31: 2017 | Q31: NA | R31: NA | S31: NA | T31: 2017 | U31: 2022 | V31: 2022 | W31: No | X31: Yes | Y31: PK-08
A32: 439 | B32: Conservatory Lab Charter School | C32: C | D32: 3 | F32: Boston | G32: No Status | H32: 1998 | I32: Yes | J32: 1999 | K32: 19 | L32: 2004 | M32: 2009 | N32: 2014 | O32: 2019 | P32: 2004 | Q32: 2009 | R32: 2014 | S32: NA | T32: 2014 | U32: 2019 | V32: 2019 | W32: No | X32: No | Y32: PK-08
A33: 407 | B33: Dudley Street Neighborhood Charter School | C33: HMIII | D33: 1 | F33: Boston | G33: No Status | H33: 2012 | I33: Yes | J33: 2012 | K33: 6 | L33: 2017 | M33: 2022 | N33: 2027 | O33: 2032 | P33: 2017 | Q33: NA | R33: NA | S33: NA | T33: 2017 | U33: 2022 | V33: 2022 | W33: NA | X33: No | Y33: PK-5
A34: 452 | B34: Edward M. Kennedy Academy for Health Careers: A Horace Mann Charter Public School | C34: HMI | D34: 2 | F34: Boston | G34: No Status | H34: 1998 | I34: Yes | J34: 1998 | K34: 20 | L34: 2003 | M34: 2008 | N34: 2013 | O34: 2018 | P34: 2003 | Q34: 2008 | R34: 2013 | S34: 2018 | T34: 2018 | U34: 2023 | V34: 2023 | W34: NA | X34: No | Y34: 09-12
A35: 410 | B35: Excel Academy Charter School | C35: C | D35: 2 | F35: Boston/Chelsea | G35: No Status | H35: 2003 | I35: Yes | J35: 2003 | K35: 15 | L35: 2008 | M35: 2013 | N35: 2018 | O35: 2023 | P35: 2008 | Q35: 2013 | R35: 2018 | S35: NA | T35: 2018 | U35: 2023 | V35: 2023 | W35: Yes | X35: No | Y35: 05-12
A36: 413 | B36: Four Rivers Charter Public School | C36: C | D36: 2 | F36: Greenfield | G36: No Status | H36: 2002 | I36: Yes | J36: 2003 | K36: 15 | L36: 2008 | M36: 2013 | N36: 2018 | O36: 2023 | P36: 2008 | Q36: 2013 | R36: 2018 | S36: NA | T36: 2018 | U36: 2023 | V36: 2023 | W36: Yes | X36: No | Y36: 07-12
A37: 446 | B37: Foxborough Regional Charter School | C37: C | D37: 2 | F37: Foxborough | G37: No Status | H37: 1998 | I37: Yes | J37: 1998 | K37: 20 | L37: 2003 | M37: 2008 | N37: 2013 | O37: 2018 | P37: 2003 | Q37: 2008 | R37: 2013 | S37: 2018 | T37: 2018 | U37: 2023 | V37: 2023 | W37: Yes | X37: Former | Y37: K-12
A38: 478 | B38: Francis W. Parker Charter Essential School | C38: C | D38: 4 | F38: Devens | G38: No Status | H38: 1994 | I38: Yes | J38: 1995 | K38: 23 | L38: 2000 | M38: 2005 | N38: 2010 | O38: 2015 | P38: 2000 | Q38: 2005 | R38: 2010 | S38: 2015 | T38: 2015 | U38: 2020 | V38: 2020 | W38: Yes | X38: No | Y38: 07-12
A39: 496 | B39: Global Learning Charter Public School | C39: C | D39: 1 | F39: New Bedford | G39: No Status | H39: 2006 | I39: Yes | J39: 2007 | K39: 11 | L39: 2012 | M39: 2017 | N39: 2022 | O39: 2027 | P39: 2012 | Q39: 2017 | R39: NA | S39: NA | T39: 2017 | U39: 2022 | V39: 2022 | W39: No | X39: No | Y39: 05-12
A40: 499 | B40: Hampden Charter School of Science | C40: C | D40: 3 | F40: Chicopee | G40: No Status | H40: 2008 | I40: Yes | J40: 2009 | K40: 9 | L40: 2014 | M40: 2019 | N40: 2024 | O40: 2029 | P40: 2014 | Q40: NA | R40: NA | S40: NA | T40: 2014 | U40: 2019 | V40: 2019 | W40: Yes | X40: No | Y40: 06-12
A41: 3516 | B41: Hampden Charter School of Science West | C41: C | F41: West Springfield | G41: No Status | H41: 2017 | I41: No | J41: 2018 | K41: 0 | L41: 2023 | M41: 2028 | N41: 2033 | O41: 2038 | P41: NA | Q41: NA | R41: NA | S41: NA | T41: 0 | U41: 2023 | V41: 2023 | W41: Yes | X41: No | Y41: 06-12
A42: 419 | B42: Helen Y Davis Leadership Academy Charter Public School | C42: C | D42: 2 | F42: Boston | G42: Probation | H42: 2002 | I42: Yes | J42: 2003 | K42: 15 | L42: 2008 | M42: 2013 | N42: 2018 | O42: 2023 | P42: 2008 | Q42: 2013 | R42: 2018 | S42: NA | T42: 2018 | U42: 2023 | V42: 2023 | W42: No | X42: No | Y42: 06-08
A43: 455 | B43: Hill View Montessori Charter Public School | C43: C | D43: 3 | F43: Haverhill | G43: No Status | H43: 2003 | I43: Yes | J43: 2004 | K43: 14 | L43: 2009 | M43: 2014 | N43: 2019 | O43: 2024 | P43: 2009 | Q43: 2014 | R43: NA | S43: NA | T43: 2014 | U43: 2019 | V43: 2019 | W43: No | X43: No | Y43: K-08
A44: 450 | B44: Hilltown Cooperative Charter Public School | C44: C | D44: 4 | F44: Easthampton | G44: No Status | H44: 1994 | I44: Yes | J44: 1995 | K44: 23 | L44: 2000 | M44: 2005 | N44: 2010 | O44: 2015 | P44: 2000 | Q44: 2005 | R44: 2010 | S44: 2015 | T44: 2015 | U44: 2020 | V44: 2020 | W44: Yes | X44: No | Y44: K-08
A45: 453 | B45: Holyoke Community Charter School | C45: C | D45: 4 | F45: Holyoke | G45: No Status | H45: 2001 | I45: Yes | J45: 2005 | K45: 13 | L45: 2010 | M45: 2015 | N45: 2020 | O45: 2025 | P45: 2010 | Q45: 2015 | R45: NA | S45: NA | T45: 2015 | U45: 2020 | V45: 2020 | W45: No | X45: Yes | Y45: K-08
A46: 435 | B46: Innovation Academy Charter School | C46: C | D46: 5 | F46: Tyngsborough | G46: No Status | H46: 1995 | I46: Yes | J46: 1996 | K46: 22 | L46: 2001 | M46: 2006 | N46: 2011 | O46: 2016 | P46: 2001 | Q46: 2006 | R46: 2011 | S46: 2016 | T46: 2016 | U46: 2021 | V46: 2021 | W46: Yes | X46: Former | Y46: 05-12
A47: 463 | B47: KIPP Academy Boston Charter School | C47: C | D47: 1 | F47: Boston | G47: No Status | H47: 2011 | I47: No | J47: 2012 | K47: 6 | L47: 2017 | M47: 2022 | N47: 2027 | O47: 2032 | P47: 2017 | Q47: NA | R47: NA | S47: NA | T47: 2017 | U47: 2022 | V47: 2022 | W47: No | X47: No | Y47: K-08
A48: 429 | B48: KIPP Academy Lynn Charter School | C48: C | D48: 3 | F48: Lynn | G48: No Status | H48: 2004 | I48: Yes | J48: 2004 | K48: 14 | L48: 2009 | M48: 2014 | N48: 2019 | O48: 2024 | P48: 2009 | Q48: 2014 | R48: NA | S48: NA | T48: 2014 | U48: 2019 | V48: 2019 | W48: No | X48: No | Y48: K-12
A49: 454 | B49: Lawrence Family Development Charter School | C49: C | D49: 4 | F49: Lawrence | G49: No Status | H49: 1995 | I49: Yes | J49: 1995 | K49: 23 | L49: 2000 | M49: 2005 | N49: 2010 | O49: 2015 | P49: 2000 | Q49: 2005 | R49: 2010 | S49: 2015 | T49: 2015 | U49: 2020 | V49: 2020 | W49: No | X49: No | Y49: PK-08
A50: 3514 | B50: Libertas Academy Charter School | C50: C | D50: Springfield | F50: Springfield | G50: No Status | H50: 2016 | I50: No | J50: 2017 | K50: 1 | L50: 2022 | M50: 2027 | N50: 2032 | O50: 2037 | P50: NA | Q50: NA | R50: NA | S50: NA | T50: 0 | U50: 2022 | V50: 2022 | W50: No | X50: No | Y50: 06-12
A51: 456 | B51: Lowell Community Charter Public School | C51: C | D51: 4 | F51: Lowell | G51: No Status | H51: 1999 | I51: Yes | J51: 2000 | K51: 18 | L51: 2005 | M51: 2010 | N51: 2015 | O51: 2020 | P51: 2005 | Q51: 2010 | R51: 2015 | S51: NA | T51: 2015 | U51: 2020 | V51: 2020 | W51: No | X51: Former | Y51: PK-08
A52: 458 | B52: Lowell Middlesex Academy Charter School | C52: C | D52: 4 | F52: Lowell | G52: No Status | H52: 1994 | I52: Yes | J52: 1995 | K52: 23 | L52: 2000 | M52: 2005 | N52: 2010 | O52: 2015 | P52: 2000 | Q52: 2005 | R52: 2010 | S52: 2015 | T52: 2015 | U52: 2020 | V52: 2020 | W52: No | X52: No | Y52: 09-12
A53: 3517 | B53: Map Academy Charter School | C53: C | F53: Plymouth | G53: No Status | H53: 2017 | I53: Yes | J53: 2018 | K53: 0 | L53: 2023 | M53: 2028 | N53: 2033 | O53: 2038 | P53: NA | Q53: NA | R53: NA | S53: NA | T53: 0 | U53: 2023 | V53: 2023 | W53: Yes | X53: No | Y53: 09-12
A54: 464 | B54: Marblehead Community Charter Public School | C54: C | D54: 4 | F54: Marblehead | G54: No Status | H54: 1994 | I54: Yes | J54: 1995 | K54: 23 | L54: 2000 | M54: 2005 | N54: 2010 | O54: 2015 | P54: 2000 | Q54: 2005 | R54: 2010 | S54: 2015 | T54: 2015 | U54: 2020 | V54: 2020 | W54: No | X54: No | Y54: 04-08
A55: 466 | B55: Martha's Vineyard Public Charter School | C55: C | D55: 5 | F55: West Tisbury | G55: No Status | H55: 1995 | I55: Yes | J55: 1996 | K55: 22 | L55: 2001 | M55: 2006 | N55: 2011 | O55: 2016 | P55: 2001 | Q55: 2006 | R55: 2011 | S55: 2016 | T55: 2016 | U55: 2021 | V55: 2021 | W55: Yes | X55: No | Y55: K-12
A56: 492 | B56: Martin Luther King, Jr. Charter School of Excellence | C56: C | D56: 5 | F56: Springfield | G56: Probation | H56: 2005 | I56: Yes | J56: 2006 | K56: 12 | L56: 2011 | M56: 2016 | N56: 2021 | O56: 2026 | P56: 2011 | Q56: 2016 | R56: NA | S56: NA | T56: 2016 | U56: 2021 | V56: 2021 | W56: No | X56: No | Y56: K-05
A57: 469 | B57: Match Charter Public School | C57: C | D57: 4 | F57: Boston | G57: No Status | H57: 1999 | I57: Yes | J57: 2000 | K57: 18 | L57: 2005 | M57: 2010 | N57: 2015 | O57: 2020 | P57: 2005 | Q57: 2010 | R57: 2015 | S57: NA | T57: 2015 | U57: 2020 | V57: 2020 | W57: No | X57: No | Y57: PK-12
A58: 470 | B58: Mystic Valley Regional Charter School | C58: C | D58: 2 | F58: Malden | G58: No Status | H58: 1998 | I58: Yes | J58: 1998 | K58: 20 | L58: 2003 | M58: 2008 | N58: 2013 | O58: 2018 | P58: 2003 | Q58: 2008 | R58: 2013 | S58: 2018 | T58: 2018 | U58: 2023 | V58: 2023 | W58: Yes | X58: Former | Y58: K-12
A59: 444 | B59: Neighborhood House Charter School | C59: C | D59: 4 | F59: Boston | G59: No Status | H59: 1994 | I59: Yes | J59: 1995 | K59: 23 | L59: 2000 | M59: 2005 | N59: 2010 | O59: 2015 | P59: 2000 | Q59: 2005 | R59: 2010 | S59: 2015 | T59: 2015 | U59: 2020 | V59: 2020 | W59: No | X59: No | Y59: PK-12
A60: 3513 | B60: New Heights Charter School of Brockton | C60: C | D60: 315 | F60: Brockton | G60: No Status | H60: 2016 | I60: No | J60: 2016 | K60: 2 | L60: 2021 | M60: 2026 | N60: 2031 | O60: 2036 | P60: NA | Q60: NA | R60: NA | S60: NA | T60: 0 | U60: 2021 | V60: 2021 | W60: Yes | X60: No | Y60: 06-12
A61: 3515 | B61: Old Sturbridge Academy Charter Public School | C61: C | F61: Sturbridge | G61: No Status | H61: 2017 | I61: Yes | J61: 2017 | K61: 1 | L61: 2022 | M61: 2027 | N61: 2032 | O61: 2037 | P61: NA | Q61: NA | R61: NA | S61: NA | T61: 0 | U61: 2022 | V61: 2022 | W61: Yes | X61: Yes | Y61: K-08
A62: 3501 | B62: Paulo Freire Social Justice Charter School | C62: C | D62: 2 | F62: Holyoke | G62: Probation | H62: 2012 | I62: No | J62: 2013 | K62: 5 | L62: 2018 | M62: 2023 | N62: 2028 | O62: 2033 | P62: 2018 | Q62: NA | R62: NA | S62: NA | T62: 2018 | U62: 2023 | V62: 2023 | W62: Yes | X62: No | Y62: 09-12
A63: 493 | B63: Phoenix Academy Charter Public High School, Chelsea | C63: C | D63: 5 | F63: Chelsea | G63: No Status | H63: 2005 | I63: Yes | J63: 2006 | K63: 12 | L63: 2011 | M63: 2016 | N63: 2021 | O63: 2026 | P63: 2011 | Q63: 2016 | R63: NA | S63: NA | T63: 2016 | U63: 2021 | V63: 2021 | W63: Yes | X63: No | Y63: 09-12
A64: 3518 | B64: Phoenix Academy Public Charter High School, Lawrence | C64: C | F64: Lawrence | G64: No Status | H64: 2018 | I64: No | J64: 2018 | K64: 0 | L64: 2023 | M64: 2028 | N64: 2033 | O64: 2038 | P64: NA | Q64: NA | R64: NA | S64: NA | T64: 0 | U64: 2023 | W64: Yes | X64: No | Y64: 09-12
A65: 3508 | B65: Phoenix Academy Public Charter High School, Springfield | C65: C | D65: 3 | F65: Springfield | G65: No Status | H65: 2013 | I65: No | J65: 2014 | K65: 4 | L65: 2019 | M65: 2024 | N65: 2029 | O65: 2034 | P65: NA | Q65: NA | R65: NA | S65: NA | T65: 0 | U65: 2019 | V65: 2019 | W65: Yes | X65: No | Y65: 09-12
A66: 494 | B66: Pioneer Charter School of Science | C66: C | D66: 1 | F66: Everett | G66: No Status | H66: 2006 | I66: Yes | J66: 2007 | K66: 11 | L66: 2012 | M66: 2017 | N66: 2022 | O66: 2027 | P66: 2012 | Q66: 2017 | R66: NA | S66: NA | T66: 2017 | U66: 2022 | V66: 2022 | W66: Yes | X66: No | Y66: K-12
A67: 3506 | B67: Pioneer Charter School of Science II | C67: C | D67: 3 | F67: Saugus | G67: No Status | H67: 2013 | I67: No | J67: 2013 | K67: 5 | L67: 2018 | M67: 2023 | N67: 2028 | O67: 2033 | P67: 2018 | Q67: NA | R67: NA | S67: NA | T67: 2018 | U67: 2023 | V67: 2023 | W67: Yes | X67: No | Y67: 07-12
A68: 497 | B68: Pioneer Valley Chinese Immersion Charter School | C68: C | D68: 1 | F68: Hadley | G68: No Status | H68: 2007 | I68: Yes | J68: 2007 | K68: 11 | L68: 2012 | M68: 2017 | N68: 2022 | O68: 2027 | P68: 2012 | Q68: 2017 | R68: NA | S68: NA | T68: 2017 | U68: 2022 | V68: 2022 | W68: Yes | X68: No | Y68: K-12
A69: 479 | B69: Pioneer Valley Performing Arts Charter Public School | C69: C | D69: 5 | F69: South Hadley | G69: No Status | H69: 1996 | I69: Yes | J69: 1996 | K69: 22 | L69: 2001 | M69: 2006 | N69: 2011 | O69: 2016 | P69: 2001 | Q69: 2006 | R69: 2011 | S69: 2016 | T69: 2016 | U69: 2021 | V69: 2021 | W69: Yes | X69: No | Y69: 07-12
A70: 487 | B70: Prospect Hill Academy Charter School | C70: C | D70: 5 | F70: Somerville (K-6); Cambridge (7-12) | G70: No Status | H70: 1996 | I70: Yes | J70: 1996 | K70: 22 | L70: 2001 | M70: 2006 | N70: 2011 | O70: 2016 | P70: 2001 | Q70: 2006 | R70: 2011 | S70: 2016 | T70: 2016 | U70: 2021 | V70: 2021 | W70: Yes | X70: Former | Y70: PK-12
A71: 483 | B71: Rising Tide Charter Public School | C71: C | D71: 2 | F71: Plymouth | G71: No Status | H71: 1998 | I71: Yes | J71: 1998 | K71: 20 | L71: 2003 | M71: 2008 | N71: 2013 | O71: 2018 | P71: 2003 | Q71: 2008 | R71: 2013 | S71: 2018 | T71: 2018 | U71: 2023 | V71: 2023 | W71: Yes | X71: Former | Y71: 05-12
A72: 482 | B72: River Valley Charter School | C72: C | D72: 3 | F72: Newburyport | G72: No Status | H72: 1999 | I72: Yes | J72: 1999 | K72: 19 | L72: 2004 | M72: 2009 | N72: 2014 | O72: 2019 | P72: 2004 | Q72: 2009 | R72: 2014 | S72: NA | T72: 2014 | U72: 2019 | V72: 2019 | W72: Yes | X72: No | Y72: K-08
A73: 484 | B73: Roxbury Preparatory Charter School | C73: C | D73: 3 | F73: Boston | G73: No Status | H73: 1998 | I73: Yes | J73: 1999 | K73: 19 | L73: 2004 | M73: 2009 | N73: 2014 | O73: 2019 | P73: 2004 | Q73: 2009 | R73: 2014 | S73: NA | T73: 2014 | U73: 2019 | V73: 2019 | W73: No | X73: Yes | Y73: 05-12
A74: 441 | B74: Sabis International Charter School | C74: C | D74: 4 | F74: Springfield | G74: Conditions | H74: 1995 | I74: Yes | J74: 1995 | K74: 23 | L74: 2000 | M74: 2005 | N74: 2010 | O74: 2015 | P74: 2000 | Q74: 2005 | R74: 2010 | S74: 2015 | T74: 2015 | U74: 2020 | V74: 2020 | W74: No | X74: Yes | Y74: K-12
A75: 485 | B75: Salem Academy Charter School | C75: C | D75: 3 | F75: Salem | G75: No Status | H75: 2003 | I75: Yes | J75: 2004 | K75: 14 | L75: 2009 | M75: 2014 | N75: 2019 | O75: 2024 | P75: 2009 | Q75: 2014 | R75: NA | S75: NA | T75: 2014 | U75: 2019 | V75: 2019 | W75: No | X75: No | Y75: 06-12
A76: 486 | B76: Seven Hills Charter Public School | C76: C | D76: 5 | F76: Worcester | G76: No Status | H76: 1994 | I76: Yes | J76: 1996 | K76: 22 | L76: 2001 | M76: 2006 | N76: 2011 | O76: 2016 | P76: 2001 | Q76: 2006 | R76: 2011 | S76: 2016 | T76: 2016 | U76: 2021 | V76: 2021 | W76: No | X76: Former | Y76: K-08
A77: 477 | B77: Silver Hill Horace Mann Charter School (school closing after 2017-18 school year) | C77: HMI | D77: 2 | F77: Haverhill | G77: No Status | H77: 2008 | I77: Yes | J77: 2008 | K77: 10 | L77: 2013 | M77: 2018 | N77: 2023 | O77: 2028 | P77: 2013 | Q77: NA | R77: NA | S77: NA | T77: 2013 | U77: 2018 | V77: 2018 | W77: NA | X77: No | Y77: K-05
A78: 474 | B78: Sizer School, A North Central Charter Essential School | C78: C | D78: 1 | F78: Fitchburg | G78: Conditions | H78: 2001 | I78: Yes | J78: 2002 | K78: 16 | L78: 2007 | M78: 2012 | N78: 2017 | O78: 2022 | P78: 2007 | Q78: 2012 | R78: 2017 | S78: NA | T78: 2017 | U78: 2022 | V78: 2022 | W78: Yes | X78: No | Y78: 07-12
A79: 488 | B79: South Shore Charter Public School | C79: C | D79: 4 | F79: Norwell | G79: No Status | H79: 1994 | I79: Yes | J79: 1995 | K79: 23 | L79: 2000 | M79: 2005 | N79: 2010 | O79: 2015 | P79: 2000 | Q79: 2005 | R79: 2010 | S79: 2015 | T79: 2015 | U79: 2020 | V79: 2020 | W79: Yes | X79: No | Y79: K-12
A80: 3510 | B80: Springfield Preparatory Charter School | C80: C | D80: 4 | F80: Springfield | G80: No Status | H80: 2014 | I80: No | J80: 2015 | K80: 3 | L80: 2020 | M80: 2025 | N80: 2030 | O80: 2035 | P80: NA | Q80: NA | R80: NA | S80: NA | T80: 0 | U80: 2020 | V80: 2020 | W80: No | X80: No | Y80: K-08
A81: 489 | B81: Sturgis Charter Public School | C81: C | D81: 2 | F81: Hyannis | G81: No Status | H81: 1998 | I81: Yes | J81: 1998 | K81: 20 | L81: 2003 | M81: 2008 | N81: 2013 | O81: 2018 | P81: 2003 | Q81: 2008 | R81: 2013 | S81: 2018 | T81: 2018 | U81: 2023 | V81: 2023 | W81: Yes | X81: No | Y81: 09-12
A82: 480 | B82: UP Academy Charter School of Boston | C82: HMIII | D82: 5 | F82: Boston | G82: No Status | H82: 2011 | I82: Yes | J82: 2011 | K82: 7 | L82: 2016 | M82: 2021 | N82: 2026 | O82: 2031 | P82: 2016 | Q82: NA | R82: NA | S82: NA | T82: 2016 | U82: 2021 | V82: 2021 | W82: NA | X82: Yes | Y82: 06-08
A83: 3505 | B83: UP Academy Charter School of Dorchester | C83: HMIII | D83: 2 | F83: Boston | G83: Conditions | H83: 2013 | I83: Yes | J83: 2013 | K83: 5 | L83: 2018 | M83: 2023 | N83: 2028 | O83: 2033 | P83: 2018 | Q83: NA | R83: NA | S83: NA | T83: 2018 | U83: 2023 | V83: 2023 | W83: NA | X83: Yes | Y83: PK-08
A84: 498 | B84: Veritas Preparatory Charter School | C84: C | D84: 1 | F84: Springfield | G84: No Status | H84: 2011 | I84: Yes | J84: 2012 | K84: 6 | L84: 2017 | M84: 2022 | N84: 2027 | O84: 2032 | P84: 2017 | Q84: NA | R84: NA | S84: NA | T84: 2017 | U84: 2022 | V84: 2022 | W84: No | X84: No | Y84: 05-08

Sheet TEACHEREPIMS (hidden)
A1: Teachers only
A2: NE = Not Existing
A3: Closed = Closed District
A5: ORG_CODE | B5: ORG_NAME | C5: LEA | D5: FTE_17d | E5: HC_17d | F5: FTE_17a | G5: HC_17a | H5: FTE_16d | I5: HC_16d | J5: FTE_16a | K5: HC_16a | L5: FTE_15d | M5: HC_15d | N5: FTE_15a | O5: HC_15a | P5: FTE_14d | Q5: HC_14d | R5: FTE_14a | S5: HC_14a | T5: FTE_13d | U5: HC_13d | V5: FTE_13a | W5: HC_13a | X5: FTE_12d | Y5: HC_12d | Z5: FTE_12a | AA5: HC_12a | AB5: FTE_11d | AC5: HC_11d | AD5: FTE_11a | AE5: HC_11a | AF5: FTE_10a | AG5: HC_10a
A6: 04070000 | B6: Dudley Street Neighborhood Charter School (District) | C6: 407 | D6: 20.98 | E6: 21 | F6: 20.98 | G6: 21 | H6: 18.21 | I6: 19 | J6: 18.25 | K6: 19 | L6: 15.94 | M6: 16 | N6: 14.98 | O6: 15 | P6: 9.999 | Q6: 10 | R6: 12.998 | S6: 13 | T6: 7.994 | U6: 8 | V6: 7.994 | W6: 8 | X6: NE | Y6: NE | Z6: NE | AA6: NE | AB6: NE | AC6: NE | AD6: NE | AE6: NE | AF6: NE | AG6: NE
A7: 04090000 | B7: Alma del Mar Charter School (District) | C7: 409 | D7: 32.15 | E7: 32 | F7: 33.15 | G7: 33 | H7: 23.92 | I7: 24 | J7: 28.92 | K7: 29 | L7: 17.03 | M7: 17 | N7: 22.38 | O7: 23 | P7: 18.99 | Q7: 19 | R7: 18.99 | S7: 19 | T7: 15.24 | U7: 15 | V7: 16.28 | W7: 16 | X7: 13.88 | Y7: 14 | Z7: 13.88 | AA7: 14 | AB7: NE | AC7: NE | AD7: NE | AE7: NE | AF7: NE | AG7: NE
A8: 04100000 | B8: Excel Academy Charter (District) | C8: 410 | D8: 78.09 | E8: 88 | F8: 85.98 | G8: 92 | H8: 70.74 | I8: 85 | J8: 53.24 | K8: 89 | L8: 51.625 | M8: 65 | N8: 56.596 | O8: 68 | P8: 19.297 | Q8: 26 | R8: 22.369 | S8: 26 | T8: 19.602 | U8: 24 | V8: 18.97 | W8: 22 | X8: 18.887 | Y8: 22 | Z8: 18.97 | AA8: 22 | AB8: 16 | AC8: 19 | AD8: 16 | AE8: 19 | AF8: 17.8 | AG8: 18
A9: 04110000 | B9: Boston Green Academy Horace Mann Charter School (District) | C9: 411 | D9: 49.43 | E9: 51 | F9: 51.57 | G9: 53 | H9: 40.59 | I9: 43 | J9: 41.02 | K9: 43 | L9: 37 | M9: 39 | N9: 35.01 | O9: 38 | P9: 27.334 | Q9: 39 | R9: 33.084 | S9: 44 | T9: 27.659 | U9: 42 | V9: 30.85 | W9: 40 | X9: 25.36 | Y9: 32 | Z9: 25.3 | AA9: 32 | AB9: NE | AC9: NE | AD9: NE | AE9: NE | AF9: NE | AG9: NE
A10: 04120000 | B10: Academy Of the Pacific Rim Charter Public (District) | C10: 412 | D10: 44.216 | E10: 48 | F10: 44.33 | G10: 48 | H10: 40.58 | I10: 44 | J10: 42.2 | K10: 46 | L10: 42.334 | M10: 45 | N10: 42.5 | O10: 45 | P10: 36.65 | Q10: 39 | R10: 38.65 | S10: 41 | T10: 36.1 | U10: 38 | V10: 35.917 | W10: 38 | X10: 36.8 | Y10: 38 | Z10: 36.8 | AA10: 38 | AB10: 33.997 | AC10: 36 | AD10: 34.8 | AE10: 37 | AF10: 35.05 | AG10: 36
A11: 04130000 | B11: Four Rivers Charter Public (District) | C11: 413 | D11: 22.066 | E11: 31 | F11: 22 | G11: 31 | H11: 21.75 | I11: 30 | J11: 22.82 | K11: 30 | L11: 21.955 | M11: 30 | N11: 21.11 | O11: 29 | P11: 21.81 | Q11: 28 | R11: 22.36 | S11: 30 | T11: 21.855 | U11: 28 | V11: 21.268 | W11: 28 | X11: 21.86 | Y11: 29 | Z11: 21.66 | AA11: 30 | AB11: 20.214 | AC11: 28 | AD11: 21.227 | AE11: 30 | AF11: 19.064 | AG11: 23
A12: 04140000 | B12: Berkshire Arts and Technology Charter Public (District) | C12: 414 | D12: 33.097 | E12: 40 | F12: 32.9 | G12: 40 | H12: 31.51 | I12: 37 | J12: 31.299 | K12: 37 | L12: 28.99 | M12: 37 | N12: 29.59 | O12: 34 | P12: 30.11 | Q12: 37 | R12: 30.34 | S12: 37 | T12: 27.88 | U12: 34 | V12: 27.55 | W12: 33 | X12: 24.057 | Y12: 28 | Z12: 24.866 | AA12: 29 | AB12: 23.2 | AC12: 26 | AD12: 23.416 | AE12: 26 | AF12: 22.2 | AG12: 23
A13: 04150000 | B13: Amesbury Academy Charter Public (District) | C13: 415 | D13: closed | E13: closed | F13: closed | G13: closed | H13: closed | I13: closed | J13: closed | K13: closed | L13: 4.37 | M13: 6 | N13: 5.3 | O13: 7 | P13: 4.777 | Q13: 8 | R13: 6.071 | S13: 8 | T13: 5.658 | U13: 7 | V13: 7.203 | W13: 9 | X13: 4.772 | Y13: 9 | Z13: 5.473 | AA13: 9 | AB13: 5.235 | AC13: 8 | AD13: 5.9 | AE13: 8 | AF13: 5.36 | AG13: 7
A14: 04160000 | B14: Boston Preparatory Charter Public (District) | C14: 416 | D14: 35.46 | E14: 41 | F14: 37.2 | G14: 39 | H14: 32.32 | I14: 37 | J14: 34.55 | K14: 38 | L14: 30.433 | M14: 33 | N14: 33.05 | O14: 37 | P14: 34 | Q14: 35 | R14: 34.5 | S14: 36 | T14: 32.895 | U14: 34 | V14: 32.895 | W14: 34 | X14: 35 | Y14: 35 | Z14: 35 | AA14: 35 | AB14: 33.7 | AC14: 34 | AD14: 33.7 | AE14: 34 | AF14: 31.2 | AG14: 32
A15: 04170000 | B15: Bridge Boston Charter School (District) | C15: 417 | D15: 27.47 | E15: 30 | F15: 26.1 | G15: 29 | H15: 16.15 | I15: 17 | J15: 19.4 | K15: 21 | L15: 14 | M15: 14 | N15: 14 | O15: 14 | P15: 11.625 | Q15: 12 | R15: 11.625 | S15: 12 | T15: 6.488 | U15: 7 | V15: 7.488 | W15: 8 | X15: 4.87 | Y15: 6 | Z15: 5.15 | AA15: 6 | AB15: NE | AC15: NE | AD15: NE | AE15: NE | AF15: NE | AG15: NE
A16: 04180000 | B16: Christa McAuliffe Charter Public (District) | C16: 418 | D16: 34.549 | E16: 39 | F16: 35.05 | G16: 40 | H16: 38.75 | I16: 41 | J16: 38.5 | K16: 41 | L16: 37.014 | M16: 40 | N16: 38.1 | O16: 39 | P16: 32.888 | Q16: 34 | R16: 30.3 | S16: 32 | T16: 30.726 | U16: 34 | V16: 27.224 | W16: 36 | X16: 26.293 | Y16: 32 | Z16: 26.45 | AA16: 31 | AB16: 23.444 | AC16: 25 | AD16: 23 | AE16: 24 | AF16: 22.4 | AG16: 24
A17: 04190000 | B17: Helen Y. Davis Leadership Academy Charter Public (District) | C17: 419 | D17: 15.835 | E17: 16 | F17: 17 | G17: 17 | H17: 16 | I17: 16 | J17: 16 | K17: 16 | L17: 15 | M17: 15 | N17: 18 | O17: 18 | P17: 17 | Q17: 17 | R17: 19 | S17: 19 | T17: 19.72 | U17: 20 | V17: 20.22 | W17: 20 | X17: 15.098 | Y17: 16 | Z17: 18.093 | AA17: 19 | AB17: 27.253 | AC17: 29 | AD17: 17.892 | AE17: 19 | AF17: 15.273 | AG17: 17
A18: 04200000 | B18: Benjamin Banneker Charter Public (District) | C18: 420 | D18: 21.024 | E18: 21 | F18: 20.02 | G18: 20 | H18: 20.02 | I18: 20 | J18: 21.024 | K18: 21 | L18: 19.97 | M18: 20 | N18: 19.97 | O18: 20 | P18: 20 | Q18: 20 | R18: 20 | S18: 20 | T18: 21.973 | U18: 22 | V18: 22.473 | W18: 23 | X18: 23.473 | Y18: 24 | Z18: 23.473 | AA18: 24 | AB18: 23.06 | AC18: 23 | AD18: 23 | AE18: 23 | AF18: 22 | AG18: 22
A19: 04230000 | B19: Barnstable Horace Mann Charter (District) | C19: 423 | D19: closed | E19: closed | F19: closed | G19: closed | H19: closed | I19: closed | J19: closed | K19: closed | L19: closed | M19: closed | N19: closed | O19: closed | P19: closed | Q19: closed | R19: closed | S19: closed | T19: closed | U19: closed | V19: closed | W19: closed | X19: 57.239 | Y19: 60 | Z19: 57.239 | AA19: 60 | AB19: 49.305 | AC19: 60 | AD19: 48.012 | AE19: 59 | AF19: 57.067 | AG19: 62
A20: 04240000 | B20: Boston Day and Evening Academy Charter (District) | C20: 424 | D20: 20.55 | E20: 21 | F20: 23 | G20: 24 | H20: 20.75 | I20: 21 | J20: 21.6 | K20: 22 | L20: 20.6 | M20: 21 | N20: 22.6 | O20: 23 | P20: 24.65 | Q20: 27 | R20: 26.4 | S20: 28 | T20: 26.55 | U20: 27 | V20: 27.5 | W20: 28 | X20: 23.3 | Y20: 23 | Z20: 25.55 | AA20: 27 | AB20: 20.7 | AC20: 21 | AD20: 24.6 | AE20: 25 | AF20: 21.8 | AG20: 22
A21: 04260000 | B21: Community Day Charter Public School - Gateway (District) | C21: 426 | D21: 28.75 | E21: 32 | F21: 27.5 | G21: 31 | H21: 23.5 | I21: 26 | J21: 24 | K21: 27 | L21: 21.6 | M21: 26 | N21: 22.6 | O21: 27 | P21: 18.09 | Q21: 20 | R21: 18.09 | S21: 20 | T21: 12.836 | U21: 14 | V21: 12.836 | W21: 14 | X21: NE | Y21: NE | Z21: NE | AA21: NE | AB21: NE | AC21: NE | AD21: NE | AE21: NE | AF21: NE | AG21: NE
A22: 04270000 | B22: Barnstable Community Horace Mann Charter Public (District) | C22: 427 | D22: 24.8 | E22: 26 | F22: 21.99 | G22: 24 | H22: 25.61 | I22: 26 | J22: 26.008 | K22: 26 | L22: 24.392 | M22: 26 | N22: 23.608 | O22: 24 | P22: 23.608 | Q22: 24 | R22: 23.741 | S22: 24 | T22: 23.608 | U22: 24 | V22: 23.608 | W22: 24 | X22: 22.992 | Y22: 23 | Z22: 22.992 | AA22: 23 | AB22: 22.3 | AC22: 23 | AD22: 22.3 | AE22: 23 | AF22: 25.4 | AG22: 26
A23: 04280000 | B23: Brooke Charter School (District) | C23: 428 | D23: 109.457 | E23: 123 | F23: 110.29 | G23: 124 | H23: 39 | I23: 39 | J23: 39 | K23: 39 | L23: 42 | M23: 42 | N23: 41 | O23: 41 | P23: 40 | Q23: 41 | R23: 41 | S23: 42 | T23: 38 | U23: 38 | V23: 38 | W23: 38 | X23: 36 | Y23: 36 | Z23: 36 | AA23: 36 | AB23: 33.373 | AC23: 33 | AD23: 34.995 | AE23: 35 | AF23: 36 | AG23: 36
A24: 04290000 | B24: KIPP Academy Lynn Charter (District) | C24: 429 | D24: 95.666 | E24: 100 | F24: 99.74 | G24: 106 | H24: 88.33 | I24: 93 | J24: 87.574 | K24: 94 | L24: 76.927 | M24: 80 | N24: 76.72 | O24: 80 | P24: 49.04 | Q24: 54 | R24: 65.63 | S24: 69 | T24: 48.69 | U24: 52 | V24: 49.24 | W24: 53 | X24: 31.945 | Y24: 34 | Z24: 32.945 | AA24: 35 | AB24: 25.86 | AC24: 26 | AD24: 25.86 | AE24: 26 | AF24: 26 | AG24: 28
A25: 04300000 | B25: Advanced Math and Science Academy Charter (District) | C25: 430 | D25: 74.054 | E25: 81 | F25: 78.36 | G25: 81 | H25: 75.71 | I25: 84 | J25: 76.361 | K25: 82 | L25: 80.781 | M25: 85 | N25: 81.392 | O25: 86 | P25: 86.35 | Q25: 89 | R25: 86.96 | S25: 90 | T25: 81.544 | U25: 86 | V25: 80.463 | W25: 87 | X25: 80.509 | Y25: 83 | Z25: 80.358 | AA25: 83 | AB25: 72.392 | AC25: 74 | AD25: 70.433 | AE25: 72 | AF25: 61.17 | AG25: 62
A26: 04310000 | B26: Community Day Charter Public School - R. Kingman Webster (District) | C26: 431 | D26: 30.5 | E26: 33 | F26: 30.5 | G26: 33 | H26: 24.52 | I26: 27 | J26: 25.02 | K26: 28 | L26: 23.6 | M26: 28 | N26: 22.6 | O26: 27 | P26: 18.08 | Q26: 20 | R26: 18.08 | S26: 20 | T26: 13.83 | U26: 15 | V26: 13.83 | W26: 15 | X26: NE | Y26: NE | Z26: NE | AA26: NE | AB26: NE | AC26: NE | AD26: NE | AE26: NE | AF26: NE | AG26: NE
A27: 04320000 | B27: Cape Cod Lighthouse Charter (District) | C27: 432 | D27: 22.5 | E27: 33 | F27: 21.49 | G27: 28 | H27: 20.43 | I27: 31 | J27: 21.5 | K27: 28 | L27: 21.96 | M27: 29 | N27: 21.78 | O27: 27 | P27: 18.54 | Q27: 27 | R27: 17.99 | S27: 24 | T27: 18.41 | U27: 29 | V27: 18.12 | W27: 26 | X27: 18.18 | Y27: 28 | Z27: 18.14 | AA27: 26 | AB27: 17.86 | AC27: 26 | AD27: 18.99 | AE27: 26 | AF27: 19.45 | AG27: 26
A28: 04350000 | B28: Innovation Academy Charter (District) | C28: 435 | D28: 74.969 | E28: 85 | F28: 73.28 | G28: 79 | H28: 78.15 | I28: 87 | J28: 72.555 | K28: 80 | L28: 70.253 | M28: 79 | N28: 67.131 | O28: 73 | P28: 58.822 | Q28: 66 | R28: 62.313 | S28: 67 | T28: 58.345 | U28: 65 | V28: 59.636 | W28: 65 | X28: 56.005 | Y28: 63 | Z28: 56.945 | AA28: 61 | AB28: 55.085 | AC28: 64 | AD28: 56.181 | AE28: 62 | AF28: 42.58 | AG28: 45
A29: 04360000 | B29: Community Charter School of Cambridge (District) | C29: 436 | D29: 32.228 | E29: 54 | F29: 32.37 | G29: 55 | H29: 30.51 | I29: 48 | J29: 33.46 | K29: 50 | L29: 32.18 | M29: 41 | N29: 30.939 | O29: 39 | P29: 34.386 | Q29: 42 | R29: 38.17 | S29: 42 | T29: 35.39 | U29: 38 | V29: 34.41 | W29: 37 | X29: 30.96 | Y29: 34 | Z29: 31.185 | AA29: 33 | AB29: 30.385 | AC29: 37 | AD29: 28.137 | AE29: 37 | AF29: 24.63 | AG29: 28
A30: 04370000 | B30: City on a Hill Charter Public School Circuit Street (District) | C30: 437 | D30: 25.1 | E30: 31 | F30: 25.1 | G30: 31 | H30: 24.52 | I30: 33 | J30: 25.4 | K30: 34 | L30: 22.447 | M30: 29 | N30: 26.004 | O30: 33 | P30: 23.8 | Q30: 31 | R30: 23.8 | S30: 32 | T30: 24.77 | U30: 32 | V30: 24.9 | W30: 32 | X30: 22 | Y30: 30 | Z30: 21.9 | AA30: 30 | AB30: 16.4 | AC30: 25 | AD30: 19 | AE30: 27 | AF30: 20.2 | AG30: 27
A31: 04380000 | B31: Codman Academy Charter Public (District) | C31: 438 | D31: 36.05 | E31: 37 | F31: 35.94 | G31: 36 | H31: 29.42 | I31: 33 | J31: 30.35 | K31: 33 | L31: 20.75 | M31: 23 | N31: 25.903 | O31: 28 | P31: 17.41 | Q31: 19 | R31: 18.71 | S31: 20 | T31: 14.05 | U31: 19 | V31: 14.98 | W31: 18 | X31: 14.61 | Y31: 16 | Z31: 15.26 | AA31: 16 | AB31: 14.07 | AC31: 17 | AD31: 14.2 | AE31: 18 | AF31: 15.1 | AG31: 18
A32: 04390000 | B32: Conservatory Lab Charter (District) | C32: 439 | D32: 20.98 | E32: 21 | F32: 21.97 | G32: 22 | H32: 13.99 | I32: 14 | J32: 26.505 | K32: 27 | L32: 18 | M32: 18 | N32: 18 | O32: 18 | P32: 14.25 | Q32: 15 | R32: 14 | S32: 14 | T32: 8 | U32: 8 | V32: 8 | W32: 8 | X32: 9 | Y32: 9 | Z32: 9 | AA32: 9 | AB32: 10 | AC32: 10 | AD32: 10 | AE32: 10 | AF32: 14.4 | AG32: 16
A33: 04400000 | B33: Community Day Charter Public School - Prospect (District) | C33: 440 | D33: 44 | E33: 44 | F33: 45 | G33: 45 | H33: 42 | I33: 42 | J33: 42 | K33: 42 | L33: 43.3 | M33: 48 | N33: 43.8 | O33: 49 | P33: 33.83 | Q33: 36 | R33: 33.83 | S33: 36 | T33: 35.75 | U33: 37 | V33: 35.75 | W33: 37 | X33: 38.125 | Y33: 39 | Z33: 38.125 | AA33: 39 | AB33: 34.462 | AC33: 37 | AD33: 34.462 | AE33: 37 | AF33: 34.617 | AG33: 37
A34: 04410000 | B34: Sabis International Charter (District) | C34: 441 | D34: 67.81 | E34: 96 | F34: 65.78 | G34: 94 | H34: 65.98 | I34: 96 | J34: 64.16 | K34: 94 | L34: 65.45 | M34: 96 | N34: 64.59 | O34: 95 | P34: 65.45 | Q34: 96 | R34: 63.23 | S34: 94 | T34: 65.79 | U34: 96 | V34: 64.54 | W34: 94 | X34: 66.32 | Y34: 97 | Z34: 65.3 | AA34: 96 | AB34: 63.23 | AC34: 95 | AD34: 63.93 | AE34: 97 | AF34: 70.1 | AG34: 93
A35: 04430000 | B35: Brooke Charter School Mattapan (District) | C35: 443 | D35: closed | E35: closed | F35: closed | G35: closed | H35: 41 | I35: 41 | J35: 41 | K35: 41 | L35: 42.963 | M35: 43 | N35: 41.883 | O35: 42 | P35: 26 | Q35: 26 | R35: 33 | S35: 33 | T35: 24.25 | U35: 26 | V35: 24.25 | W35: 26 | X35: 16 | Y35: 16 | Z35: 16 | AA35: 16 | AB35: NE | AC35: NE | AD35: NE | AE35: NE | AF35: NE | AG35: NE
A36: 04440000 | B36: Neighborhood House Charter (District) | C36: 444 | D36: 47.91 | E36: 50 | F36: 49.11 | G36: 52 | H36: 36.5 | I36: 38 | J36: 37.504 | K36: 39 | L36: 34.334 | M36: 36 | N36: 34.334 | O36: 36 | P36: 34.64 | Q36: 35 | R36: 32.35 | S36: 33 | T36: 34.979 | U36: 35 | V36: 34.979 | W36: 35 | X36: 38.554 | Y36: 39 | Z36: 36.69 | AA36: 37 | AB36: 42 | AC36: 42 | AD36: 41.8 | AE36: 42 | AF36: 40.8 | AG36: 41
A37: 04450000 | B37: Abby Kelley Foster Charter Public (District) | C37: 445 | D37: 111.402 | E37: 111 | F37: 106.62 | G37: 109 | H37: 115.26 | I37: 118 | J37: 118.053 | K37: 120 | L37: 116.544 | M37: 118 | N37: 117.043 | O37: 119 | P37: 116.588 | Q37: 118 | R37: 111.805 | S37: 114 | T37: 113.555 | U37: 116 | V37: 116.58 | W37: 120 | X37: 113.06 | Y37: 113 | Z37: 111.898 | AA37: 114 | AB37: 112.98 | AC37: 114 | AD37: 111.701 | AE37: 115 | AF37: 101.55 | AG37: 103
A38: 04460000 | B38: Foxborough Regional Charter (District) | C38: 446 | D38: 94.644 | E38: 101 | F38: 92.25 | G38: 101 | H38: 80.8 | I38: 90 | J38: 82.182 | K38: 93 | L38: 84.061 | M38: 92 | N38: 86.003 | O38: 91 | P38: 86.643 | Q38: 91 | R38: 82.119 | S38: 91 | T38: 81.048 | U38: 91 | V38: 78.242 | W38: 89 | X38: 85.326 | Y38: 94 | Z38: 84.8 | AA38: 94 | AB38: 79.269 | AC38: 89 | AD38: 83 | AE38: 91 | AF38: 77.4 | AG38: 77
A39: 04470000 | B39: Benjamin Franklin Classical Charter Public (District) | C39: 447 | D39: 31.802 | E39: 38 | F39: 28.22 | G39: 35 | H39: 29.73 | I39: 31 | J39: 27.201 | K39: 28 | L39: 23.144 | M39: 32 | N39: 25.109 | O39: 34 | P39: 33.007 | Q39: 33 | R39: 32.994 | S39: 33 | T39: 31.001 | U39: 31 | V39: 32.994 | W39: 33 | X39: 28.934 | Y39: 30 | Z39: 36.782 | AA39: 40 | AB39: 30.791 | AC39: 34 | AD39: 30.791 | AE39: 34 | AF39: 30.74 | AG39: 33
A40: 04480000 | B40: Gloucester Community Arts Charter (District) | C40: 448 | D40: closed | E40: closed | F40: closed | G40: closed | H40: closed | I40: closed | J40: closed | K40: closed | L40: closed | M40: closed | N40: closed | O40: closed | P40: closed | Q40: closed | R40: closed | S40: closed | T40: closed | U40: closed | V40: 12.004 | W40: 12 | X40: 13.207 | Y40: 15 | Z40: 14.228 | AA40: 18 | AB40: 7.8 | AC40: 8 | AD40: 8.8 | AE40: 9 | AF40: NE | AG40: NE
A41: 04490000 | B41: Boston Collegiate Charter (District) | C41: 449 | D41: 60.767 | E41: 65 | F41: 65.74 | G41: 70 | H41: 59.14 | I41: 62 | J41: 63.206 | K41: 64 | L41: 59.167 | M41: 63 | N41: 58.741 | O41: 64 | P41: 60.177 | Q41: 62 | R41: 62.11 | S41: 64 | T41: 60.939 | U41: 60 | V41: 61.147 | W41: 63 | X41: 54.159 | Y41: 59 | Z41: 52.584 | AA41: 58 | AB41: 44.555 | AC41: 56 | AD41: 44.405 | AE41: 55 | AF41: 39.018 | AG41: 49
A42: 04500000 | B42: Hilltown Cooperative Charter Public (District) | C42: 450 | D42: 19.155 | E42: 22 | F42: 19.76 | G42: 23 | H42: 20.06 | I42: 23 | J42: 20.055 | K42: 23 | L42: 15.989 | M42: 19 | N42: 16.989 | O42: 20 | P42: 14.442 | Q42: 18 | R42: 14.692 | S42: 19 | T42: 14.692 | U42: 18 | V42: 14.692 | W42: 18 | X42: 14.391 | Y42: 18 | Z42: 14.391 | AA42: 18 | AB42: 13.69 | AC42: 15 | AD42: 13.69 | AE42: 15 | AF42: 13.69 | AG42: 15
A43: 04510000 | B43: Robert M. Hughes Academy Charter Public (District) | C43: 451 | D43: closed | E43: closed | F43: closed | G43: closed | H43: closed | I43: closed | J43: closed | K43: closed | L43: closed | M43: closed | N43: closed | O43: closed | P43: closed | Q43: closed | R43: closed | S43: closed | T43: closed | U43: closed | V43: closed | W43: closed | X43: closed | Y43: closed | Z43: closed | AA43: closed | AB43: closed | AC43: closed | AD43: closed | AE43: closed | AF43: 8.48 | AG43: 10
A44: 04520000 | B44: Edward M. Kennedy Academy for Health Careers (Horace Mann Charter) (District) | C44: 452 | D44: 24.98 | E44: 28 | F44: 28.7 | G44: 32 | H44: 23.25 | I44: 26 | J44: 27.854 | K44: 30 | L44: 24.275 | M44: 27 | N44: 28.25 | O44: 31 | P44: 23.349 | Q44: 29 | R44: 25.317 | S44: 30 | T44: 23.54 | U44: 27 | V44: 23.54 | W44: 27 | X44: 20.1 | Y44: 25 | Z44: 19.7 | AA44: 25 | AB44: 20 | AC44: 24 | AD44: 20 | AE44: 24 | AF44: 18.9 | AG44: 22
A45: 04530000 | B45: Holyoke Community Charter (District) | C45: 453 | D45: 52.5 | E45: 53 | F45: 52.52 | G45: 53 | H45: 53.68 | I45: 54 | J45: 52.03 | K45: 52 | L45: 50.948 | M45: 51 | N45: 50.938 | O45: 51 | P45: 53.118 | Q45: 54 | R45: 53.618 | S45: 54 | T45: 51.115 | U45: 51 | V45: 50.145 | W45: 50 | X45: 47.916 | Y45: 48 | Z45: 48.906 | AA45: 49 | AB45: 48.048 | AC45: 48 | AD45: 46.059 | AE45: 46 | AF45: 45 | AG45: 45
A46: 04540000 | B46: Lawrence Family Development Charter (District) | C46: 454 | D46: 59.543 | E46: 60 | F46: 59.54 | G46: 60 | H46: 57.47 | I46: 58 | J46: 56.466 | K46: 57 | L46: 56 | M46: 56 | N46: 56 | O46: 56 | P46: 53 | Q46: 53 | R46: 54 | S46: 54 | T46: 54 | U46: 54 | V46: 54 | W46: 54 | X46: 52.956 | Y46: 53 | Z46: 51.956 | AA46: 52 | AB46: 49 | AC46: 49 | AD46: 50 | AE46: 50 | AF46: 51 | AG46: 51
A47: 04550000 | B47: Hill View Montessori Charter Public (District) | C47: 455 | D47: 18.015 | E47: 22 | F47: 20.07 | G47: 25 | H47: 17.75 | I47: 22 | J47: 19.553 | K47: 24 | L47: 21.576 | M47: 24 | N47: 22.676 | O47: 23 | P47: 20.653 | Q47: 24 | R47: 20.153 | S47: 22 | T47: 22.352 | U47: 23 | V47: 21.477 | W47: 23 | X47: 27.478 | Y47: 30 | Z47: 27.828 | AA47: 29 | AB47: 24.201 | AC47: 27 | AD47: 26.625 | AE47: 29 | AF47: 23.725 | AG47: 25
A48: 04560000 | B48: Lowell Community Charter Public (District) | C48: 456 | D48: 62.47 | E48: 63 | F48: 60.97 | G48: 62 | H48: 62.65 | I48: 63 | J48: 61.54 | K48: 62 | L48: 49.94 | M48: 50 | N48: 55.94 | O48: 56 | P48: 48.13 | Q48: 48 | R48: 48.09 | S48: 48 | T48: 45.63 | U48: 47 | V48: 47.46 | W48: 49 | X48: 47.69 | Y48: 48 | Z48: 45.94 | AA48: 46 | AB48: 61.293 | AC48: 62 | AD48: 57.857 | AE48: 59 | AF48: 79 | AG48: 79
A49: 04570000 | B49: Brooke Charter School East Boston (District) | C49: 457 | D49: closed | E49: closed | F49: closed | G49: closed | H49: 40 | I49: 40 | J49: 40 | K49: 40 | L49: 33 | M49: 33 | N49: 33 | O49: 33 | P49: 24.5 | Q49: 25 | R49: 24.5 | S49: 25 | T49: 15.5 | U49: 16 | V49: 15.5 | W49: 16 | X49: NE | Y49: NE | Z49: NE | AA49: NE | AB49: NE | AC49: NE | AD49: NE | AE49: NE | AF49: NE | AG49: NE
A50: 04580000 | B50: Lowell Middlesex Academy Charter (District) | C50: 458 | D50: 11 | E50: 13 | F50: 10.48 | G50: 12 | H50: 11 | I50: 12 | J50: 9.668 | K50: 10 | L50: 11.77 | M50: 13 | N50: 11.905 | O50: 14 | P50: 11.911 | Q50: 14 | R50: 12.51 | S50: 13 | T50: 13.713 | U50: 15 | V50: 12.977 | W50: 15 | X50: 10.4 | Y50: 14 | Z50: 11.4 | AA50: 14 | AB50: 12.8 | AC50: 15 | AD50: 12 | AE50: 15 | AF50: 9.6 | AG50: 11
A51: 04590000 | B51: Excel Academy Charter School - Boston II | C51: 459 | D51: closed | E51: closed | F51: closed | G51: closed | H51: closed | I51: closed | J51: closed | K51: closed | L51: closed | M51: closed | N51: closed | O51: closed | P51: 8.625 | Q51: 14 | R51: 11.099 | S51: 15 | T51: 4.17 | U51: 6 | V51: 5.298 | W51: 6 | X51: NE | Y51: NE | Z51: NE | AA51: NE | AB51: NE | AC51: NE | AD51: NE | AE51: NE | AF51: NE | AG51: NE
A52: 04610000 | B52: Excel Academy Charter School - Chelsea | C52: 461 | D52: closed | E52: closed | F52: closed | G52: closed | H52: closed | I52: closed | J52: closed | K52: closed | L52: closed | M52: closed | N52: closed | O52: closed | P52: 12.734 | Q52: 17 | R52: 14.896 | S52: 17 | T52: 7.806 | U52: 12 | V52: 10.002 | W52: 12 | X52: 5.104 | Y52: 6 | Z52: 5.802 | AA52: 6 | AB52: NE | AC52: NE | AD52: NE | AE52: NE | AF52: NE | AG52: NE
A53: 04620000 | B53: Grove Hall Preparatory Charter School (District) | C53: 462 | D53: closed | E53: closed | F53: closed | G53: closed | H53: closed | I53: closed | J53: closed | K53: closed | L53: closed | M53: closed | N53: closed | O53: closed | P53: closed | Q53: closed | R53: closed | S53: closed | T53: closed | U53: closed | V53: closed | W53: closed | X53: 7.94 | Y53: 8 | Z53: 7.99 | AA53: 8 | AB53: NE | AC53: NE | AD53: NE | AE53: NE | AF53: NE | AG53: NE
A54: 04630000 | B54: KIPP Academy Boston Charter School (District) | C54: 463 | D54: 44.088 | E54: 45 | F54: 46.99 | G54: 47 | H54: 38.5 | I54: 39 | J54: 38.25 | K54: 39 | L54: 26.979 | M54: 27 | N54: 28.977 | O54: 29 | P54: 12.988 | Q54: 13 | R54: 14.987 | S54: 15 | T54: 6.5 | U54: 8 | V54: 8.194 | W54: 10 | X54: NE | Y54: NE | Z54: NE | AA54: NE | AB54: NE | AC54: NE | AD54: NE | AE54: NE | AF54: NE | AG54: NE
A55: 04640000 | B55: Marblehead Community Charter Public (District) | C55: 464 | D55: 22.9 | E55: 24 | F55: 21.9 | G55: 23 | H55: 20.65 | I55: 22 | J55: 19.25 | K55: 21 | L55: 20.8 | M55: 22 | N55: 20.4 | O55: 22 | P55: 21.35 | Q55: 24 | R55: 22.15 | S55: 25 | T55: 19.75 | U55: 22 | V55: 19.55 | W55: 22 | X55: 20.645 | Y55: 23 | Z55: 20.645 | AA55: 23 | AB55: 21.9 | AC55: 25 | AD55: 21.65 | AE55: 25 | AF55: 20.5 | AG55: 23
A56: 04650000 | B56: MATCH Community Day Charter Public School | C56: 465 | D56: closed | E56: closed | F56: closed | G56: closed | H56: closed | I56: closed | J56: closed | K56: closed | L56: closed | M56: closed | N56: closed | O56: closed | P56: 20.4 | Q56: 21 | R56: 18.4 | S56: 19 | T56: 12.5 | U56: 13 | V56: 12.5 | W56: 13 | X56: 8 | Y56: 8 | Z56: 8 | AA56: 8 | AB56: NE | AC56: NE | AD56: NE | AE56: NE | AF56: NE | AG56: NE
A57: 04660000 | B57: Martha's Vineyard Charter (District) | C57: 466 | D57: 18.76 | E57: 24 | F57: 18.87 | G57: 23 | H57: 16.93 | I57: 22 | J57: 18.2 | K57: 22 | L57: 18.07 | M57: 22 | N57: 18.04 | O57: 21 | P57: 17.32 | Q57: 21 | R57: 19.21 | S57: 23 | T57: 17.36 | U57: 21 | V57: 17.95 | W57: 22 | X57: 19.46 | Y57: 22 | Z57: 19.46 | AA57: 22 | AB57: 19.38 | AC57: 22 | AD57: 19.748 | AE57: 22 | AF57: 18.764 | AG57: 20
A58: 04670000 | B58: New Liberty Charter School of Salem (District) | C58: 467 | D58: closed | E58: closed | F58: closed | G58: closed | H58: 4.66 | I58: 6 | J58: 4.49 | K58: 6 | L58: 5.6 | M58: 7 | N58: 5.43 | O58: 6 | P58: 4.6 | Q58: 6 | R58: 4.634 | S58: 6 | T58: 4.3 | U58: 6 | V58: 4.82 | W58: 6 | X58: 5.52 | Y58: 7 | Z58: 5.565 | AA58: 8 | AB58: NE | AC58: NE | AD58: NE | AE58: NE | AF58: NE | AG58: NE
A59: 04690000 | B59: MATCH Charter Public School (District) | C59: 469 | D59: 79.712 | E59: 89 | F59: 84.75 | G59: 88 | H59: 67.31 | I59: 74 | J59: 69.504 | K59: 76 | L59: 53.29 | M59: 61 | N59: 57.3 | O59: 63 | P59: 31.04 | Q59: 33 | R59: 33.04 | S59: 35 | T59: 30.2 | U59: 32 | V59: 30.2 | W59: 32 | X59: 27.5 | Y59: 28 | Z59: 27 | AA59: 27 | AB59: 24.5 | AC59: 25 | AD59: 24.5 | AE59: 25 | AF59: 23.24 | AG59: 26
A60: 04700000 | B60: Mystic Valley Regional Charter (District) | C60: 470 | D60: 100.373 | E60: 107 | F60: 103.09 | G60: 111 | H60: 106.74 | I60: 113 | J60: 102.677 | K60: 110 | L60: 104.606 | M60: 111 | N60: 106.903 | O60: 113 | P60: 103.615 | Q60: 110 | R60: 104.815 | S60: 112 | T60: 103.853 | U60: 108 | V60: 102.387 | W60: 108 | X60: 98.055 | Y60: 100 | Z60: 93.347 | AA60: 99 | AB60: 89.115 | AC60: 91 | AD60: 88.368 | AE60: 92 | AF60: 94.99 | AG60: 95
A61: 04710000 | B61: New Leadership Charter (District) | C61: 471 | D61: closed | E61: closed | F61: closed | G61: closed | H61: closed | I61: closed | J61: closed | K61: closed | L61: closed | M61: closed | N61: closed | O61: closed | P61: closed | Q61: closed | R61: closed | S61: closed | T61: 32.416 | U61: 46 | V61: 31.516 | W61: 46 | X61: 30.961 | Y61: 46 | Z61: 30.683 | AA61: 48 | AB61: 15.279 | AC61: 38 | AD61: 21.872 | AE61: 51 | AF61: 42.907 | AG61: 47
A62: 04740000 | B62: Sizer School: A North Central Charter Essential (District) | C62: 474 | D62: 34.607 | E62: 39 | F62: 35.07 | G62: 40 | H62: 37.54 | I62: 48 | J62: 35.821 | K62: 44 | L62: 36.35 | M62: 44 | N62: 39.029 | O62: 47 | P62: 34.101 | Q62: 43 | R62: 35.389 | S62: 43 | T62: 34.836 | U62: 42 | V62: 35.142 | W62: 40 | X62: 35.077 | Y62: 45 | Z62: 34.589 | AA62: 43 | AB62: 34.325 | AC62: 41 | AD62: 33.917 | AE62: 39 | AF62: 34.125 | AG62: 37
A63: 04750000 | B63: Dorchester Collegiate Academy Charter (District) | C63: 475 | D63: closed | E63: closed | F63: closed | G63: closed | H63: 21.68 | I63: 27 | J63: 20.82 | K63: 25 | L63: 17.2 | M63: 17 | N63: 16 | O63: 16 | P63: 17.502 | Q63: 18 | R63: 6.89 | S63: 17 | T63: 13 | U63: 13 | V63: 13 | W63: 13 | X63: 9.75 | Y63: 10 | Z63: 9.75 | AA63: 10 | AB63: 5.775 | AC63: 6 | AD63: 5.4 | AE63: 6 | AF63: 2.2 | AG63: 3
A64: 04760000 | B64: Spirit of Knowledge Charter School (District) | C64: 476 | D64: closed | E64: closed | F64: closed | G64: closed | H64: closed | I64: closed | J64: closed | K64: closed | L64: closed | M64: closed | N64: closed | O64: closed | P64: closed | Q64: closed | R64: closed | S64: closed | T64: 14.186 | U64: 17 | V64: 14.713 | W64: 17 | X64: 13.577 | Y64: 15 | Z64: 13.82 | AA64: 17 | AB64: 12.682 | AC64: 18 | AD64: 9.339 | AE64: 15 | AF64: NE | AG64: NE
A65: 04770000 | B65: Silver Hill Horace Mann Charter (District) | C65: 477 | D65: 35.8 | E65: 36 | F65: 34.8 | G65: 35 | H65: 36.44 | I65: 37 | J65: 35.938 | K65: 37 | L65: 36.943 | M65: 37 | N65: 36.993 | O65: 37 | P65: 38.513 | Q65: 38 | R65: 38.057 | S65: 38 | T65: 35.735 | U65: 36 | V65: 35.921 | W65: 36 | X65: 32.193 | Y65: 35 | Z65: 35.966 | AA65: 36 | AB65: 34.966 | AC65: 35 | AD65: 34.966 | AE65: 35 | AF65: 38.75 | AG65: 39
A66: 04780000 | B66: Francis W. Parker Charter Essential (District) | C66: 478 | D66: 36.99 | E66: 40 | F66: 45.69 | G66: 49 | H66: 37.56 | I66: 42 | J66: 44.81 | K66: 49 | L66: 33.95 | M66: 38 | N66: 45.75 | O66: 50 | P66: 47.411 | Q66: 51 | R66: 47.242 | S66: 52 | T66: 45.197 | U66: 50 | V66: 45.096 | W66: 49 | X66: 45.46 | Y66: 50 | Z66: 45.45 | AA66: 50 | AB66: 44.775 | AC66: 48 | AD66: 44.775 | AE66: 48 | AF66: 45.025 | AG66: 51
A67: 04790000 | B67: Pioneer Valley Performing Arts Charter Public (District) | C67: 479 | D67: 41.89 | E67: 48 | F67: 40.59 | G67: 46 | H67: 37.28 | I67: 43 | J67: 39.2 | K67: 45 | L67: 35.696 | M67: 45 | N67: 39.52 | O67: 50 | P67: 35.396 | Q67: 43 | R67: 40.83 | S67: 54 | T67: 42.37 | U67: 56 | V67: 41.86 | W67: 59 | X67: 43.44 | Y67: 55 | Z67: 39.829 | AA67: 54 | AB67: 39.74 | AC67: 60 | AD67: 39 | AE67: 59 | AF67: 35.85 | AG67: 59
A68: 04800000 | B68: UP Academy Charter School of Boston (District) | C68: 480 | D68: 26.44 | E68: 27 | F68: 38.62 | G68: 39 | H68: 38.37 | I68: 40 | J68: 41.4 | K68: 42 | L68: 42.98 | M68: 44 | N68: 45.5 | O68: 47 | P68: 27.01 | Q68: 29 | R68: 45.1 | S68: 46 | T68: 45.78 | U68: 48 | V68: 47.37 | W68: 48 | X68: 41.16 | Y68: 43 | Z68: 42.5 | AA68: 43 | AB68: NE | AC68: NE | AD68: NE | AE68: NE | AF68: NE | AG68: NE
A69: 04810000 | B69: Boston Renaissance Charter Public (District) | C69: 481 | D69: 79 | E69: 79 | F69: 75.57 | G69: 78 | H69: 77 | I69: 77 | J69: 74.02 | K69: 76 | L69: 77 | M69: 77 | N69: 76 | O69: 76 | P69: 73 | Q69: 73 | R69: 72.67 | S69: 74 | T69: 70.05 | U69: 70 | V69: 70.82 | W69: 71 | X69: 78.77 | Y69: 79 | Z69: 76.86 | AA69: 77 | AB69: 93.68 | AC69: 94 | AD69: 93.8 | AE69: 94 | AF69: 95 | AG69: 96
A70: 04820000 | B70: River Valley Charter (District) | C70: 482 | D70: 18.076 | E70: 21 | F70: 18.44 | G70: 22 | H70: 19.44 | I70: 22 | J70: 19.94 | K70: 22 | L70: 19.405 | M70: 20 | N70: 18.405 | O70: 20 | P70: 19.468 | Q70: 20 | R70: 18.464 | S70: 19 | T70: 14.151 | U70: 18 | V70: 17.436 | W70: 18 | X70: 17.492 | Y70: 18 | Z70: 16.492 | AA70: 17 | AB70: 17.124 | AC70: 19 | AD70: 17.124 | AE70: 19 | AF70: 21 | AG70: 21
A71: 04830000 | B71: Rising Tide Charter Public (District) | C71: 483 | D71: 49.025 | E71: 60 | F71: 52.15 | G71: 58 | H71: 41.47 | I71: 47 | J71: 56.27 | K71: 58 | L71: 49.133 | M71: 54 | N71: 46.718 | O71: 53 | P71: 39.508 | Q71: 45 | R71: 43.485 | S71: 47 | T71: 31.5 | U71: 41 | V71: 34.539 | W71: 41 | X71: 32.24 | Y71: 34 | Z71: 32.41 | AA71: 35 | AB71: 23.57 | AC71: 25 | AD71: 24.82 | AE71: 26 | AF71: 24.36 | AG71: 26
A72: 04840000 | B72: Roxbury Preparatory Charter (District) | C72: 484 | D72: 106.35 | E72: 107 | F72: 111.18 | G72: 112 | H72: 95.14 | I72: 99 | J72: 97.98 | K72: 100 | L72: 78.14 | M72: 79 | N72: 77.56 | O72: 79 | P72: 64.57 | Q72: 67 | R72: 65.07 | S72: 67 | T72: 53.51 | U72: 56 | V72: 55.31 | W72: 56 | X72: 23.05 | Y72: 27 | Z72: 23.05 | AA72: 27 | AB72: 25.83 | AC72: 32 | AD72: 27.83 | AE72: 34 | AF72: 26.259 | AG72: 30
A73: 04850000 | B73: Salem Academy Charter (District) | C73: 485 | D73: 41.45 | E73: 44 | F73: 43.12 | G73: 46 | H73: 42.96 | I73: 44 | J73: 43.894 | K73: 46 | L73: 37.64 | M73: 40 | N73: 42.8 | O73: 43 | P73: 38.65 | Q73: 43 | R73: 39.03 | S73: 43 | T73: 34.146 | U73: 37 | V73: 36.04 | W73: 37 | X73: 31.505 | Y73: 37 | Z73: 30.41 | AA73: 37 | AB73: 33.957 | AC73: 40 | AD73: 35.59 | AE73: 41 | AF73: 36.7 | AG73: 41
A74: 04860000 | B74: Seven Hills Charter Public (District) | C74: 486 | D74: 46.613 | E74: 49 | F74: 49.61 | G74: 52 | H74: 52.39 | I74: 53 | J74: 53.37 | K74: 54 | L74: 55.3 | M74: 56 | N74: 56.3 | O74: 57 | P74: 53.74 | Q74: 54 | R74: 53.175 | S74: 54 | T74: 50.102 | U74: 52 | V74: 51.474 | W74: 53 | X74: 49.277 | Y74: 51 | Z74: 50.176 | AA74: 52 | AB74: 48.203 | AC74: 51 | AD74: 48.665 | AE74: 50 | AF74: 41.5 | AG74: 42
A75: 04870000 | B75: Prospect Hill Academy Charter (District) | C75: 487 | D75: 106.027 | E75: 119 | F75: 109.31 | G75: 122 | H75: 101.36 | I75: 119 | J75: 95.302 | K75: 114 | L75: 88.08 | M75: 110 | N75: 87.393 | O75: 107 | P75: 93.022 | Q75: 108 | R75: 93.3 | S75: 107 | T75: 101.852 | U75: 103 | V75: 106.767 | W75: 107 | X75: 103.116 | Y75: 105 | Z75: 97.654 | AA75: 100 | AB75: 87.901 | AC75: 102 | AD75: 84.601 | AE75: 101 | AF75: 80.762 | AG75: 81
A76: 04880000 | B76: South Shore Charter Public (District) | C76: 488 | D76: 60.901 | E76: 65 | F76: 64.6 | G76: 70 | H76: 53.3 | I76: 58 | J76: 54.497 | K76: 59 | L76: 51.592 | M76: 54 | N76: 56.601 | O76: 58 | P76: 47.763 | Q76: 53 | R76: 49.974 | S76: 56 | T76: 44.893 | U76: 50 | V76: 48.628 | W76: 52 | X76: 47.027 | Y76: 52 | Z76: 45.493 | AA76: 49 | AB76: 46.264 | AC76: 52 | AD76: 45.956 | AE76: 51 | AF76: 40.78 | AG76: 47
A77: 04890000 | B77: Sturgis Charter Public (District) | C77: 489 | D77: 86.997 | E77: 97 | F77: 89.2 | G77: 98 | H77: 72.16 | I77: 79 | J77: 85.75 | K77: 92 | L77: 83.25 | M77: 91 | N77: 85.25 | O77: 91 | P77: 78.13 | Q77: 92 | R77: 82.49 | S77: 92 | T77: 67.342 | U77: 77 | V77: 76.21 | W77: 85 | X77: 59.792 | Y77: 69 | Z77: 59.97 | AA77: 68 | AB77: 38.72 | AC77: 45 | AD77: 38.42 | AE77: 45 | AF77: 40.23 | AG77: 46
A78: 04910000 | B78: Atlantis Charter (District) | C78: 491 | D78: 79.51 | E78: 83 | F78: 82.18 | G78: 85 | H78: 73.94 | I78: 75 | J78: 73.14 | K78: 74 | L78: 48.66 | M78: 54 | N78: 60.26 | O78: 62 | P78: 53.6 | Q78: 54 | R78: 54.6 | S78: 55 | T78: 47.92 | U78: 49 | V78: 51.8 | W78: 53 | X78: 52.13 | Y78: 53 | Z78: 54.14 | AA78: 55 | AB78: 56.04 | AC78: 56 | AD78: 56.03 | AE78: 56 | AF78: 56.223 | AG78: 56
A79: 04920000 | B79: Martin Luther King Jr. Charter School of Excellence (District) | C79: 492 | D79: 34.754 | E79: 42 | F79: 37.76 | G79: 42 | H79: 36.72 | I79: 37 | J79: 30.117 | K79: 34 | L79: 38.169 | M79: 39 | N79: 37.722 | O79: 39 | P79: 39.163 | Q79: 40 | R79: 38.229 | S79: 40 | T79: 38.975 | U79: 41 | V79: 39.855 | W79: 41 | X79: 37.808 | Y79: 39 | Z79: 36.801 | AA79: 38 | AB79: 39.26 | AC79: 40 | AD79: 39.71 | AE79: 40 | AF79: 31.769 | AG79: 33
A80: 04930000 | B80: Phoenix Charter Academy (District) | C80: 493 | D80: 13.69 | E80: 16 | F80: 14.19 | G80: 18 | H80: 16.16 | I80: 21 | J80: 16.71 | K80: 20 | L80: 13.8 | M80: 30 | N80: 17.87 | O80: 30 | P80: 16.48 | Q80: 33 | R80: 17.17 | S80: 26 | T80: 16.05 | U80: 27 | V80: 16.64 | W80: 28 | X80: 17.49 | Y80: 27 | Z80: 17.17 | AA80: 27 | AB80: 14.81 | AC80: 23 | AD80: 14.57 | AE80: 23 | AF80: 21.35 | AG80: 32
A81: 04940000 | B81: Pioneer Charter School of Science (District) | C81: 494 | D81: 53.25 | E81: 58 | F81: 50.63 | G81: 57 | H81: 33.31 | I81: 39 | J81: 32.7 | K81: 39 | L81: 32.343 | M81: 37 | N81: 32.05 | O81: 36 | P81: 30 | Q81: 38 | R81: 32.16 | S81: 38 | T81: 31.15 | U81: 38 | V81: 29.96 | W81: 35 | X81: 27.02 | Y81: 35 | Z81: 26.8 | AA81: 34 | AB81: 29.19 | AC81: 31 | AD81: 27.7 | AE81: 31 | AF81: 21.2 | AG81: 23
A82: 04960000 | B82: Global Learning Charter Public (District) | C82: 496 | D82: 43.023 | E82: 45 | F82: 40.77 | G82: 45 | H82: 31.18 | I82: 33 | J82: 43.7 | K82: 45 | L82: 40.669 | M82: 44 | N82: 42.814 | O82: 45 | P82: 46.716 | Q82: 45 | R82: 40.533 | S82: 43 | T82: 42.905 | U82: 45 | V82: 41.52 | W82: 44 | X82: 36.84 | Y82: 40 | Z82: 38.6 | AA82: 40 | AB82: 38.015 | AC82: 41 | AD82: 34.286 | AE82: 41 | AF82: 28.47 | AG82: 32
A83: 04970000 | B83: Pioneer Valley Chinese Immersion Charter (District) | C83: 497 | D83: 58.83 | E83: 65 | F83: 60.7 | G83: 65 | H83: 55.3 | I83: 61 | J83: 55.75 | K83: 60 | L83: 43.914 | M83: 46 | N83: 44.864 | O83: 47 | P83: 34.1 | Q83: 37 | R83: 33.1 | S83: 36 | T83: 28.3 | U83: 31 | V83: 28.3 | W83: 31 | X83: 24.1 | Y83: 25 | Z83: 24.6 | AA83: 25 | AB83: 20.75 | AC83: 21 | AD83: 20.75 | AE83: 21 | AF83: 20.5 | AG83: 21
A84: 04980000 | B84: Veritas Preparatory Charter School (District) | C84: 498 | D84: 29.5 | E84: 30 | F84: 27.5 | G84: 28 | H84: 23.3 | I84: 25 | J84: 26 | K84: 26 | L84: 19 | M84: 19 | N84: 19 | O84: 19 | P84: 14.5 | Q84: 16 | R84: 16 | S84: 16 | T84: 9.949 | U84: 10 | V84: 7.95 | W84: 8 | X84: NE | Y84: NE | Z84: NE | AA84: NE | AB84: NE | AC84: NE | AD84: NE | AE84: NE | AF84: NE | AG84: NE
A85: 04990000 | B85: Hampden Charter School of Science (District) | C85: 499 | D85: 38.321 | E85: 47 | F85: 37.68 | G85: 44 | H85: 31.32 | I85: 45 | J85: 33.078 | K85: 44 | L85: 27.466 | M85: 36 | N85: 31.501 | O85: 37 | P85: 25.479 | Q85: 40 | R85: 29.451 | S85: 39 | T85: 26.993 | U85: 33 | V85: 26.68 | W85: 34 | X85: 28.857 | Y85: 31 | Z85: 28 | AA85: 30 | AB85: 19.65 | AC85: 23 | AD85: 18.65 | AE85: 22 | AF85: 14.538 | AG85: 16
A86: 35010000 | B86: Paulo Freire Social Justice Charter School (District) | C86: 3501 | D86: 34.156 | E86: 40 | F86: 35.51 | G86: 42 | H86: 38.28 | I86: 46 | J86: 35.313 | K86: 43 | L86: 33.067 | M86: 38 | N86: 29.461 | O86: 38 | P86: 25.003 | Q86: 26 | R86: 19.862 | S86: 28 | T86: NE | U86: NE | V86: NE | W86: NE | X86: NE | Y86: NE | Z86: NE | AA86: NE | AB86: NE | AC86: NE | AD86: NE | AE86: NE | AF86: NE | AG86: NE
A87: 35020000 | B87: Baystate Academy Charter Public School (District) | C87: 3502 | D87: 38.652 | E87: 40 | F87: 36.18 | G87: 38 | H87: 25.35 | I87: 27 | J87: 26.23 | K87: 29 | L87: 19.83 | M87: 20 | N87: 22.08 | O87: 22 | P87: 8.31 | Q87: 11 | R87: 9.21 | S87: 11 | T87: NE | U87: NE | V87: NE | W87: NE | X87: NE | Y87: NE | Z87: NE | AA87: NE | AB87: NE | AC87: NE | AD87: NE | AE87: NE | AF87: NE | AG87: NE
A88: 35030000 | B88: Collegiate Charter School of Lowell (District) | C88: 3503 | D88: 35 | E88: 35 | F88: 33 | G88: 33 | H88: 29.1 | I88: 30 | J88: 28.5 | K88: 29 | L88: 21 | M88: 22 | N88: 21.48 | O88: 22 | P88: 16.2 | Q88: 18 | R88: 15.2 | S88: 17 | T88: NE | U88: NE | V88: NE | W88: NE | X88: NE | Y88: NE | Z88: NE | AA88: NE | AB88: NE | AC88: NE | AD88: NE | AE88: NE | AF88: NE | AG88: NE
A89: 35040000 | B89: City on a Hill Charter Public School Dudley Square (District) | C89: 3504 | D89: 24.8 | E89: 33 | F89: 25.3 | G89: 33 | H89: 20.2 | I89: 27 | J89: 20.9 | K89: 28 | L89: 13.5 | M89: 18 | N89: 13.8 | O89: 19 | P89: 8.2 | Q89: 13 | R89: 8.2 | S89: 13 | T89: NE | U89: NE | V89: NE | W89: NE | X89: NE | Y89: NE | Z89: NE | AA89: NE | AB89: NE | AC89: NE | AD89: NE | AE89: NE | AF89: NE | AG89: NE
A90: 35050000 | B90: UP Academy Charter School of Dorchester (District) | C90: 3505 | D90: 39.33 | E90: 40 | F90: 62.83 | G90: 63 | H90: 52.99 | I90: 52 | J90: 52.49 | K90: 51 | L90: 41 | M90: 41 | N90: 58 | O90: 58 | P90: 44.75 | Q90: 45 | R90: 55.87 | S90: 56 | T90: NE | U90: NE | V90: NE | W90: NE | X90: NE | Y90: NE | Z90: NE | AA90: NE | AB90: NE | AC90: NE | AD90: NE | AE90: NE | AF90: NE | AG90: NE
A91: 35060000 | B91: Pioneer Charter School of Science II (PCSS-II) (District) | C91: 3506 | D91: 31.76 | E91: 38 | F91: 32.2 | G91: 38 | H91: 28.44 | I91: 33 | J91: 25.24 | K91: 32 | L91: 22.292 | M91: 25 | N91: 21.446 | O91: 24 | P91: 16.7 | Q91: 20 | R91: 16.9 | S91: 20 | T91: NE | U91: NE | V91: NE | W91: NE | X91: NE | Y91: NE | Z91: NE | AA91: NE | AB91: NE | AC91: NE | AD91: NE | AE91: NE | AF91: NE | AG91: NE
A92: 35070000 | B92: City on a Hill Charter Public School New Bedford (District) | C92: 3507 | D92: 12.916 | E92: 20 | F92: 13.32 | G92: 20 | H92: 11 | I92: 15 | J92: 11.3 | K92: 15 | L92: 8.5 | M92: 13 | N92: 8.1 | O92: 12 | P92: NE | Q92: NE | R92: NE | S92: NE | T92: NE | U92: NE | V92: NE | W92: NE | X92: NE | Y92: NE | Z92: NE | AA92: NE | AB92: NE | AC92: NE | AD92: NE | AE92: NE | AF92: NE | AG92: NE
A93: 35080000 | B93: Phoenix Academy Public Charter High School Springfield (District) | C93: 3508 | D93: 10.525 | E93: 16 | F93: 11.9 | G93: 16 | H93: 11.4 | I93: 13 | J93: 11.75 | K93: 15 | L93: 7.4 | M93: 11 | N93: 8.5 | O93: 15 | P93: NE | Q93: NE | R93: NE | S93: NE | T93: NE | U93: NE | V93: NE | W93: NE | X93: NE | Y93: NE | Z93: NE | AA93: NE | AB93: NE | AC93: NE | AD93: NE | AE93: NE | AF93: NE | AG93: NE
A94: 35090000 | B94: Argosy Collegiate Charter School (District) | C94: 3509 | D94: 24.999 | E94: 25 | F94: 26 | G94: 26 | H94: 16.5 | I94: 17 | J94: 15.6 | K94: 17 | L94: 8.1 | M94: 11 | N94: 7.6 | O94: 10 | P94: NE | Q94: NE | R94: NE | S94: NE | T94: NE | U94: NE | V94: NE | W94: NE | X94: NE | Y94: NE | Z94: NE | AA94: NE | AB94: NE | AC94: NE | AD94: NE | AE94: NE | AF94: NE | AG94: NE
A95: 35100000 | B95: Springfield Preparatory Charter School (District) | C95: 3510 | D95: 14.8 | E95: 15 | F95: 13 | G95: 13 | H95: 6.66 | I95: 8 | J95: 6.664 | K95: 8 | L95: NE | M95: NE | N95: NE | O95: NE | P95: NE | Q95: NE | R95: NE | S95: NE | T95: NE | U95: NE | V95: NE | W95: NE | X95: NE | Y95: NE | Z95: NE | AA95: NE | AB95: NE | AC95: NE | AD95: NE | AE95: NE | AF95: NE | AG95: NE
A96: 35110000 | B96: Bentley Academy Charter School (District) | C96: 3511 | D96: 31.008 | E96: 31 | F96: 32.28 | G96: 32 | H96: 25.48 | I96: 30 | J96: 25.48 | K96: 30 | L96: NE | M96: NE | N96: NE | O96: NE | P96: NE | Q96: NE | R96: NE | S96: NE | T96: NE | U96: NE | V96: NE | W96: NE | X96: NE | Y96: NE | Z96: NE | AA96: NE | AB96: NE | AC96: NE | AD96: NE | AE96: NE | AF96: NE | AG96: NE
A97: 35130000 | B97: New Heights Charter School of Brockton (District) | C97: 3513 | D97: 21.296 | E97: 24 | F97: 22.09 | G97: 23 | H97: NE | I97: NE | J97: NE | K97: NE | L97: NE | M97: NE | N97: NE | O97: NE | P97: NE | Q97: NE | R97: NE | S97: NE | T97: NE | U97: NE | V97: NE | W97: NE | X97: NE | Y97: NE | Z97: NE | AA97: NE | AB97: NE | AC97: NE | AD97: NE | AE97: NE | AF97: NE | AG97: NE

Sheet FTE (hidden)
A1: LEA | B1: FTE | C1: FY17
A2: 407 | B2: 288.0837989 | D2: All commonwealth charter FTE figures derived from
A3: 409 | B3: 322.4177632 | D3: Final FY17 Charter School Tuition and Enrollment
A4: 410 | B4: 957.5940594
A5: 411 | B5: 481.0277778 | D5: HM FTE calculated by OCSSR using days of membership data
A6: 412 | B6: 520.1760797
A7: 413 | B7: 219.0798611
A8: 414 | B8: 348.8691275
A9: 416 | B9: 412.2980132
A10: 417 | B10: 269.62
A11: 418 | B11: 394.3965517
A12: 419 | B12: 219.1752577
A13: 420 | B13: 345.8728522
A14: 424 | B14: 392.3687151
A15: 426 | B15: 279.952862
A16: 427 | B16: 287.4111111
A17: 428 | B17: 1599.808206
A18: 429 | B18: 1193.225909
A19: 430 | B19: 969.5945946
A20: 431 | B20: 279.8552189
A21: 432 | B21: 242.9198606
A22: 435 | B22: 791.9930556
A23: 436 | B23: 369.5918367
A24: 437 | B24: 278.4983389
A25: 438 | B25: 357.4180699
A26: 439 | B26: 443.6184211
A27: 440 | B27: 399.9427609
A28: 441 | B28: 1571.945017
A29: 444 | B29: 463.3715278
A30: 445 | B30: 1424.914776
A31: 446 | B31: 1259.640138
A32: 447 | B32: 448.1076389
A33: 449 | B33: 675.6936027
A34: 450 | B34: 217.8645833
A35: 452 | B35: 359.4166667
A36: 453 | B36: 700.5748299
A37: 454 | B37: 715.9998688
A38: 455 | B38: 306.0804196
A39: 456 | B39: 808.9863946
A40: 458 | B40: 106.4965753
A41: 463 | B41: 509.0841015
A42: 464 | B42: 229.7635135
A43: 466 | B43: 174.0696864
A44: 469 | B44: 1137.527027
A45: 470 | B45: 1485.87013
A46: 474 | B46: 367.5729167
A47: 477 | B47: 563.1611111
A48: 478 | B48: 393.6655052
A49: 479 | B49: 401.8855219
A50: 480 | B50: 454.0648649
A51: 481 | B51: 947.2125011
A52: 482 | B52: 287.9652778
A53: 483 | B53: 661.7118056
A54: 484 | B54: 1290.325837
A55: 485 | B55: 439.5354839
A56: 486 | B56: 665.0247678
A57: 487 | B57: 1145.164336
A58: 488 | B58: 756.7414966
A59: 489 | B59: 802.8601399
A60: 491 | B60: 1102.930706
A61: 492 | B61: 360.5485173
A62: 493 | B62: 185.6131148
A63: 494 | B63: 533.8354839
A64: 496 | B64: 502.9409722
A65: 497 | B65: 470.3447099
A66: 498 | B66: 310.9342105
A67: 499 | B67: 453.5068493
A68: 3501 | B68: 333.8827586
A69: 3502 | B69: 386.4123711
A70: 3503 | B70: 640.3779661
A71: 3504 | B71: 274.3189369
A72: 3505 | B72: 747.6108108
A73: 3506 | B73: 318.724026
A74: 3507 | B74: 176.3887043
A75: 3508 | B75: 189.7540984
A76: 3509 | B76: 306.3531353
A77: 3510 | B77: 164.3733333
A78: 3511 | B78: 256.6541963
A79: 3513 | B79: 303.9488055

Sheet TYPE (hidden)
A1: LEA | B1: Charter School | C1: Type
A2: 445 | B2: Abby Kelley Foster Charter Public School | C2: C
A3: 412 | B3: Academy of the Pacific Rim Charter Public School | C3: C
A4: 430 | B4: Advanced Math and Science Academy Charter School | C4: C
A5: 409 | B5: Alma del Mar Charter School | C5: C
A6: 3509 | B6: Argosy Collegiate Charter School | C6: C
A7: 491 | B7: Atlantis Charter School | C7: C
A8: 427 | B8: Barnstable Community Horace Mann Charter Public School | C8: HM
A9: 3502 | B9: Baystate Academy Charter Public School | C9: C
A10: 420 | B10: Benjamin Banneker Charter Public School | C10: C
A11: 447 | B11: Benjamin Franklin Classical Charter Public School | C11: C
A12: 3511 | B12: Bentley Academy Charter School | C12: HM
A13: 414 | B13: Berkshire Arts and Technology Charter Public School | C13: C
A14: 449 | B14: Boston Collegiate Charter School | C14: C
A15: 424 | B15: Boston Day and Evening Academy Charter School | C15: HM
A16: 411 | B16: Boston Green Academy Horace Mann Charter School | C16: HM
A17: 416 | B17: Boston Preparatory Charter Public School | C17: C
A18: 481 | B18: Boston Renaissance Charter Public School | C18: C
A19: 417 | B19: Bridge Boston Charter School | C19: C
A20: 428 | B20: Brooke Charter School | C20: C
A21: 432 | B21: Cape Cod Lighthouse Charter School | C21: C
A22: 418 | B22: Christa McAuliffe Charter School | C22: C
A23: 437 | B23: City on a Hill Charter Public School Circuit Street | C23: C
A24: 3504 | B24: City on a Hill Charter Public School Dudley Square | C24: C
A25: 3507 | B25: City On A Hill Charter Public School New Bedford | C25: C
A26: 438 | B26: Codman Academy Charter Public School | C26: C
A27: 3503 | B27: Collegiate Charter School of Lowell | C27: C
A28: 436 | B28: Community Charter School of Cambridge | C28: C
A29: 426 | B29: Community Day Charter Public School - Gateway | C29: C
A30: 440 | B30: Community Day Charter Public School - Prospect | C30: C
A31: 431 | B31: Community Day Charter Public School - R. Kingman Webster | C31: C
A32: 439 | B32: Conservatory Lab Charter School | C32: C
A33: 407 | B33: Dudley Street Neighborhood Charter School | C33: HM
A34: 452 | B34: Edward M. Kennedy Academy for Health Careers: A Horace Mann Charter Public School | C34: HM
A35: 410 | B35: Excel Academy Charter School | C35: C
A36: 413 | B36: Four Rivers Charter Public School | C36: C
A37: 446 | B37: Foxborough Regional Charter School | C37: C
A38: 478 | B38: Francis W. Parker Charter Essential School | C38: C
A39: 496 | B39: Global Learning Charter Public School | C39: C
A40: 499 | B40: Hampden Charter School of Science | C40: C
A41: 3516 | B41: Hampden Charter School of Science West | C41: C
A42: 419 | B42: Helen Y Davis Leadership Academy Charter Public School | C42: C
A43: 455 | B43: Hill View Montessori Charter Public School | C43: C
A44: 450 | B44: Hilltown Cooperative Charter Public School | C44: C
A45: 453 | B45: Holyoke Community Charter School | C45: C
A46: 435 | B46: Innovation Academy Charter School | C46: C
A47: 463 | B47: KIPP Academy Boston Charter School | C47: C
A48: 429 | B48: KIPP Academy Lynn Charter School | C48: C
A49: 454 | B49: Lawrence Family Development Charter School | C49: C
A50: 3514 | B50: Libertas Academy Charter School | C50: C
A51: 456 | B51: Lowell Community Charter Public School | C51: C
A52: 458 | B52: Lowell Middlesex Academy Charter School | C52: C
A53: 3517 | B53: Map Academy Charter School | C53: C
A54: 464 | B54: Marblehead Community Charter Public School | C54: C
A55: 466 | B55: Martha's Vineyard Public Charter School | C55: C
A56: 492 | B56: Martin Luther King, Jr. Charter School of Excellence | C56: C
A57: 469 | B57: Match Charter Public School | C57: C
A58: 470 | B58: Mystic Valley Regional Charter School | C58: C
A59: 444 | B59: Neighborhood House Charter School | C59: C
A60: 3513 | B60: New Heights Charter School of Brockton | C60: C
A61: 3515 | B61: Old Sturbridge Academy Charter Public School | C61: C
A62: 3501 | B62: Paulo Freire Social Justice Charter School | C62: C
A63: 493 | B63: Phoenix Academy Charter Public High School, Chelsea | C63: C
A64: 3518 | B64: Phoenix Academy Public Charter High School, Lawrence | C64: C
A65: 3508 | B65: Phoenix Academy Public Charter High School, Springfield | C65: C
A66: 494 | B66: Pioneer Charter School of Science | C66: C
A67: 3506 | B67: Pioneer Charter School of Science II | C67: C
A68: 497 | B68: Pioneer Valley Chinese Immersion Charter School | C68: C
A69: 479 | B69: Pioneer Valley Performing Arts Charter Public School | C69: C
A70: 487 | B70: Prospect Hill Academy Charter School | C70: C
A71: 483 | B71: Rising Tide Charter Public School | C71: C
A72: 482 | B72: River Valley Charter School | C72: C
A73: 484 | B73: Roxbury Preparatory Charter School | C73: C
A74: 441 | B74: Sabis International Charter School | C74: C
A75: 485 | B75: Salem Academy Charter School | C75: C
A76: 486 | B76: Seven Hills Charter Public School | C76: C
A77: 477 | B77: Silver Hill Horace Mann Charter School (school closing after 2017-18 school year) | C77: HM
A78: 474 | B78: Sizer School, A North Central Charter Essential School | C78: C
A79: 488 | B79: South Shore Charter Public School | C79: C
A80: 3510 | B80: Springfield Preparatory Charter School | C80: C
A81: 489 | B81: Sturgis Charter Public School | C81: C
A82: 480 | B82: UP Academy Charter School of Boston | C82: HM
A83: 3505 | B83: UP Academy Charter School of Dorchester | C83: HM
A84: 498 | B84: Veritas Preparatory Charter School | C84: C
